Workbook

Sheet home
D2: cmdty by Barchart
D3: Cash Forwards and Seasonality Monitor
D5: Input Data
D7: Crop | E7: Corn | I7: Not Required
D8: Index Area | I8: Not Required | U8: =+IF(basisSymbol=historical,"History Up-to-Date","Please Update History") -> History Up-to-Date
D9: Index Area Type | E9: State | I9: Not Required
D10: Instrument | E10: cmdty Illinois Corn Price Idx | I10: Required
D11: Front-Month Symbol | E11: =+INDEX(instruments!$A:$A,MATCH(home!E$10,instruments!$B:$B,0),1) -> ZCPAIL.CM
D13: =+B61 -> cmdty Illinois Corn (Forward Curve) | P13: =+B62 -> Seasonality in Illinois Corn (Basis)
B41: Basis | E41: Symbol | G41: Last | J41: Futures | K41: Grain | L41: Historical
A42: Current Basis | B42: Spread to Historical Basis | D42: SymbolDescription | E42: Cash | F42: Basis | G42: Cash | H42: Basis | I42: Future | J42: Month | K42: Delivery | L42: Basis | M42: Implied | N42: Spread | P42: Month | Q42: 2016 | R42: =+Q42+1 -> 2017 | S42: =+R42+1 -> 2018 | T42: 2019 | U42: 2020 | V42: Average | X42: Future | Y42: Cash
A43: =-H43 -> 0.0497 | B43: =+H43-L43 -> 0.1225404762 | D43: =+IF(LEN(E43)>0,_xll.cmdty.udfs.BCD($E43,D$42),"") -> cmdty Illinois Corn Price Idx | E43: =index!F28 -> ZCPAIL.CM | F43: =+IFERROR(LEFT(E43,2)&"B"&RIGHT(E43,LEN(E43)-3),"") -> ZCBAIL.CM | G43: =+IFERROR(I43+H43,"") -> 3.7978 | H43: =+IF(LEN(F43)>0,_xll.cmdty.udfs.BCD(F43,G$41),"") -> -0.0497 | I43: =+IF(LEN(E43)>0,_xll.cmdty.udfs.BCD(J43,"Last")/100,"") -> 3.8475 | J43: =+index!$M28 -> ZCH20 | K43: =+IF(LEN(G43)>0,VALUE(index!H28),"") -> 2020-01-01 | L43: =+IFERROR(AVERAGEIF(historical!$C:$C,"="&MONTH(home!$K43),historical!$B:$B),"") -> -0.1722404762 | M43: =+IFERROR(I43+L43,"") -> 3.675259524 | N43: =+IFERROR(L43-H43,"") -> -0.1225404762 | P43: =+K43 -> 2020-01-01 | Q43: =+IF(LEN($P43)>0,IFERROR(AVERAGEIFS(historical!$B:$B,historical!$D:$D,home!Q$42,historical!$C:$C,MONTH(home!$P43)),NA()),NA()) -> -0.07188333333 | R43: =+IF(LEN($P43)>0,IFERROR(AVERAGEIFS(historical!$B:$B,historical!$D:$D,home!R$42,historical!$C:$C,MONTH(home!$P43)),NA()),NA()) -> -0.15389 | S43: =+IF(LEN($P43)>0,IFERROR(AVERAGEIFS(historical!$B:$B,historical!$D:$D,home!S$42,historical!$C:$C,MONTH(home!$P43)),NA()),NA()) -> -0.2052238095 | T43: =+IF(LEN($P43)>0,IFERROR(AVERAGEIFS(historical!$B:$B,historical!$D:$D,home!T$42,historical!$C:$C,MONTH(home!$P43)),NA()),NA()) -> -0.2564045455 | U43: =+IF(LEN($P43)>0,IFERROR(AVERAGEIFS(historical!$B:$B,historical!$D:$D,home!U$42,historical!$C:$C,MONTH(home!$P43)),NA()),NA()) -> -0.04863333333 | V43: =+L43 -> -0.1722404762 | X43: =+I43 -> 3.8475 | Y43: =+IFERROR(X43+V43,"") -> 3.675259524
A44: 0.0337 | B44: =+H44-L44 -> 0.1289115385 | D44: =+IF(LEN(E44)>0,_xll.cmdty.udfs.BCD($E44,D$42),"") -> cmdty Illinois Corn Price Idx M2 | E44: =index!F29 -> ZCPBIL.CM | F44: =+IFERROR(LEFT(E44,2)&"B"&RIGHT(E44,LEN(E44)-3),"") -> ZCBBIL.CM | G44: =+IFERROR(I44+H44,"") -> 3.8138 | H44: =+IF(LEN(F44)>0,_xll.cmdty.udfs.BCD(F44,G$41),"") -> -0.0337 | I44: =+IF(LEN(E44)>0,_xll.cmdty.udfs.BCD(J44,"Last")/100,"") -> 3.8475 | J44: =+index!$M29 -> ZCH20 | K44: =+IF(LEN(G44)>0,VALUE(index!H29),"") -> 2020-02-01 | L44: =+IFERROR(AVERAGEIF(historical!$C:$C,"="&MONTH(home!$K44),historical!$B:$B),"") -> -0.1626115385 | M44: =+IFERROR(I44+L44,"") -> 3.684888462 | N44: =+IFERROR(L44-H44,"") -> -0.1289115385 | P44: 2020-02-01 | Q44: =+IF(LEN($P44)>0,IFERROR(AVERAGEIFS(historical!$B:$B,historical!$D:$D,home!Q$42,historical!$C:$C,MONTH(home!$P44)),NA()),NA()) -> -0.085025 | R44: =+IF(LEN($P44)>0,IFERROR(AVERAGEIFS(historical!$B:$B,historical!$D:$D,home!R$42,historical!$C:$C,MONTH(home!$P44)),NA()),NA()) -> -0.1700947368 | S44: =+IF(LEN($P44)>0,IFERROR(AVERAGEIFS(historical!$B:$B,historical!$D:$D,home!S$42,historical!$C:$C,MONTH(home!$P44)),NA()),NA()) -> -0.1866684211 | T44: =+IF(LEN($P44)>0,IFERROR(AVERAGEIFS(historical!$B:$B,historical!$D:$D,home!T$42,historical!$C:$C,MONTH(home!$P44)),NA()),NA()) -> -0.210235 | U44: =+IF(LEN($P44)>0,IFERROR(AVERAGEIFS(historical!$B:$B,historical!$D:$D,home!U$42,historical!$C:$C,MONTH(home!$P44)),NA()),NA()) ->  | V44: -0.1626115385 | X44: =+I44 -> 3.8475 | Y44: =+IFERROR(X44+V44,"") -> 3.684888462
A45: 0.0219 | B45: 0.1883103448 | D45: =+IF(LEN(E45)>0,_xll.cmdty.udfs.BCD($E45,D$42),"") -> cmdty Illinois Corn Price Idx M3 | E45: =index!F30 -> ZCPCIL.CM | F45: ZCBCIL.CM | G45: 3.8256 | H45: =+IF(LEN(F45)>0,_xll.cmdty.udfs.BCD(F45,G$41),"") -> -0.0219 | I45: =+IF(LEN(E45)>0,_xll.cmdty.udfs.BCD(J45,"Last")/100,"") -> 3.8475 | J45: =+index!$M30 -> ZCH20 | K45: =+IF(LEN(G45)>0,VALUE(index!H30),"") -> 2020-03-01 | L45: =+IFERROR(AVERAGEIF(historical!$C:$C,"="&MONTH(home!$K45),historical!$B:$B),"") -> -0.2102103448 | M45: 3.637289655 | N45: -0.1883103448 | P45: 2020-03-01 | Q45: =+IF(LEN($P45)>0,IFERROR(AVERAGEIFS(historical!$B:$B,historical!$D:$D,home!Q$42,historical!$C:$C,MONTH(home!$P45)),NA()),NA()) -> -0.1111090909 | R45: =+IF(LEN($P45)>0,IFERROR(AVERAGEIFS(historical!$B:$B,historical!$D:$D,home!R$42,historical!$C:$C,MONTH(home!$P45)),NA()),NA()) -> -0.2124782609 | S45: =+IF(LEN($P45)>0,IFERROR(AVERAGEIFS(historical!$B:$B,historical!$D:$D,home!S$42,historical!$C:$C,MONTH(home!$P45)),NA()),NA()) -> -0.2659619048 | T45: =+IF(LEN($P45)>0,IFERROR(AVERAGEIFS(historical!$B:$B,historical!$D:$D,home!T$42,historical!$C:$C,MONTH(home!$P45)),NA()),NA()) -> -0.2557952381 | U45: =+IF(LEN($P45)>0,IFERROR(AVERAGEIFS(historical!$B:$B,historical!$D:$D,home!U$42,historical!$C:$C,MONTH(home!$P45)),NA()),NA()) ->  | V45: -0.2102103448 | X45: 3.8475 | Y45: 3.637289655
A46: 0.0632 | B46: 0.1179253012 | D46: =+IF(LEN(E46)>0,_xll.cmdty.udfs.BCD($E46,D$42),"") -> cmdty Illinois Corn Price Idx M4 | E46: =index!F31 -> ZCPDIL.CM | F46: ZCBDIL.CM | G46: 3.8518 | H46: =+IF(LEN(F46)>0,_xll.cmdty.udfs.BCD(F46,G$41),"") -> -0.0632 | I46: =+IF(LEN(E46)>0,_xll.cmdty.udfs.BCD(J46,"Last")/100,"") -> 3.915 | J46: =+index!$M31 -> ZCK20 | K46: =+IF(LEN(G46)>0,VALUE(index!H31),"") -> 2020-04-01 | L46: =+IFERROR(AVERAGEIF(historical!$C:$C,"="&MONTH(home!$K46),historical!$B:$B),"") -> -0.1811253012 | M46: 3.733874699 | N46: -0.1179253012 | P46: 2020-04-01 | Q46: =+IF(LEN($P46)>0,IFERROR(AVERAGEIFS(historical!$B:$B,historical!$D:$D,home!Q$42,historical!$C:$C,MONTH(home!$P46)),NA()),NA()) -> -0.1133952381 | R46: =+IF(LEN($P46)>0,IFERROR(AVERAGEIFS(historical!$B:$B,historical!$D:$D,home!R$42,historical!$C:$C,MONTH(home!$P46)),NA()),NA()) -> -0.1806263158 | S46: =+IF(LEN($P46)>0,IFERROR(AVERAGEIFS(historical!$B:$B,historical!$D:$D,home!S$42,historical!$C:$C,MONTH(home!$P46)),NA()),NA()) -> -0.2475666667 | T46: =+IF(LEN($P46)>0,IFERROR(AVERAGEIFS(historical!$B:$B,historical!$D:$D,home!T$42,historical!$C:$C,MONTH(home!$P46)),NA()),NA()) -> -0.1827863636 | U46: =+IF(LEN($P46)>0,IFERROR(AVERAGEIFS(historical!$B:$B,historical!$D:$D,home!U$42,historical!$C:$C,MONTH(home!$P46)),NA()),NA()) ->  | V46: -0.1811253012 | X46: 3.915 | Y46: 3.733874699
A47: 0.0487 | B47: 0.1646647727 | D47: =+IF(LEN(E47)>0,_xll.cmdty.udfs.BCD($E47,D$42),"") -> cmdty Illinois Corn Price Idx M5 | E47: =index!F32 -> ZCPEIL.CM | F47: ZCBEIL.CM | G47: 3.8663 | H47: =+IF(LEN(F47)>0,_xll.cmdty.udfs.BCD(F47,G$41),"") -> -0.0487 | I47: =+IF(LEN(E47)>0,_xll.cmdty.udfs.BCD(J47,"Last")/100,"") -> 3.915 | J47: =+index!$M32 -> ZCK20 | K47: =+IF(LEN(G47)>0,VALUE(index!H32),"") -> 2020-05-01 | L47: =+IFERROR(AVERAGEIF(historical!$C:$C,"="&MONTH(home!$K47),historical!$B:$B),"") -> -0.2133647727 | M47: 3.701635227 | N47: -0.1646647727 | P47: 2020-05-01 | Q47: =+IF(LEN($P47)>0,IFERROR(AVERAGEIFS(historical!$B:$B,historical!$D:$D,home!Q$42,historical!$C:$C,MONTH(home!$P47)),NA()),NA()) -> -0.1578428571 | R47: =+IF(LEN($P47)>0,IFERROR(AVERAGEIFS(historical!$B:$B,historical!$D:$D,home!R$42,historical!$C:$C,MONTH(home!$P47)),NA()),NA()) -> -0.2120136364 | S47: =+IF(LEN($P47)>0,IFERROR(AVERAGEIFS(historical!$B:$B,historical!$D:$D,home!S$42,historical!$C:$C,MONTH(home!$P47)),NA()),NA()) -> -0.2571227273 | T47: =+IF(LEN($P47)>0,IFERROR(AVERAGEIFS(historical!$B:$B,historical!$D:$D,home!T$42,historical!$C:$C,MONTH(home!$P47)),NA()),NA()) -> -0.2234956522 | U47: =+IF(LEN($P47)>0,IFERROR(AVERAGEIFS(historical!$B:$B,historical!$D:$D,home!U$42,historical!$C:$C,MONTH(home!$P47)),NA()),NA()) ->  | V47: -0.2133647727 | X47: 3.915 | Y47: 3.701635227
A48: 0.0824 | B48: 0.1039658824 | D48: =+IF(LEN(E48)>0,_xll.cmdty.udfs.BCD($E48,D$42),"") -> cmdty Illinois Corn Price Idx M6 | E48: =index!F33 -> ZCPFIL.CM | F48: ZCBFIL.CM | G48: 3.8976 | H48: =+IF(LEN(F48)>0,_xll.cmdty.udfs.BCD(F48,G$41),"") -> -0.0824 | I48: =+IF(LEN(E48)>0,_xll.cmdty.udfs.BCD(J48,"Last")/100,"") -> 3.98 | J48: =+index!$M33 -> ZCN20 | K48: =+IF(LEN(G48)>0,VALUE(index!H33),"") -> 2020-06-01 | L48: =+IFERROR(AVERAGEIF(historical!$C:$C,"="&MONTH(home!$K48),historical!$B:$B),"") -> -0.1863658824 | M48: 3.793634118 | N48: -0.1039658824 | P48: 2020-06-01 | Q48: =+IF(LEN($P48)>0,IFERROR(AVERAGEIFS(historical!$B:$B,historical!$D:$D,home!Q$42,historical!$C:$C,MONTH(home!$P48)),NA()),NA()) -> -0.1516363636 | R48: =+IF(LEN($P48)>0,IFERROR(AVERAGEIFS(historical!$B:$B,historical!$D:$D,home!R$42,historical!$C:$C,MONTH(home!$P48)),NA()),NA()) -> -0.2121590909 | S48: =+IF(LEN($P48)>0,IFERROR(AVERAGEIFS(historical!$B:$B,historical!$D:$D,home!S$42,historical!$C:$C,MONTH(home!$P48)),NA()),NA()) -> -0.2298666667 | T48: =+IF(LEN($P48)>0,IFERROR(AVERAGEIFS(historical!$B:$B,historical!$D:$D,home!T$42,historical!$C:$C,MONTH(home!$P48)),NA()),NA()) -> -0.15052 | U48: =+IF(LEN($P48)>0,IFERROR(AVERAGEIFS(historical!$B:$B,historical!$D:$D,home!U$42,historical!$C:$C,MONTH(home!$P48)),NA()),NA()) ->  | V48: -0.1863658824 | X48: 3.98 | Y48: 3.793634118
A49: 0.0692 | B49: 0.09790833333 | D49: =+IF(LEN(E49)>0,_xll.cmdty.udfs.BCD($E49,D$42),"") -> cmdty Illinois Corn Price Idx M7 | E49: =index!F34 -> ZCPGIL.CM | F49: ZCBGIL.CM | G49: 3.9108 | H49: =+IF(LEN(F49)>0,_xll.cmdty.udfs.BCD(F49,G$41),"") -> -0.0692 | I49: =+IF(LEN(E49)>0,_xll.cmdty.udfs.BCD(J49,"Last")/100,"") -> 3.98 | J49: =+index!$M34 -> ZCN20 | K49: =+IF(LEN(G49)>0,VALUE(index!H34),"") -> 2020-07-01 | L49: =+IFERROR(AVERAGEIF(historical!$C:$C,"="&MONTH(home!$K49),historical!$B:$B),"") -> -0.1671083333 | M49: 3.812891667 | N49: -0.09790833333 | P49: 2020-07-01 | Q49: =+IF(LEN($P49)>0,IFERROR(AVERAGEIFS(historical!$B:$B,historical!$D:$D,home!Q$42,historical!$C:$C,MONTH(home!$P49)),NA()),NA()) -> -0.109555 | R49: =+IF(LEN($P49)>0,IFERROR(AVERAGEIFS(historical!$B:$B,historical!$D:$D,home!R$42,historical!$C:$C,MONTH(home!$P49)),NA()),NA()) -> -0.29163 | S49: =+IF(LEN($P49)>0,IFERROR(AVERAGEIFS(historical!$B:$B,historical!$D:$D,home!S$42,historical!$C:$C,MONTH(home!$P49)),NA()),NA()) -> -0.2669952381 | T49: =+IF(LEN($P49)>0,IFERROR(AVERAGEIFS(historical!$B:$B,historical!$D:$D,home!T$42,historical!$C:$C,MONTH(home!$P49)),NA()),NA()) -> -0.01767391304 | U49: =+IF(LEN($P49)>0,IFERROR(AVERAGEIFS(historical!$B:$B,historical!$D:$D,home!U$42,historical!$C:$C,MONTH(home!$P49)),NA()),NA()) ->  | V49: -0.1671083333 | X49: 3.98 | Y49: 3.812891667
A50: 0.0494 | B50: 0.1320417582 | D50: =+IF(LEN(E50)>0,_xll.cmdty.udfs.BCD($E50,D$42),"") -> cmdty Illinois Corn Price Idx M8 | E50: =index!F35 -> ZCPHIL.CM | F50: ZCBHIL.CM | G50: 3.9256 | H50: =+IF(LEN(F50)>0,_xll.cmdty.udfs.BCD(F50,G$41),"") -> -0.0494 | I50: =+IF(LEN(E50)>0,_xll.cmdty.udfs.BCD(J50,"Last")/100,"") -> 3.975 | J50: =+index!$M35 -> ZCU20 | K50: =+IF(LEN(G50)>0,VALUE(index!H35),"") -> 2020-08-01 | L50: =+IFERROR(AVERAGEIF(historical!$C:$C,"="&MONTH(home!$K50),historical!$B:$B),"") -> -0.1814417582 | M50: 3.793558242 | N50: -0.1320417582 | P50: 2020-08-01 | Q50: =+IF(LEN($P50)>0,IFERROR(AVERAGEIFS(historical!$B:$B,historical!$D:$D,home!Q$42,historical!$C:$C,MONTH(home!$P50)),NA()),NA()) -> -0.1053826087 | R50: =+IF(LEN($P50)>0,IFERROR(AVERAGEIFS(historical!$B:$B,historical!$D:$D,home!R$42,historical!$C:$C,MONTH(home!$P50)),NA()),NA()) -> -0.2656608696 | S50: =+IF(LEN($P50)>0,IFERROR(AVERAGEIFS(historical!$B:$B,historical!$D:$D,home!S$42,historical!$C:$C,MONTH(home!$P50)),NA()),NA()) -> -0.295473913 | T50: =+IF(LEN($P50)>0,IFERROR(AVERAGEIFS(historical!$B:$B,historical!$D:$D,home!T$42,historical!$C:$C,MONTH(home!$P50)),NA()),NA()) -> -0.05369545455 | U50: =+IF(LEN($P50)>0,IFERROR(AVERAGEIFS(historical!$B:$B,historical!$D:$D,home!U$42,historical!$C:$C,MONTH(home!$P50)),NA()),NA()) ->  | V50: -0.1814417582 | X50: 3.975 | Y50: 3.793558242
A51: 0.219 | B51: 0.07836049383 | D51: =+IF(LEN(E51)>0,_xll.cmdty.udfs.BCD($E51,D$42),"") -> cmdty Illinois Corn Price Idx M9 | E51: =index!F36 -> ZCPIIL.CM | F51: ZCBIIL.CM | G51: 3.756 | H51: =+IF(LEN(F51)>0,_xll.cmdty.udfs.BCD(F51,G$41),"") -> -0.219 | I51: =+IF(LEN(E51)>0,_xll.cmdty.udfs.BCD(J51,"Last")/100,"") -> 3.975 | J51: =+index!$M36 -> ZCU20 | K51: =+IF(LEN(G51)>0,VALUE(index!H36),"") -> 2020-09-01 | L51: =+IFERROR(AVERAGEIF(historical!$C:$C,"="&MONTH(home!$K51),historical!$B:$B),"") -> -0.2973604938 | M51: 3.677639506 | N51: -0.07836049383 | P51: 2020-09-01 | Q51: =+IF(LEN($P51)>0,IFERROR(AVERAGEIFS(historical!$B:$B,historical!$D:$D,home!Q$42,historical!$C:$C,MONTH(home!$P51)),NA()),NA()) -> -0.258352381 | R51: =+IF(LEN($P51)>0,IFERROR(AVERAGEIFS(historical!$B:$B,historical!$D:$D,home!R$42,historical!$C:$C,MONTH(home!$P51)),NA()),NA()) -> -0.374655 | S51: =+IF(LEN($P51)>0,IFERROR(AVERAGEIFS(historical!$B:$B,historical!$D:$D,home!S$42,historical!$C:$C,MONTH(home!$P51)),NA()),NA()) -> -0.4356789474 | T51: =+IF(LEN($P51)>0,IFERROR(AVERAGEIFS(historical!$B:$B,historical!$D:$D,home!T$42,historical!$C:$C,MONTH(home!$P51)),NA()),NA()) -> -0.1376095238 | U51: =+IF(LEN($P51)>0,IFERROR(AVERAGEIFS(historical!$B:$B,historical!$D:$D,home!U$42,historical!$C:$C,MONTH(home!$P51)),NA()),NA()) ->  | V51: -0.2973604938 | X51: 3.975 | Y51: 3.677639506
A52: 0.3041 | B52: -0.02674269663 | D52: =+IF(LEN(E52)>0,_xll.cmdty.udfs.BCD($E52,D$42),"") -> cmdty Illinois Corn Price Idx M10 | E52: =index!F37 -> ZCPJIL.CM | F52: ZCBJIL.CM | G52: 3.6959 | H52: =+IF(LEN(F52)>0,_xll.cmdty.udfs.BCD(F52,G$41),"") -> -0.3041 | I52: =+IF(LEN(E52)>0,_xll.cmdty.udfs.BCD(J52,"Last")/100,"") -> 4 | J52: =+index!$M37 -> ZCZ20 | K52: =+IF(LEN(G52)>0,VALUE(index!H37),"") -> 2020-10-01 | L52: =+IFERROR(AVERAGEIF(historical!$C:$C,"="&MONTH(home!$K52),historical!$B:$B),"") -> -0.2773573034 | M52: 3.722642697 | N52: 0.02674269663 | P52: 2020-10-01 | Q52: =+IF(LEN($P52)>0,IFERROR(AVERAGEIFS(historical!$B:$B,historical!$D:$D,home!Q$42,historical!$C:$C,MONTH(home!$P52)),NA()),NA()) -> -0.236447619 | R52: =+IF(LEN($P52)>0,IFERROR(AVERAGEIFS(historical!$B:$B,historical!$D:$D,home!R$42,historical!$C:$C,MONTH(home!$P52)),NA()),NA()) -> -0.3526727273 | S52: =+IF(LEN($P52)>0,IFERROR(AVERAGEIFS(historical!$B:$B,historical!$D:$D,home!S$42,historical!$C:$C,MONTH(home!$P52)),NA()),NA()) -> -0.3817391304 | T52: =+IF(LEN($P52)>0,IFERROR(AVERAGEIFS(historical!$B:$B,historical!$D:$D,home!T$42,historical!$C:$C,MONTH(home!$P52)),NA()),NA()) -> -0.1382869565 | U52: =+IF(LEN($P52)>0,IFERROR(AVERAGEIFS(historical!$B:$B,historical!$D:$D,home!U$42,historical!$C:$C,MONTH(home!$P52)),NA()),NA()) ->  | V52: -0.2773573034 | X52: 4 | Y52: 3.722642697
A53: 0.2926 | B53: -0.1233729412 | D53: =+IF(LEN(E53)>0,_xll.cmdty.udfs.BCD($E53,D$42),"") -> cmdty Illinois Corn Price Idx M11 | E53: =index!F38 -> ZCPKIL.CM | F53: ZCBKIL.CM | G53: 3.7074 | H53: =+IF(LEN(F53)>0,_xll.cmdty.udfs.BCD(F53,G$41),"") -> -0.2926 | I53: =+IF(LEN(E53)>0,_xll.cmdty.udfs.BCD(J53,"Last")/100,"") -> 4 | J53: =+index!$M38 -> ZCZ20 | K53: =+IF(LEN(G53)>0,VALUE(index!H38),"") -> 2020-11-01 | L53: =+IFERROR(AVERAGEIF(historical!$C:$C,"="&MONTH(home!$K53),historical!$B:$B),"") -> -0.1692270588 | M53: 3.830772941 | N53: 0.1233729412 | P53: 2020-11-01 | Q53: =+IF(LEN($P53)>0,IFERROR(AVERAGEIFS(historical!$B:$B,historical!$D:$D,home!Q$42,historical!$C:$C,MONTH(home!$P53)),NA()),NA()) -> -0.1603809524 | R53: =+IF(LEN($P53)>0,IFERROR(AVERAGEIFS(historical!$B:$B,historical!$D:$D,home!R$42,historical!$C:$C,MONTH(home!$P53)),NA()),NA()) -> -0.2579809524 | S53: =+IF(LEN($P53)>0,IFERROR(AVERAGEIFS(historical!$B:$B,historical!$D:$D,home!S$42,historical!$C:$C,MONTH(home!$P53)),NA()),NA()) -> -0.2176363636 | T53: =+IF(LEN($P53)>0,IFERROR(AVERAGEIFS(historical!$B:$B,historical!$D:$D,home!T$42,historical!$C:$C,MONTH(home!$P53)),NA()),NA()) -> -0.0386047619 | U53: =+IF(LEN($P53)>0,IFERROR(AVERAGEIFS(historical!$B:$B,historical!$D:$D,home!U$42,historical!$C:$C,MONTH(home!$P53)),NA()),NA()) ->  | V53: -0.1692270588 | X53: 4 | Y53: 3.830772941
A54: 0.2675 | B54: -0.06518333333 | D54: =+IF(LEN(E54)>0,_xll.cmdty.udfs.BCD($E54,D$42),"") -> cmdty Illinois Corn Price Idx M12 | E54: =index!F39 -> ZCPLIL.CM | F54: ZCBLIL.CM | G54: 3.7325 | H54: =+IF(LEN(F54)>0,_xll.cmdty.udfs.BCD(F54,G$41),"") -> -0.2675 | I54: =+IF(LEN(E54)>0,_xll.cmdty.udfs.BCD(J54,"Last")/100,"") -> 4 | J54: =+index!$M39 -> ZCZ20 | K54: =+IF(LEN(G54)>0,VALUE(index!H39),"") -> 2020-12-01 | L54: =+IFERROR(AVERAGEIF(historical!$C:$C,"="&MONTH(home!$K54),historical!$B:$B),"") -> -0.2023166667 | M54: 3.797683333 | N54: 0.06518333333 | P54: 2020-12-01 | Q54: =+IF(LEN($P54)>0,IFERROR(AVERAGEIFS(historical!$B:$B,historical!$D:$D,home!Q$42,historical!$C:$C,MONTH(home!$P54)),NA()),NA()) -> -0.1993809524 | R54: =+IF(LEN($P54)>0,IFERROR(AVERAGEIFS(historical!$B:$B,historical!$D:$D,home!R$42,historical!$C:$C,MONTH(home!$P54)),NA()),NA()) -> -0.252505 | S54: =+IF(LEN($P54)>0,IFERROR(AVERAGEIFS(historical!$B:$B,historical!$D:$D,home!S$42,historical!$C:$C,MONTH(home!$P54)),NA()),NA()) -> -0.2778380952 | T54: =+IF(LEN($P54)>0,IFERROR(AVERAGEIFS(historical!$B:$B,historical!$D:$D,home!T$42,historical!$C:$C,MONTH(home!$P54)),NA()),NA()) -> -0.08740454545 | U54: =+IF(LEN($P54)>0,IFERROR(AVERAGEIFS(historical!$B:$B,historical!$D:$D,home!U$42,historical!$C:$C,MONTH(home!$P54)),NA()),NA()) ->  | V54: -0.2023166667 | X54: 4 | Y54: 3.797683333
A57: Cash Name | B57: =+D43&" Forward Curve" -> cmdty Illinois Corn Price Idx Forward Curve
A58: Basis Name | B58: =+_xll.cmdty.udfs.BCD($F43,D$42)&" Forward Curve" -> cmdty Illinois Corn Basis Idx Forward Curve
A59: Future Name | B59: =+INDEX(index!$E$6:$E$10,MATCH(LEFT($E43,2),index!$F$6:$F$10,0),1)&" Futures Forward Curve" -> Corn Futures Forward Curve
A60: Historical Curve | B60: =+LEFT(B58,FIND("Basis",B58,1)-2)&" Implied Forward Curve (Historical Basis Avg)" -> cmdty Illinois Corn Implied Forward Curve (Historical Basis Avg)
A61: Chart 1 Name | B61: =+LEFT($E$10,FIND("Price",$E$10,1)-2)&" (Forward Curve)" -> cmdty Illinois Corn (Forward Curve)
A62: Chart 2 Name | B62: =+"Seasonality in "&MID($E$10,7,FIND("Price",$E$10,1)-8)&" (Basis)" -> Seasonality in Illinois Corn (Basis)

Sheet index
B3: Variables
B5: Area | C5: Type | D5: State | E5: Crop | F5: Root | G5: Months | H5: Future Month | I5: String | J5: Value
B6: County | C6: Basis | D6: - United States | E6: Corn | F6: ZC | G6: A | H6: 0 | I6: M1 | J6: 1
B7: District | C7: Cash | D7: Illinois | E7: HRW | F7: KE | G7: B | H7: =+H6+1 -> 1 | I7: M2 | J7: =+J6+1 -> 2
B8: State | D8: Indiana | E8: Soybean | F8: ZS | G8: C | H8: 2 | I8: M3 | J8: =+J7+1 -> 3
B9: Nation | D9: Iowa | E9: Spring Wheat | F9: MW | G9: D | H9: 3 | I9: M4 | J9: 4
D10: Kansas | E10: SRW | F10: ZW | G10: E | H10: 4 | I10: M5 | J10: 5
D11: Michigan | G11: F | H11: 5 | I11: M6 | J11: 6
D12: Minnesota | G12: G | H12: 6 | I12: M7 | J12: 7
D13: Missouri | G13: H | H13: 7 | I13: M8 | J13: 8
D14: Nebraska | G14: I | H14: 8 | I14: M9 | J14: 9
D15: North Carolina | G15: J | H15: 9 | I15: M10 | J15: 10
D16: North Dakota | G16: K | H16: 10 | I16: M11 | J16: 11
D17: Ohio | G17: L | H17: 11 | I17: M12 | J17: 12
D18: Oklahoma
D19: South Dakota
D20: Texas
D21: Wisconsin
B25: Instrument Check
B27: All Instruments | C27: Last | F27: Valid Instruments | G27: Month | H27: Delivery | I27: Month Code | J27: Futures Month | K27: Futures Delivery | L27: Futures Year
A28: 1 | B28: =+LEFT(home!$E$11,3)&G6&RIGHT(home!$E$11,LEN(home!$E$11)-4) -> ZCPAIL.CM | C28: =+_xll.cmdty.udfs.BCD(B28,C$27)+1 -> 4.7977 | D28: =+IF(ISNUMBER(C28),A28,"") -> 1 | E28: =+IFERROR(_xlfn.RANK.EQ(D28,$D$28:$D$39,1),"") -> 1 | F28: =+IFERROR(INDEX($B$28:$B$39,MATCH($A28,$E$28:$E$39,0),1),"") -> ZCPAIL.CM | G28: =+IFERROR(INDEX($J$6:$J$17,MATCH(MID(F28,4,1),$G$6:$G$17,0),1),"") -> 1 | H28: =+VALUE(MONTH(TODAY())&"/1/"&YEAR(TODAY())) -> 2020-01-01 | I28: =+MID(F28,4,1) -> A | J28: =IF(I28="A",EOMONTH(EDATE(TODAY(),1),-1)+1,EOMONTH(EDATE(TODAY(),VLOOKUP(I28,$G$6:$H$17,2,0)),-1)+1) -> 2020-02-01 | K28: =+INDEX(futures!$B$2:$F$13,MATCH(MONTH(index!J28),futures!$A$2:$A$13,0),MATCH(home!$E$7,futures!$B$1:$F$1,0)) -> H | L28: =IF(LEFT(B28,2)="ZS",IF(MONTH(J28)=12,MOD(YEAR(J28),100)+1,MOD(YEAR(J28),100)),MOD(YEAR(J28),100)) -> 20 | M28: =+LEFT($B28,2)&K28&L28 -> ZCH20
A29: =+A28+1 -> 2 | B29: =+LEFT(home!$E$11,3)&G7&RIGHT(home!$E$11,LEN(home!$E$11)-4) -> ZCPBIL.CM | C29: =+_xll.cmdty.udfs.BCD(B29,C$27)+1 -> 4.8137 | D29: =+IF(ISNUMBER(C29),A29,"") -> 2 | E29: =+IFERROR(_xlfn.RANK.EQ(D29,$D$28:$D$39,1),"") -> 2 | F29: =+IFERROR(INDEX($B$28:$B$39,MATCH($A29,$E$28:$E$39,0),1),"") -> ZCPBIL.CM | G29: 2 | H29: =+MONTH((G29-G28)*31+H28)&"/1/"&YEAR(VALUE((G29-G28)*31+H28)) -> 2/1/2020 | I29: =+MID(F29,4,1) -> B | J29: 2020-02-01 | K29: =+INDEX(futures!$B$2:$F$13,MATCH(MONTH(index!J29),futures!$A$2:$A$13,0),MATCH(home!$E$7,futures!$B$1:$F$1,0)) -> H | L29: 20 | M29: =+LEFT($B29,2)&K29&L29 -> ZCH20
A30: =+A29+1 -> 3 | B30: =+LEFT(home!$E$11,3)&G8&RIGHT(home!$E$11,LEN(home!$E$11)-4) -> ZCPCIL.CM | C30: =+_xll.cmdty.udfs.BCD(B30,C$27)+1 -> 4.8255 | D30: 3 | E30: 3 | F30: ZCPCIL.CM | G30: 3 | H30: 3/1/2020 | I30: C | J30: 2020-03-01 | K30: =+INDEX(futures!$B$2:$F$13,MATCH(MONTH(index!J30),futures!$A$2:$A$13,0),MATCH(home!$E$7,futures!$B$1:$F$1,0)) -> H | L30: 20 | M30: ZCH20
A31: 4 | B31: =+LEFT(home!$E$11,3)&G9&RIGHT(home!$E$11,LEN(home!$E$11)-4) -> ZCPDIL.CM | C31: =+_xll.cmdty.udfs.BCD(B31,C$27)+1 -> 4.8517 | D31: 4 | E31: 4 | F31: ZCPDIL.CM | G31: 4 | H31: 4/1/2020 | I31: D | J31: 2020-04-01 | K31: =+INDEX(futures!$B$2:$F$13,MATCH(MONTH(index!J31),futures!$A$2:$A$13,0),MATCH(home!$E$7,futures!$B$1:$F$1,0)) -> K | L31: 20 | M31: ZCK20
A32: 5 | B32: =+LEFT(home!$E$11,3)&G10&RIGHT(home!$E$11,LEN(home!$E$11)-4) -> ZCPEIL.CM | C32: =+_xll.cmdty.udfs.BCD(B32,C$27)+1 -> 4.8663 | D32: 5 | E32: 5 | F32: ZCPEIL.CM | G32: 5 | H32: 5/1/2020 | I32: E | J32: 2020-05-01 | K32: =+INDEX(futures!$B$2:$F$13,MATCH(MONTH(index!J32),futures!$A$2:$A$13,0),MATCH(home!$E$7,futures!$B$1:$F$1,0)) -> K | L32: 20 | M32: ZCK20
A33: 6 | B33: =+LEFT(home!$E$11,3)&G11&RIGHT(home!$E$11,LEN(home!$E$11)-4) -> ZCPFIL.CM | C33: =+_xll.cmdty.udfs.BCD(B33,C$27)+1 -> 4.8975 | D33: 6 | E33: 6 | F33: ZCPFIL.CM | G33: 6 | H33: 6/1/2020 | I33: F | J33: 2020-06-01 | K33: =+INDEX(futures!$B$2:$F$13,MATCH(MONTH(index!J33),futures!$A$2:$A$13,0),MATCH(home!$E$7,futures!$B$1:$F$1,0)) -> N | L33: 20 | M33: ZCN20
A34: 7 | B34: =+LEFT(home!$E$11,3)&G12&RIGHT(home!$E$11,LEN(home!$E$11)-4) -> ZCPGIL.CM | C34: =+_xll.cmdty.udfs.BCD(B34,C$27)+1 -> 4.9107 | D34: 7 | E34: 7 | F34: ZCPGIL.CM | G34: 7 | H34: 7/1/2020 | I34: G | J34: 2020-07-01 | K34: =+INDEX(futures!$B$2:$F$13,MATCH(MONTH(index!J34),futures!$A$2:$A$13,0),MATCH(home!$E$7,futures!$B$1:$F$1,0)) -> N | L34: 20 | M34: ZCN20
A35: 8 | B35: =+LEFT(home!$E$11,3)&G13&RIGHT(home!$E$11,LEN(home!$E$11)-4) -> ZCPHIL.CM | C35: =+_xll.cmdty.udfs.BCD(B35,C$27)+1 -> 4.9256 | D35: 8 | E35: 8 | F35: ZCPHIL.CM | G35: 8 | H35: 8/1/2020 | I35: H | J35: 2020-08-01 | K35: =+INDEX(futures!$B$2:$F$13,MATCH(MONTH(index!J35),futures!$A$2:$A$13,0),MATCH(home!$E$7,futures!$B$1:$F$1,0)) -> U | L35: 20 | M35: ZCU20
A36: 9 | B36: =+LEFT(home!$E$11,3)&G14&RIGHT(home!$E$11,LEN(home!$E$11)-4) -> ZCPIIL.CM | C36: =+_xll.cmdty.udfs.BCD(B36,C$27)+1 -> 4.756 | D36: 9 | E36: 9 | F36: ZCPIIL.CM | G36: 9 | H36: 9/1/2020 | I36: I | J36: 2020-09-01 | K36: =+INDEX(futures!$B$2:$F$13,MATCH(MONTH(index!J36),futures!$A$2:$A$13,0),MATCH(home!$E$7,futures!$B$1:$F$1,0)) -> U | L36: 20 | M36: ZCU20
A37: 10 | B37: =+LEFT(home!$E$11,3)&G15&RIGHT(home!$E$11,LEN(home!$E$11)-4) -> ZCPJIL.CM | C37: =+_xll.cmdty.udfs.BCD(B37,C$27)+1 -> 4.6959 | D37: 10 | E37: 10 | F37: ZCPJIL.CM | G37: 10 | H37: 10/1/2020 | I37: J | J37: 2020-10-01 | K37: =+INDEX(futures!$B$2:$F$13,MATCH(MONTH(index!J37),futures!$A$2:$A$13,0),MATCH(home!$E$7,futures!$B$1:$F$1,0)) -> Z | L37: 20 | M37: ZCZ20
A38: 11 | B38: =+LEFT(home!$E$11,3)&G16&RIGHT(home!$E$11,LEN(home!$E$11)-4) -> ZCPKIL.CM | C38: =+_xll.cmdty.udfs.BCD(B38,C$27)+1 -> 4.7073 | D38: 11 | E38: 11 | F38: ZCPKIL.CM | G38: 11 | H38: =+MONTH((G38-G37)*31+H37)&"/1/"&YEAR(VALUE((G38-G37)*31+H37)) -> 11/1/2020 | I38: K | J38: 2020-11-01 | K38: =+INDEX(futures!$B$2:$F$13,MATCH(MONTH(index!J38),futures!$A$2:$A$13,0),MATCH(home!$E$7,futures!$B$1:$F$1,0)) -> Z | L38: 20 | M38: ZCZ20
A39: 12 | B39: =+LEFT(home!$E$11,3)&G17&RIGHT(home!$E$11,LEN(home!$E$11)-4) -> ZCPLIL.CM | C39: =+_xll.cmdty.udfs.BCD(B39,C$27)+1 -> 4.7324 | D39: 12 | E39: 12 | F39: ZCPLIL.CM | G39: 12 | H39: 12/1/2020 | I39: L | J39: 2020-12-01 | K39: =+INDEX(futures!$B$2:$F$13,MATCH(MONTH(index!J39),futures!$A$2:$A$13,0),MATCH(home!$E$7,futures!$B$1:$F$1,0)) -> Z | L39: 20 | M39: ZCZ20
B42: Available Areas
B44: Area
A45: 1 | B45: =+IFERROR(INDEX(instruments!$A$2:$B$5037,MATCH(index!$A45,instruments!$M$2:$M$5037,0),2),"") -> cmdty Illinois Corn Price Idx
A46: =+A45+1 -> 2 | B46: =+IFERROR(INDEX(instruments!$A$2:$B$5037,MATCH(index!$A46,instruments!$M$2:$M$5037,0),2),"") -> cmdty Indiana Corn Price Idx
A47: =+A46+1 -> 3 | B47: =+IFERROR(INDEX(instruments!$A$2:$B$5037,MATCH(index!$A47,instruments!$M$2:$M$5037,0),2),"") -> cmdty Iowa Corn Price Idx
A48: 4 | B48: =+IFERROR(INDEX(instruments!$A$2:$B$5037,MATCH(index!$A48,instruments!$M$2:$M$5037,0),2),"") -> cmdty Kansas Corn Price Idx
A49: 5 | B49: =+IFERROR(INDEX(instruments!$A$2:$B$5037,MATCH(index!$A49,instruments!$M$2:$M$5037,0),2),"") -> cmdty Michigan Corn Price Idx
A50: 6 | B50: =+IFERROR(INDEX(instruments!$A$2:$B$5037,MATCH(index!$A50,instruments!$M$2:$M$5037,0),2),"") -> cmdty Minnesota Corn Price Idx
A51: 7 | B51: =+IFERROR(INDEX(instruments!$A$2:$B$5037,MATCH(index!$A51,instruments!$M$2:$M$5037,0),2),"") -> cmdty Missouri Corn Price Idx
A52: 8 | B52: =+IFERROR(INDEX(instruments!$A$2:$B$5037,MATCH(index!$A52,instruments!$M$2:$M$5037,0),2),"") -> cmdty Nebraska Corn Price Idx
A53: 9 | B53: =+IFERROR(INDEX(instruments!$A$2:$B$5037,MATCH(index!$A53,instruments!$M$2:$M$5037,0),2),"") -> cmdty North Carolina Corn Price Idx
A54: 10 | B54: =+IFERROR(INDEX(instruments!$A$2:$B$5037,MATCH(index!$A54,instruments!$M$2:$M$5037,0),2),"") -> cmdty North Dakota Corn Price Idx
A55: 11 | B55: =+IFERROR(INDEX(instruments!$A$2:$B$5037,MATCH(index!$A55,instruments!$M$2:$M$5037,0),2),"") -> cmdty Ohio Corn Price Idx
A56: 12 | B56: =+IFERROR(INDEX(instruments!$A$2:$B$5037,MATCH(index!$A56,instruments!$M$2:$M$5037,0),2),"") -> cmdty Oklahoma Corn Price Idx
A57: 13 | B57: =+IFERROR(INDEX(instruments!$A$2:$B$5037,MATCH(index!$A57,instruments!$M$2:$M$5037,0),2),"") -> cmdty South Dakota Corn Price Idx
A58: 14 | B58: =+IFERROR(INDEX(instruments!$A$2:$B$5037,MATCH(index!$A58,instruments!$M$2:$M$5037,0),2),"") -> cmdty Texas Corn Price Idx
A59: 15 | B59: =+IFERROR(INDEX(instruments!$A$2:$B$5037,MATCH(index!$A59,instruments!$M$2:$M$5037,0),2),"") -> cmdty Wisconsin Corn Price Idx
A60: 16 | B60: =+IFERROR(INDEX(instruments!$A$2:$B$5037,MATCH(index!$A60,instruments!$M$2:$M$5037,0),2),"") -> 
A61: 17 | B61: =+IFERROR(INDEX(instruments!$A$2:$B$5037,MATCH(index!$A61,instruments!$M$2:$M$5037,0),2),"") -> 
A62: 18 | B62: =+IFERROR(INDEX(instruments!$A$2:$B$5037,MATCH(index!$A62,instruments!$M$2:$M$5037,0),2),"") -> 
A63: 19 | B63: =+IFERROR(INDEX(instruments!$A$2:$B$5037,MATCH(index!$A63,instruments!$M$2:$M$5037,0),2),"") -> 
A64: 20 | B64: =+IFERROR(INDEX(instruments!$A$2:$B$5037,MATCH(index!$A64,instruments!$M$2:$M$5037,0),2),"") -> 
A65: 21 | B65: =+IFERROR(INDEX(instruments!$A$2:$B$5037,MATCH(index!$A65,instruments!$M$2:$M$5037,0),2),"") -> 
A66: 22 | B66: =+IFERROR(INDEX(instruments!$A$2:$B$5037,MATCH(index!$A66,instruments!$M$2:$M$5037,0),2),"") -> 
A67: 23 | B67: =+IFERROR(INDEX(instruments!$A$2:$B$5037,MATCH(index!$A67,instruments!$M$2:$M$5037,0),2),"") -> 
A68: 24 | B68: =+IFERROR(INDEX(instruments!$A$2:$B$5037,MATCH(index!$A68,instruments!$M$2:$M$5037,0),2),"") -> 
A69: 25 | B69: =+IFERROR(INDEX(instruments!$A$2:$B$5037,MATCH(index!$A69,instruments!$M$2:$M$5037,0),2),"") -> 
A70: 26 | B70: =+IFERROR(INDEX(instruments!$A$2:$B$5037,MATCH(index!$A70,instruments!$M$2:$M$5037,0),2),"") -> 
A71: 27 | B71: =+IFERROR(INDEX(instruments!$A$2:$B$5037,MATCH(index!$A71,instruments!$M$2:$M$5037,0),2),"") -> 
A72: 28 | B72: =+IFERROR(INDEX(instruments!$A$2:$B$5037,MATCH(index!$A72,instruments!$M$2:$M$5037,0),2),"") -> 
A73: 29 | B73: =+IFERROR(INDEX(instruments!$A$2:$B$5037,MATCH(index!$A73,instruments!$M$2:$M$5037,0),2),"") -> 
A74: 30 | B74: =+IFERROR(INDEX(instruments!$A$2:$B$5037,MATCH(index!$A74,instruments!$M$2:$M$5037,0),2),"") -> 
A75: 31 | B75: =+IFERROR(INDEX(instruments!$A$2:$B$5037,MATCH(index!$A75,instruments!$M$2:$M$5037,0),2),"") -> 
A76: 32 | B76: =+IFERROR(INDEX(instruments!$A$2:$B$5037,MATCH(index!$A76,instruments!$M$2:$M$5037,0),2),"") -> 
A77: 33 | B77: =+IFERROR(INDEX(instruments!$A$2:$B$5037,MATCH(index!$A77,instruments!$M$2:$M$5037,0),2),"") -> 
A78: 34 | B78: =+IFERROR(INDEX(instruments!$A$2:$B$5037,MATCH(index!$A78,instruments!$M$2:$M$5037,0),2),"") -> 
A79: 35 | B79: =+IFERROR(INDEX(instruments!$A$2:$B$5037,MATCH(index!$A79,instruments!$M$2:$M$5037,0),2),"") -> 
A80: 36 | B80: =+IFERROR(INDEX(instruments!$A$2:$B$5037,MATCH(index!$A80,instruments!$M$2:$M$5037,0),2),"") -> 
A81: 37 | B81: =+IFERROR(INDEX(instruments!$A$2:$B$5037,MATCH(index!$A81,instruments!$M$2:$M$5037,0),2),"") -> 
A82: 38 | B82: =+IFERROR(INDEX(instruments!$A$2:$B$5037,MATCH(index!$A82,instruments!$M$2:$M$5037,0),2),"") -> 
A83: 39 | B83: =+IFERROR(INDEX(instruments!$A$2:$B$5037,MATCH(index!$A83,instruments!$M$2:$M$5037,0),2),"") -> 
A84: 40 | B84: =+IFERROR(INDEX(instruments!$A$2:$B$5037,MATCH(index!$A84,instruments!$M$2:$M$5037,0),2),"") -> 
A85: 41 | B85: =+IFERROR(INDEX(instruments!$A$2:$B$5037,MATCH(index!$A85,instruments!$M$2:$M$5037,0),2),"") -> 
A86: 42 | B86: =+IFERROR(INDEX(instruments!$A$2:$B$5037,MATCH(index!$A86,instruments!$M$2:$M$5037,0),2),"") -> 
A87: 43 | B87: =+IFERROR(INDEX(instruments!$A$2:$B$5037,MATCH(index!$A87,instruments!$M$2:$M$5037,0),2),"") -> 
A88: 44 | B88: =+IFERROR(INDEX(instruments!$A$2:$B$5037,MATCH(index!$A88,instruments!$M$2:$M$5037,0),2),"") -> 
A89: 45 | B89: =+IFERROR(INDEX(instruments!$A$2:$B$5037,MATCH(index!$A89,instruments!$M$2:$M$5037,0),2),"") -> 
A90: 46 | B90: =+IFERROR(INDEX(instruments!$A$2:$B$5037,MATCH(index!$A90,instruments!$M$2:$M$5037,0),2),"") -> 
A91: 47 | B91: =+IFERROR(INDEX(instruments!$A$2:$B$5037,MATCH(index!$A91,instruments!$M$2:$M$5037,0),2),"") -> 
A92: 48 | B92: =+IFERROR(INDEX(instruments!$A$2:$B$5037,MATCH(index!$A92,instruments!$M$2:$M$5037,0),2),"") -> 
A93: 49 | B93: =+IFERROR(INDEX(instruments!$A$2:$B$5037,MATCH(index!$A93,instruments!$M$2:$M$5037,0),2),"") -> 
A94: 50 | B94: =+IFERROR(INDEX(instruments!$A$2:$B$5037,MATCH(index!$A94,instruments!$M$2:$M$5037,0),2),"") -> 
A95: 51 | B95: =+IFERROR(INDEX(instruments!$A$2:$B$5037,MATCH(index!$A95,instruments!$M$2:$M$5037,0),2),"") -> 
A96: 52 | B96: =+IFERROR(INDEX(instruments!$A$2:$B$5037,MATCH(index!$A96,instruments!$M$2:$M$5037,0),2),"") -> 
A97: 53 | B97: =+IFERROR(INDEX(instruments!$A$2:$B$5037,MATCH(index!$A97,instruments!$M$2:$M$5037,0),2),"") -> 
A98: 54 | B98: =+IFERROR(INDEX(instruments!$A$2:$B$5037,MATCH(index!$A98,instruments!$M$2:$M$5037,0),2),"") -> 
A99: 55 | B99: =+IFERROR(INDEX(instruments!$A$2:$B$5037,MATCH(index!$A99,instruments!$M$2:$M$5037,0),2),"") -> 
A100: 56 | B100: =+IFERROR(INDEX(instruments!$A$2:$B$5037,MATCH(index!$A100,instruments!$M$2:$M$5037,0),2),"") -> 
A101: 57 | B101: =+IFERROR(INDEX(instruments!$A$2:$B$5037,MATCH(index!$A101,instruments!$M$2:$M$5037,0),2),"") -> 
A102: 58 | B102: =+IFERROR(INDEX(instruments!$A$2:$B$5037,MATCH(index!$A102,instruments!$M$2:$M$5037,0),2),"") -> 
A103: 59 | B103: =+IFERROR(INDEX(instruments!$A$2:$B$5037,MATCH(index!$A103,instruments!$M$2:$M$5037,0),2),"") -> 
A104: 60 | B104: =+IFERROR(INDEX(instruments!$A$2:$B$5037,MATCH(index!$A104,instruments!$M$2:$M$5037,0),2),"") -> 
A105: 61 | B105: =+IFERROR(INDEX(instruments!$A$2:$B$5037,MATCH(index!$A105,instruments!$M$2:$M$5037,0),2),"") -> 
A106: 62 | B106: =+IFERROR(INDEX(instruments!$A$2:$B$5037,MATCH(index!$A106,instruments!$M$2:$M$5037,0),2),"") -> 
A107: 63 | B107: =+IFERROR(INDEX(instruments!$A$2:$B$5037,MATCH(index!$A107,instruments!$M$2:$M$5037,0),2),"") -> 
A108: 64 | B108: =+IFERROR(INDEX(instruments!$A$2:$B$5037,MATCH(index!$A108,instruments!$M$2:$M$5037,0),2),"") -> 
A109: 65 | B109: =+IFERROR(INDEX(instruments!$A$2:$B$5037,MATCH(index!$A109,instruments!$M$2:$M$5037,0),2),"") -> 
A110: 66 | B110: =+IFERROR(INDEX(instruments!$A$2:$B$5037,MATCH(index!$A110,instruments!$M$2:$M$5037,0),2),"") -> 
A111: =+A110+1 -> 67 | B111: =+IFERROR(INDEX(instruments!$A$2:$B$5037,MATCH(index!$A111,instruments!$M$2:$M$5037,0),2),"") -> 
A112: 68 | B112: =+IFERROR(INDEX(instruments!$A$2:$B$5037,MATCH(index!$A112,instruments!$M$2:$M$5037,0),2),"") -> 
A113: 69 | B113: =+IFERROR(INDEX(instruments!$A$2:$B$5037,MATCH(index!$A113,instruments!$M$2:$M$5037,0),2),"") -> 
A114: 70 | B114: =+IFERROR(INDEX(instruments!$A$2:$B$5037,MATCH(index!$A114,instruments!$M$2:$M$5037,0),2),"") -> 
A115: 71 | B115: =+IFERROR(INDEX(instruments!$A$2:$B$5037,MATCH(index!$A115,instruments!$M$2:$M$5037,0),2),"") -> 
A116: 72 | B116: =+IFERROR(INDEX(instruments!$A$2:$B$5037,MATCH(index!$A116,instruments!$M$2:$M$5037,0),2),"") -> 
A117: 73 | B117: =+IFERROR(INDEX(instruments!$A$2:$B$5037,MATCH(index!$A117,instruments!$M$2:$M$5037,0),2),"") -> 
A118: 74 | B118: =+IFERROR(INDEX(instruments!$A$2:$B$5037,MATCH(index!$A118,instruments!$M$2:$M$5037,0),2),"") -> 
A119: 75 | B119: =+IFERROR(INDEX(instruments!$A$2:$B$5037,MATCH(index!$A119,instruments!$M$2:$M$5037,0),2),"") -> 
A120: 76 | B120: =+IFERROR(INDEX(instruments!$A$2:$B$5037,MATCH(index!$A120,instruments!$M$2:$M$5037,0),2),"") -> 
A121: 77 | B121: =+IFERROR(INDEX(instruments!$A$2:$B$5037,MATCH(index!$A121,instruments!$M$2:$M$5037,0),2),"") -> 
A122: 78 | B122: =+IFERROR(INDEX(instruments!$A$2:$B$5037,MATCH(index!$A122,instruments!$M$2:$M$5037,0),2),"") -> 
A123: 79 | B123: =+IFERROR(INDEX(instruments!$A$2:$B$5037,MATCH(index!$A123,instruments!$M$2:$M$5037,0),2),"") -> 
A124: 80 | B124: =+IFERROR(INDEX(instruments!$A$2:$B$5037,MATCH(index!$A124,instruments!$M$2:$M$5037,0),2),"") -> 
A125: 81 | B125: =+IFERROR(INDEX(instruments!$A$2:$B$5037,MATCH(index!$A125,instruments!$M$2:$M$5037,0),2),"") -> 
A126: 82 | B126: =+IFERROR(INDEX(instruments!$A$2:$B$5037,MATCH(index!$A126,instruments!$M$2:$M$5037,0),2),"") -> 
A127: 83 | B127: =+IFERROR(INDEX(instruments!$A$2:$B$5037,MATCH(index!$A127,instruments!$M$2:$M$5037,0),2),"") -> 
A128: 84 | B128: =+IFERROR(INDEX(instruments!$A$2:$B$5037,MATCH(index!$A128,instruments!$M$2:$M$5037,0),2),"") -> 
A129: 85 | B129: =+IFERROR(INDEX(instruments!$A$2:$B$5037,MATCH(index!$A129,instruments!$M$2:$M$5037,0),2),"") -> 
A130: 86 | B130: =+IFERROR(INDEX(instruments!$A$2:$B$5037,MATCH(index!$A130,instruments!$M$2:$M$5037,0),2),"") -> 
A131: 87 | B131: =+IFERROR(INDEX(instruments!$A$2:$B$5037,MATCH(index!$A131,instruments!$M$2:$M$5037,0),2),"") -> 
A132: 88 | B132: =+IFERROR(INDEX(instruments!$A$2:$B$5037,MATCH(index!$A132,instruments!$M$2:$M$5037,0),2),"") -> 
A133: 89 | B133: =+IFERROR(INDEX(instruments!$A$2:$B$5037,MATCH(index!$A133,instruments!$M$2:$M$5037,0),2),"") -> 
A134: 90 | B134: =+IFERROR(INDEX(instruments!$A$2:$B$5037,MATCH(index!$A134,instruments!$M$2:$M$5037,0),2),"") -> 
A135: 91 | B135: =+IFERROR(INDEX(instruments!$A$2:$B$5037,MATCH(index!$A135,instruments!$M$2:$M$5037,0),2),"") -> 
A136: 92 | B136: =+IFERROR(INDEX(instruments!$A$2:$B$5037,MATCH(index!$A136,instruments!$M$2:$M$5037,0),2),"") -> 
A137: 93 | B137: =+IFERROR(INDEX(instruments!$A$2:$B$5037,MATCH(index!$A137,instruments!$M$2:$M$5037,0),2),"") -> 
A138: 94 | B138: =+IFERROR(INDEX(instruments!$A$2:$B$5037,MATCH(index!$A138,instruments!$M$2:$M$5037,0),2),"") -> 
A139: 95 | B139: =+IFERROR(INDEX(instruments!$A$2:$B$5037,MATCH(index!$A139,instruments!$M$2:$M$5037,0),2),"") -> 
A140: 96 | B140: =+IFERROR(INDEX(instruments!$A$2:$B$5037,MATCH(index!$A140,instruments!$M$2:$M$5037,0),2),"") -> 
A141: 97 | B141: =+IFERROR(INDEX(instruments!$A$2:$B$5037,MATCH(index!$A141,instruments!$M$2:$M$5037,0),2),"") -> 
A142: 98 | B142: =+IFERROR(INDEX(instruments!$A$2:$B$5037,MATCH(index!$A142,instruments!$M$2:$M$5037,0),2),"") -> 
A143: 99 | B143: =+IFERROR(INDEX(instruments!$A$2:$B$5037,MATCH(index!$A143,instruments!$M$2:$M$5037,0),2),"") -> 
A144: 100 | B144: =+IFERROR(INDEX(instruments!$A$2:$B$5037,MATCH(index!$A144,instruments!$M$2:$M$5037,0),2),"") -> 
A145: 101 | B145: =+IFERROR(INDEX(instruments!$A$2:$B$5037,MATCH(index!$A145,instruments!$M$2:$M$5037,0),2),"") -> 
A146: 102 | B146: =+IFERROR(INDEX(instruments!$A$2:$B$5037,MATCH(index!$A146,instruments!$M$2:$M$5037,0),2),"") -> 
A147: 103 | B147: =+IFERROR(INDEX(instruments!$A$2:$B$5037,MATCH(index!$A147,instruments!$M$2:$M$5037,0),2),"") -> 
A148: 104 | B148: =+IFERROR(INDEX(instruments!$A$2:$B$5037,MATCH(index!$A148,instruments!$M$2:$M$5037,0),2),"") -> 
A149: 105 | B149: =+IFERROR(INDEX(instruments!$A$2:$B$5037,MATCH(index!$A149,instruments!$M$2:$M$5037,0),2),"") -> 
A150: 106 | B150: =+IFERROR(INDEX(instruments!$A$2:$B$5037,MATCH(index!$A150,instruments!$M$2:$M$5037,0),2),"") -> 
A151: 107 | B151: =+IFERROR(INDEX(instruments!$A$2:$B$5037,MATCH(index!$A151,instruments!$M$2:$M$5037,0),2),"") -> 
A152: 108 | B152: =+IFERROR(INDEX(instruments!$A$2:$B$5037,MATCH(index!$A152,instruments!$M$2:$M$5037,0),2),"") -> 
A153: 109 | B153: =+IFERROR(INDEX(instruments!$A$2:$B$5037,MATCH(index!$A153,instruments!$M$2:$M$5037,0),2),"") -> 
A154: 110 | B154: =+IFERROR(INDEX(instruments!$A$2:$B$5037,MATCH(index!$A154,instruments!$M$2:$M$5037,0),2),"") -> 
A155: 111 | B155: =+IFERROR(INDEX(instruments!$A$2:$B$5037,MATCH(index!$A155,instruments!$M$2:$M$5037,0),2),"") -> 
A156: 112 | B156: =+IFERROR(INDEX(instruments!$A$2:$B$5037,MATCH(index!$A156,instruments!$M$2:$M$5037,0),2),"") -> 
A157: 113 | B157: =+IFERROR(INDEX(instruments!$A$2:$B$5037,MATCH(index!$A157,instruments!$M$2:$M$5037,0),2),"") -> 
A158: 114 | B158: =+IFERROR(INDEX(instruments!$A$2:$B$5037,MATCH(index!$A158,instruments!$M$2:$M$5037,0),2),"") -> 
A159: 115 | B159: =+IFERROR(INDEX(instruments!$A$2:$B$5037,MATCH(index!$A159,instruments!$M$2:$M$5037,0),2),"") -> 
A160: 116 | B160: =+IFERROR(INDEX(instruments!$A$2:$B$5037,MATCH(index!$A160,instruments!$M$2:$M$5037,0),2),"") -> 
A161: 117 | B161: =+IFERROR(INDEX(instruments!$A$2:$B$5037,MATCH(index!$A161,instruments!$M$2:$M$5037,0),2),"") -> 
A162: 118 | B162: =+IFERROR(INDEX(instruments!$A$2:$B$5037,MATCH(index!$A162,instruments!$M$2:$M$5037,0),2),"") -> 
A163: 119 | B163: =+IFERROR(INDEX(instruments!$A$2:$B$5037,MATCH(index!$A163,instruments!$M$2:$M$5037,0),2),"") -> 
A164: 120 | B164: =+IFERROR(INDEX(instruments!$A$2:$B$5037,MATCH(index!$A164,instruments!$M$2:$M$5037,0),2),"") -> 
A165: 121 | B165: =+IFERROR(INDEX(instruments!$A$2:$B$5037,MATCH(index!$A165,instruments!$M$2:$M$5037,0),2),"") -> 
A166: 122 | B166: =+IFERROR(INDEX(instruments!$A$2:$B$5037,MATCH(index!$A166,instruments!$M$2:$M$5037,0),2),"") -> 
A167: 123 | B167: =+IFERROR(INDEX(instruments!$A$2:$B$5037,MATCH(index!$A167,instruments!$M$2:$M$5037,0),2),"") -> 
A168: 124 | B168: =+IFERROR(INDEX(instruments!$A$2:$B$5037,MATCH(index!$A168,instruments!$M$2:$M$5037,0),2),"") -> 
A169: 125 | B169: =+IFERROR(INDEX(instruments!$A$2:$B$5037,MATCH(index!$A169,instruments!$M$2:$M$5037,0),2),"") -> 
A170: 126 | B170: =+IFERROR(INDEX(instruments!$A$2:$B$5037,MATCH(index!$A170,instruments!$M$2:$M$5037,0),2),"") -> 
A171: 127 | B171: =+IFERROR(INDEX(instruments!$A$2:$B$5037,MATCH(index!$A171,instruments!$M$2:$M$5037,0),2),"") -> 
A172: 128 | B172: =+IFERROR(INDEX(instruments!$A$2:$B$5037,MATCH(index!$A172,instruments!$M$2:$M$5037,0),2),"") -> 
A173: 129 | B173: =+IFERROR(INDEX(instruments!$A$2:$B$5037,MATCH(index!$A173,instruments!$M$2:$M$5037,0),2),"") -> 
A174: 130 | B174: =+IFERROR(INDEX(instruments!$A$2:$B$5037,MATCH(index!$A174,instruments!$M$2:$M$5037,0),2),"") -> 
A175: =+A174+1 -> 131 | B175: =+IFERROR(INDEX(instruments!$A$2:$B$5037,MATCH(index!$A175,instruments!$M$2:$M$5037,0),2),"") -> 
A176: 132 | B176: =+IFERROR(INDEX(instruments!$A$2:$B$5037,MATCH(index!$A176,instruments!$M$2:$M$5037,0),2),"") -> 
A177: 133 | B177: =+IFERROR(INDEX(instruments!$A$2:$B$5037,MATCH(index!$A177,instruments!$M$2:$M$5037,0),2),"") -> 
A178: 134 | B178: =+IFERROR(INDEX(instruments!$A$2:$B$5037,MATCH(index!$A178,instruments!$M$2:$M$5037,0),2),"") -> 
A179: 135 | B179: =+IFERROR(INDEX(instruments!$A$2:$B$5037,MATCH(index!$A179,instruments!$M$2:$M$5037,0),2),"") -> 
A180: 136 | B180: =+IFERROR(INDEX(instruments!$A$2:$B$5037,MATCH(index!$A180,instruments!$M$2:$M$5037,0),2),"") -> 
A181: 137 | B181: =+IFERROR(INDEX(instruments!$A$2:$B$5037,MATCH(index!$A181,instruments!$M$2:$M$5037,0),2),"") -> 
A182: 138 | B182: =+IFERROR(INDEX(instruments!$A$2:$B$5037,MATCH(index!$A182,instruments!$M$2:$M$5037,0),2),"") -> 
A183: 139 | B183: =+IFERROR(INDEX(instruments!$A$2:$B$5037,MATCH(index!$A183,instruments!$M$2:$M$5037,0),2),"") -> 
A184: 140 | B184: =+IFERROR(INDEX(instruments!$A$2:$B$5037,MATCH(index!$A184,instruments!$M$2:$M$5037,0),2),"") -> 
A185: 141 | B185: =+IFERROR(INDEX(instruments!$A$2:$B$5037,MATCH(index!$A185,instruments!$M$2:$M$5037,0),2),"") -> 
A186: 142 | B186: =+IFERROR(INDEX(instruments!$A$2:$B$5037,MATCH(index!$A186,instruments!$M$2:$M$5037,0),2),"") -> 
A187: 143 | B187: =+IFERROR(INDEX(instruments!$A$2:$B$5037,MATCH(index!$A187,instruments!$M$2:$M$5037,0),2),"") -> 
A188: 144 | B188: =+IFERROR(INDEX(instruments!$A$2:$B$5037,MATCH(index!$A188,instruments!$M$2:$M$5037,0),2),"") -> 
A189: 145 | B189: =+IFERROR(INDEX(instruments!$A$2:$B$5037,MATCH(index!$A189,instruments!$M$2:$M$5037,0),2),"") -> 
A190: 146 | B190: =+IFERROR(INDEX(instruments!$A$2:$B$5037,MATCH(index!$A190,instruments!$M$2:$M$5037,0),2),"") -> 
A191: 147 | B191: =+IFERROR(INDEX(instruments!$A$2:$B$5037,MATCH(index!$A191,instruments!$M$2:$M$5037,0),2),"") -> 
A192: 148 | B192: =+IFERROR(INDEX(instruments!$A$2:$B$5037,MATCH(index!$A192,instruments!$M$2:$M$5037,0),2),"") -> 
A193: 149 | B193: =+IFERROR(INDEX(instruments!$A$2:$B$5037,MATCH(index!$A193,instruments!$M$2:$M$5037,0),2),"") -> 
A194: 150 | B194: =+IFERROR(INDEX(instruments!$A$2:$B$5037,MATCH(index!$A194,instruments!$M$2:$M$5037,0),2),"") -> 
A195: 151 | B195: =+IFERROR(INDEX(instruments!$A$2:$B$5037,MATCH(index!$A195,instruments!$M$2:$M$5037,0),2),"") -> 
A196: 152 | B196: =+IFERROR(INDEX(instruments!$A$2:$B$5037,MATCH(index!$A196,instruments!$M$2:$M$5037,0),2),"") -> 
A197: 153 | B197: =+IFERROR(INDEX(instruments!$A$2:$B$5037,MATCH(index!$A197,instruments!$M$2:$M$5037,0),2),"") -> 
A198: 154 | B198: =+IFERROR(INDEX(instruments!$A$2:$B$5037,MATCH(index!$A198,instruments!$M$2:$M$5037,0),2),"") -> 
A199: 155 | B199: =+IFERROR(INDEX(instruments!$A$2:$B$5037,MATCH(index!$A199,instruments!$M$2:$M$5037,0),2),"") -> 
A200: 156 | B200: =+IFERROR(INDEX(instruments!$A$2:$B$5037,MATCH(index!$A200,instruments!$M$2:$M$5037,0),2),"") -> 
A201: 157 | B201: =+IFERROR(INDEX(instruments!$A$2:$B$5037,MATCH(index!$A201,instruments!$M$2:$M$5037,0),2),"") -> 
A202: 158 | B202: =+IFERROR(INDEX(instruments!$A$2:$B$5037,MATCH(index!$A202,instruments!$M$2:$M$5037,0),2),"") -> 
A203: 159 | B203: =+IFERROR(INDEX(instruments!$A$2:$B$5037,MATCH(index!$A203,instruments!$M$2:$M$5037,0),2),"") -> 
A204: 160 | B204: =+IFERROR(INDEX(instruments!$A$2:$B$5037,MATCH(index!$A204,instruments!$M$2:$M$5037,0),2),"") -> 
A205: 161 | B205: =+IFERROR(INDEX(instruments!$A$2:$B$5037,MATCH(index!$A205,instruments!$M$2:$M$5037,0),2),"") -> 
A206: 162 | B206: =+IFERROR(INDEX(instruments!$A$2:$B$5037,MATCH(index!$A206,instruments!$M$2:$M$5037,0),2),"") -> 
A207: 163 | B207: =+IFERROR(INDEX(instruments!$A$2:$B$5037,MATCH(index!$A207,instruments!$M$2:$M$5037,0),2),"") -> 
A208: 164 | B208: =+IFERROR(INDEX(instruments!$A$2:$B$5037,MATCH(index!$A208,instruments!$M$2:$M$5037,0),2),"") -> 
A209: 165 | B209: =+IFERROR(INDEX(instruments!$A$2:$B$5037,MATCH(index!$A209,instruments!$M$2:$M$5037,0),2),"") -> 
A210: 166 | B210: =+IFERROR(INDEX(instruments!$A$2:$B$5037,MATCH(index!$A210,instruments!$M$2:$M$5037,0),2),"") -> 
... 1832 more rows

Sheet historical
A1: =_xll.cmdty.udfs.BCTS(B1:B1,B2:B2,"Day",1,"None",DATE(2016,1,1),,,"",,"Descending","Vertical",TRUE,DATE(2020,1,6)+TIME(16,0,51),"rcCWUe") -> Time Series | B1: ZCBAIL.CM
A2: Date | B2: Close
A3: 2020-01-06 | B3: -0.0497 | C3: =+MONTH(A3) -> 1 | D3: =+YEAR(A3) -> 2020
A4: 2020-01-03 | B4: -0.047 | C4: =+MONTH(A4) -> 1 | D4: =+YEAR(A4) -> 2020
A5: 2020-01-02 | B5: -0.0492 | C5: 1 | D5: 2020
A6: 2019-12-31 | B6: -0.0646 | C6: 12 | D6: 2019
A7: 2019-12-30 | B7: -0.0713 | C7: 12 | D7: 2019
A8: 2019-12-27 | B8: -0.0749 | C8: 12 | D8: 2019
A9: 2019-12-26 | B9: -0.0766 | C9: 12 | D9: 2019
A10: 2019-12-25 | B10: -0.0793 | C10: 12 | D10: 2019
A11: 2019-12-24 | B11: -0.0806 | C11: 12 | D11: 2019
A12: 2019-12-23 | B12: -0.0824 | C12: 12 | D12: 2019
A13: 2019-12-20 | B13: -0.0843 | C13: 12 | D13: 2019
A14: 2019-12-19 | B14: -0.0833 | C14: 12 | D14: 2019
A15: 2019-12-18 | B15: -0.0813 | C15: 12 | D15: 2019
A16: 2019-12-17 | B16: -0.0804 | C16: 12 | D16: 2019
A17: 2019-12-16 | B17: -0.0856 | C17: 12 | D17: 2019
A18: 2019-12-13 | B18: -0.0953 | C18: 12 | D18: 2019
A19: 2019-12-12 | B19: -0.0961 | C19: 12 | D19: 2019
A20: 2019-12-11 | B20: -0.0962 | C20: 12 | D20: 2019
A21: 2019-12-10 | B21: -0.0985 | C21: 12 | D21: 2019
A22: 2019-12-09 | B22: -0.0973 | C22: 12 | D22: 2019
A23: 2019-12-06 | B23: -0.0986 | C23: 12 | D23: 2019
A24: 2019-12-05 | B24: -0.1041 | C24: 12 | D24: 2019
A25: 2019-12-04 | B25: -0.1012 | C25: 12 | D25: 2019
A26: 2019-12-03 | B26: -0.0955 | C26: 12 | D26: 2019
A27: 2019-12-02 | B27: -0.0955 | C27: 12 | D27: 2019
A28: 2019-11-29 | B28: -0.0262 | C28: 11 | D28: 2019
A29: 2019-11-28 | B29: -0.0354 | C29: 11 | D29: 2019
A30: 2019-11-27 | B30: -0.0356 | C30: 11 | D30: 2019
A31: 2019-11-26 | B31: -0.0322 | C31: 11 | D31: 2019
A32: 2019-11-25 | B32: -0.0373 | C32: 11 | D32: 2019
A33: 2019-11-22 | B33: -0.038 | C33: 11 | D33: 2019
A34: 2019-11-21 | B34: -0.0386 | C34: 11 | D34: 2019
A35: 2019-11-20 | B35: -0.0411 | C35: 11 | D35: 2019
A36: 2019-11-19 | B36: -0.0404 | C36: 11 | D36: 2019
A37: 2019-11-18 | B37: -0.0371 | C37: 11 | D37: 2019
A38: 2019-11-15 | B38: -0.034 | C38: 11 | D38: 2019
A39: 2019-11-14 | B39: -0.035 | C39: 11 | D39: 2019
A40: 2019-11-13 | B40: -0.0365 | C40: 11 | D40: 2019
A41: 2019-11-12 | B41: -0.037 | C41: 11 | D41: 2019
A42: 2019-11-11 | B42: -0.04 | C42: 11 | D42: 2019
A43: 2019-11-08 | B43: -0.0402 | C43: 11 | D43: 2019
A44: 2019-11-07 | B44: -0.0377 | C44: 11 | D44: 2019
A45: 2019-11-06 | B45: -0.0411 | C45: 11 | D45: 2019
A46: 2019-11-05 | B46: -0.0467 | C46: 11 | D46: 2019
A47: 2019-11-04 | B47: -0.0489 | C47: 11 | D47: 2019
A48: 2019-11-01 | B48: -0.0517 | C48: 11 | D48: 2019
A49: 2019-10-31 | B49: -0.0778 | C49: 10 | D49: 2019
A50: 2019-10-30 | B50: -0.0897 | C50: 10 | D50: 2019
A51: 2019-10-29 | B51: -0.0971 | C51: 10 | D51: 2019
A52: 2019-10-28 | B52: -0.1101 | C52: 10 | D52: 2019
A53: 2019-10-25 | B53: -0.1183 | C53: 10 | D53: 2019
A54: 2019-10-24 | B54: -0.1232 | C54: 10 | D54: 2019
A55: 2019-10-23 | B55: -0.127 | C55: 10 | D55: 2019
A56: 2019-10-22 | B56: -0.1297 | C56: 10 | D56: 2019
A57: 2019-10-21 | B57: -0.1322 | C57: 10 | D57: 2019
A58: 2019-10-18 | B58: -0.1321 | C58: 10 | D58: 2019
A59: 2019-10-17 | B59: -0.1358 | C59: 10 | D59: 2019
A60: 2019-10-16 | B60: -0.1421 | C60: 10 | D60: 2019
A61: 2019-10-15 | B61: -0.1439 | C61: 10 | D61: 2019
A62: 2019-10-14 | B62: -0.1498 | C62: 10 | D62: 2019
A63: 2019-10-11 | B63: -0.1578 | C63: 10 | D63: 2019
A64: 2019-10-10 | B64: -0.1596 | C64: 10 | D64: 2019
A65: 2019-10-09 | B65: -0.1618 | C65: 10 | D65: 2019
A66: 2019-10-08 | B66: -0.1639 | C66: 10 | D66: 2019
A67: 2019-10-07 | B67: -0.163 | C67: 10 | D67: 2019
A68: 2019-10-04 | B68: -0.1651 | C68: =+MONTH(A68) -> 10 | D68: =+YEAR(A68) -> 2019
A69: 2019-10-03 | B69: -0.166 | C69: 10 | D69: 2019
A70: 2019-10-02 | B70: -0.1667 | C70: 10 | D70: 2019
A71: 2019-10-01 | B71: -0.1679 | C71: 10 | D71: 2019
A72: 2019-09-30 | B72: -0.1404 | C72: 9 | D72: 2019
A73: 2019-09-27 | B73: -0.1359 | C73: 9 | D73: 2019
A74: 2019-09-26 | B74: -0.1305 | C74: 9 | D74: 2019
A75: 2019-09-25 | B75: -0.1274 | C75: 9 | D75: 2019
A76: 2019-09-24 | B76: -0.1269 | C76: 9 | D76: 2019
A77: 2019-09-23 | B77: -0.1234 | C77: 9 | D77: 2019
A78: 2019-09-20 | B78: -0.1265 | C78: 9 | D78: 2019
A79: 2019-09-19 | B79: -0.1285 | C79: 9 | D79: 2019
A80: 2019-09-18 | B80: -0.1276 | C80: 9 | D80: 2019
A81: 2019-09-17 | B81: -0.1401 | C81: 9 | D81: 2019
A82: 2019-09-16 | B82: -0.1394 | C82: 9 | D82: 2019
A83: 2019-09-13 | B83: -0.143 | C83: 9 | D83: 2019
A84: 2019-09-12 | B84: -0.1428 | C84: 9 | D84: 2019
A85: 2019-09-11 | B85: -0.1416 | C85: 9 | D85: 2019
A86: 2019-09-10 | B86: -0.1438 | C86: 9 | D86: 2019
A87: 2019-09-09 | B87: -0.1489 | C87: 9 | D87: 2019
A88: 2019-09-06 | B88: -0.1519 | C88: 9 | D88: 2019
A89: 2019-09-05 | B89: -0.1569 | C89: 9 | D89: 2019
A90: 2019-09-04 | B90: -0.1672 | C90: 9 | D90: 2019
A91: 2019-09-03 | B91: -0.1692 | C91: 9 | D91: 2019
A92: 2019-09-02 | B92: -0.0779 | C92: 9 | D92: 2019
A93: 2019-08-30 | B93: -0.0816 | C93: 8 | D93: 2019
A94: 2019-08-29 | B94: -0.0659 | C94: 8 | D94: 2019
A95: 2019-08-28 | B95: -0.0567 | C95: 8 | D95: 2019
A96: 2019-08-27 | B96: -0.0554 | C96: 8 | D96: 2019
A97: 2019-08-26 | B97: -0.0549 | C97: 8 | D97: 2019
A98: 2019-08-23 | B98: -0.0523 | C98: 8 | D98: 2019
A99: 2019-08-22 | B99: -0.0515 | C99: 8 | D99: 2019
A100: 2019-08-21 | B100: -0.0527 | C100: 8 | D100: 2019
A101: 2019-08-20 | B101: -0.0545 | C101: 8 | D101: 2019
A102: 2019-08-19 | B102: -0.0541 | C102: 8 | D102: 2019
A103: 2019-08-16 | B103: -0.0578 | C103: 8 | D103: 2019
A104: 2019-08-15 | B104: -0.0549 | C104: 8 | D104: 2019
A105: 2019-08-14 | B105: -0.0548 | C105: 8 | D105: 2019
A106: 2019-08-13 | B106: -0.0548 | C106: 8 | D106: 2019
A107: 2019-08-12 | B107: -0.0541 | C107: 8 | D107: 2019
A108: 2019-08-09 | B108: -0.048 | C108: 8 | D108: 2019
A109: 2019-08-08 | B109: -0.0481 | C109: 8 | D109: 2019
A110: 2019-08-07 | B110: -0.0455 | C110: 8 | D110: 2019
A111: 2019-08-06 | B111: -0.0487 | C111: 8 | D111: 2019
A112: 2019-08-05 | B112: -0.0489 | C112: 8 | D112: 2019
A113: 2019-08-02 | B113: -0.0454 | C113: 8 | D113: 2019
A114: 2019-08-01 | B114: -0.0407 | C114: 8 | D114: 2019
A115: 2019-07-31 | B115: -0.0148 | C115: 7 | D115: 2019
A116: 2019-07-30 | B116: -0.0185 | C116: 7 | D116: 2019
A117: 2019-07-29 | B117: -0.0142 | C117: 7 | D117: 2019
A118: 2019-07-26 | B118: -0.0033 | C118: 7 | D118: 2019
A119: 2019-07-25 | B119: 0.0112 | C119: 7 | D119: 2019
A120: 2019-07-24 | B120: 0.0171 | C120: 7 | D120: 2019
A121: 2019-07-23 | B121: 0.0166 | C121: 7 | D121: 2019
A122: 2019-07-22 | B122: 0.0176 | C122: 7 | D122: 2019
A123: 2019-07-19 | B123: 0.0182 | C123: 7 | D123: 2019
A124: 2019-07-18 | B124: 0.0224 | C124: 7 | D124: 2019
A125: 2019-07-17 | B125: 0.0222 | C125: 7 | D125: 2019
A126: 2019-07-16 | B126: 0.0232 | C126: 7 | D126: 2019
A127: 2019-07-15 | B127: 0.021 | C127: 7 | D127: 2019
A128: 2019-07-12 | B128: -0.001 | C128: 7 | D128: 2019
A129: 2019-07-11 | B129: -0.0078 | C129: 7 | D129: 2019
A130: 2019-07-10 | B130: -0.0263 | C130: 7 | D130: 2019
A131: 2019-07-09 | B131: -0.0452 | C131: 7 | D131: 2019
A132: 2019-07-08 | B132: -0.0552 | C132: =+MONTH(A132) -> 7 | D132: =+YEAR(A132) -> 2019
A133: 2019-07-05 | B133: -0.065 | C133: 7 | D133: 2019
A134: 2019-07-04 | B134: -0.0647 | C134: 7 | D134: 2019
A135: 2019-07-03 | B135: -0.0673 | C135: 7 | D135: 2019
A136: 2019-07-02 | B136: -0.085 | C136: 7 | D136: 2019
A137: 2019-07-01 | B137: -0.1077 | C137: 7 | D137: 2019
A138: 2019-06-28 | B138: -0.0879 | C138: 6 | D138: 2019
A139: 2019-06-27 | B139: -0.0888 | C139: 6 | D139: 2019
A140: 2019-06-26 | B140: -0.0892 | C140: 6 | D140: 2019
A141: 2019-06-25 | B141: -0.0955 | C141: 6 | D141: 2019
A142: 2019-06-24 | B142: -0.1032 | C142: 6 | D142: 2019
A143: 2019-06-21 | B143: -0.1071 | C143: 6 | D143: 2019
A144: 2019-06-20 | B144: -0.1208 | C144: 6 | D144: 2019
A145: 2019-06-19 | B145: -0.1246 | C145: 6 | D145: 2019
A146: 2019-06-18 | B146: -0.1387 | C146: 6 | D146: 2019
A147: 2019-06-17 | B147: -0.1444 | C147: 6 | D147: 2019
A148: 2019-06-14 | B148: -0.1501 | C148: 6 | D148: 2019
A149: 2019-06-13 | B149: -0.1633 | C149: 6 | D149: 2019
A150: 2019-06-12 | B150: -0.178 | C150: 6 | D150: 2019
A151: 2019-06-11 | B151: -0.1855 | C151: 6 | D151: 2019
A152: 2019-06-10 | B152: -0.1943 | C152: 6 | D152: 2019
A153: 2019-06-07 | B153: -0.1987 | C153: 6 | D153: 2019
A154: 2019-06-06 | B154: -0.2073 | C154: 6 | D154: 2019
A155: 2019-06-05 | B155: -0.2092 | C155: 6 | D155: 2019
A156: 2019-06-04 | B156: -0.2114 | C156: 6 | D156: 2019
A157: 2019-06-03 | B157: -0.2124 | C157: 6 | D157: 2019
A158: 2019-05-31 | B158: -0.2002 | C158: 5 | D158: 2019
A159: 2019-05-30 | B159: -0.2153 | C159: 5 | D159: 2019
A160: 2019-05-29 | B160: -0.2218 | C160: 5 | D160: 2019
A161: 2019-05-28 | B161: -0.224 | C161: 5 | D161: 2019
A162: 2019-05-27 | B162: -0.2235 | C162: 5 | D162: 2019
A163: 2019-05-24 | B163: -0.2147 | C163: 5 | D163: 2019
A164: 2019-05-23 | B164: -0.2172 | C164: 5 | D164: 2019
A165: 2019-05-22 | B165: -0.2183 | C165: 5 | D165: 2019
A166: 2019-05-21 | B166: -0.2192 | C166: 5 | D166: 2019
A167: 2019-05-20 | B167: -0.223 | C167: 5 | D167: 2019
A168: 2019-05-17 | B168: -0.2242 | C168: 5 | D168: 2019
A169: 2019-05-16 | B169: -0.2286 | C169: 5 | D169: 2019
A170: 2019-05-15 | B170: -0.2291 | C170: 5 | D170: 2019
A171: 2019-05-14 | B171: -0.2326 | C171: 5 | D171: 2019
A172: 2019-05-13 | B172: -0.2317 | C172: 5 | D172: 2019
A173: 2019-05-10 | B173: -0.228 | C173: 5 | D173: 2019
A174: 2019-05-09 | B174: -0.2246 | C174: 5 | D174: 2019
A175: 2019-05-08 | B175: -0.2259 | C175: 5 | D175: 2019
A176: 2019-05-07 | B176: -0.2217 | C176: 5 | D176: 2019
A177: 2019-05-06 | B177: -0.2238 | C177: 5 | D177: 2019
A178: 2019-05-03 | B178: -0.2277 | C178: 5 | D178: 2019
A179: 2019-05-02 | B179: -0.2289 | C179: 5 | D179: 2019
A180: 2019-05-01 | B180: -0.2364 | C180: 5 | D180: 2019
A181: 2019-04-30 | B181: -0.1502 | C181: 4 | D181: 2019
A182: 2019-04-29 | B182: -0.1524 | C182: 4 | D182: 2019
A183: 2019-04-26 | B183: -0.1547 | C183: 4 | D183: 2019
A184: 2019-04-25 | B184: -0.1572 | C184: 4 | D184: 2019
A185: 2019-04-24 | B185: -0.1618 | C185: 4 | D185: 2019
A186: 2019-04-23 | B186: -0.1662 | C186: 4 | D186: 2019
A187: 2019-04-22 | B187: -0.1725 | C187: 4 | D187: 2019
A188: 2019-04-19 | B188: -0.1735 | C188: 4 | D188: 2019
A189: 2019-04-18 | B189: -0.1746 | C189: 4 | D189: 2019
A190: 2019-04-17 | B190: -0.1793 | C190: 4 | D190: 2019
A191: 2019-04-16 | B191: -0.1833 | C191: 4 | D191: 2019
A192: 2019-04-15 | B192: -0.1888 | C192: 4 | D192: 2019
A193: 2019-04-12 | B193: -0.1913 | C193: 4 | D193: 2019
A194: 2019-04-11 | B194: -0.1924 | C194: 4 | D194: 2019
A195: 2019-04-10 | B195: -0.1949 | C195: 4 | D195: 2019
A196: 2019-04-09 | B196: -0.1953 | C196: =+MONTH(A196) -> 4 | D196: =+YEAR(A196) -> 2019
A197: 2019-04-08 | B197: -0.1989 | C197: 4 | D197: 2019
A198: 2019-04-05 | B198: -0.2017 | C198: 4 | D198: 2019
A199: 2019-04-04 | B199: -0.2069 | C199: 4 | D199: 2019
A200: 2019-04-03 | B200: -0.2072 | C200: 4 | D200: 2019
... 822 more rows

Sheet instruments
A1: Symbol | B1: Name | C1: Crop | D1: Type | E1: State | F1: Area | G1: Name | H1: Crop Match | I1: Price Check | J1: State Match | K1: Area Match | L1: Total Match | M1: Count
A2: KEBAUS.CM | B2: cmdty National Hard Red Winter Wheat Basis Idx | C2: HRW | D2: Basis | E2: - United States | F2: Nation | G2: United States | H2: =+IF(LEN(home!$E$7)>0,instruments!C2=home!$E$7,TRUE) -> FALSE | I2: =+D2="Cash" -> FALSE | J2: =+IF(LEN(home!$E$8)>0,instruments!E2=home!$E$8,TRUE) -> TRUE | K2: =+IF(LEN(home!$E$9)>0,instruments!F2=home!$E$9,TRUE) -> FALSE | L2: =+COUNTIF(H2:K2,TRUE) -> 1 | M2: =+COUNTIF($L$1:L2,"="&4) -> 0
A3: KEPAUS.CM | B3: cmdty National Hard Red Winter Wheat Price Idx | C3: HRW | D3: Cash | E3: - United States | F3: Nation | G3: United States | H3: =+IF(LEN(home!$E$7)>0,instruments!C3=home!$E$7,TRUE) -> FALSE | I3: =+D3="Cash" -> TRUE | J3: =+IF(LEN(home!$E$8)>0,instruments!E3=home!$E$8,TRUE) -> TRUE | K3: =+IF(LEN(home!$E$9)>0,instruments!F3=home!$E$9,TRUE) -> FALSE | L3: 2 | M3: =+COUNTIF($L$1:L3,"="&4) -> 0
A4: MWBAUS.CM | B4: cmdty National Spring Wheat Basis Idx | C4: Spring Wheat | D4: Basis | E4: - United States | F4: Nation | G4: United States | H4: =+IF(LEN(home!$E$7)>0,instruments!C4=home!$E$7,TRUE) -> FALSE | I4: FALSE | J4: =+IF(LEN(home!$E$8)>0,instruments!E4=home!$E$8,TRUE) -> TRUE | K4: =+IF(LEN(home!$E$9)>0,instruments!F4=home!$E$9,TRUE) -> FALSE | L4: 1 | M4: =+COUNTIF($L$1:L4,"="&4) -> 0
A5: MWPAUS.CM | B5: cmdty National Spring Wheat Price Idx | C5: Spring Wheat | D5: Cash | E5: - United States | F5: Nation | G5: United States | H5: =+IF(LEN(home!$E$7)>0,instruments!C5=home!$E$7,TRUE) -> FALSE | I5: TRUE | J5: =+IF(LEN(home!$E$8)>0,instruments!E5=home!$E$8,TRUE) -> TRUE | K5: =+IF(LEN(home!$E$9)>0,instruments!F5=home!$E$9,TRUE) -> FALSE | L5: 2 | M5: =+COUNTIF($L$1:L5,"="&4) -> 0
A6: ZCBAUS.CM | B6: cmdty National Corn Basis Idx | C6: Corn | D6: Basis | E6: - United States | F6: Nation | G6: United States | H6: =+IF(LEN(home!$E$7)>0,instruments!C6=home!$E$7,TRUE) -> TRUE | I6: FALSE | J6: =+IF(LEN(home!$E$8)>0,instruments!E6=home!$E$8,TRUE) -> TRUE | K6: =+IF(LEN(home!$E$9)>0,instruments!F6=home!$E$9,TRUE) -> FALSE | L6: 2 | M6: =+COUNTIF($L$1:L6,"="&4) -> 0
A7: ZCPAUS.CM | B7: cmdty National Corn Price Idx | C7: Corn | D7: Cash | E7: - United States | F7: Nation | G7: United States | H7: =+IF(LEN(home!$E$7)>0,instruments!C7=home!$E$7,TRUE) -> TRUE | I7: TRUE | J7: =+IF(LEN(home!$E$8)>0,instruments!E7=home!$E$8,TRUE) -> TRUE | K7: =+IF(LEN(home!$E$9)>0,instruments!F7=home!$E$9,TRUE) -> FALSE | L7: 3 | M7: =+COUNTIF($L$1:L7,"="&4) -> 0
A8: ZSBAUS.CM | B8: cmdty National Soybean Basis Idx | C8: Soybean | D8: Basis | E8: - United States | F8: Nation | G8: United States | H8: =+IF(LEN(home!$E$7)>0,instruments!C8=home!$E$7,TRUE) -> FALSE | I8: FALSE | J8: =+IF(LEN(home!$E$8)>0,instruments!E8=home!$E$8,TRUE) -> TRUE | K8: =+IF(LEN(home!$E$9)>0,instruments!F8=home!$E$9,TRUE) -> FALSE | L8: 1 | M8: =+COUNTIF($L$1:L8,"="&4) -> 0
A9: ZSPAUS.CM | B9: cmdty National Soybean Price Idx | C9: Soybean | D9: Cash | E9: - United States | F9: Nation | G9: United States | H9: =+IF(LEN(home!$E$7)>0,instruments!C9=home!$E$7,TRUE) -> FALSE | I9: TRUE | J9: =+IF(LEN(home!$E$8)>0,instruments!E9=home!$E$8,TRUE) -> TRUE | K9: =+IF(LEN(home!$E$9)>0,instruments!F9=home!$E$9,TRUE) -> FALSE | L9: 2 | M9: =+COUNTIF($L$1:L9,"="&4) -> 0
A10: ZWBAUS.CM | B10: cmdty National Soft Red Winter Wheat Basis Idx | C10: SRW | D10: Basis | E10: - United States | F10: Nation | G10: United States | H10: =+IF(LEN(home!$E$7)>0,instruments!C10=home!$E$7,TRUE) -> FALSE | I10: FALSE | J10: =+IF(LEN(home!$E$8)>0,instruments!E10=home!$E$8,TRUE) -> TRUE | K10: =+IF(LEN(home!$E$9)>0,instruments!F10=home!$E$9,TRUE) -> FALSE | L10: 1 | M10: =+COUNTIF($L$1:L10,"="&4) -> 0
A11: ZWPAUS.CM | B11: cmdty National Soft Red Winter Wheat Price Idx | C11: SRW | D11: Cash | E11: - United States | F11: Nation | G11: United States | H11: =+IF(LEN(home!$E$7)>0,instruments!C11=home!$E$7,TRUE) -> FALSE | I11: TRUE | J11: =+IF(LEN(home!$E$8)>0,instruments!E11=home!$E$8,TRUE) -> TRUE | K11: =+IF(LEN(home!$E$9)>0,instruments!F11=home!$E$9,TRUE) -> FALSE | L11: 2 | M11: =+COUNTIF($L$1:L11,"="&4) -> 0
A12: ZCBAIL.CM | B12: cmdty Illinois Corn Basis Idx | C12: Corn | D12: Basis | E12: Illinois | F12: State | G12: Illinois | H12: =+IF(LEN(home!$E$7)>0,instruments!C12=home!$E$7,TRUE) -> TRUE | I12: FALSE | J12: =+IF(LEN(home!$E$8)>0,instruments!E12=home!$E$8,TRUE) -> TRUE | K12: =+IF(LEN(home!$E$9)>0,instruments!F12=home!$E$9,TRUE) -> TRUE | L12: 3 | M12: =+COUNTIF($L$1:L12,"="&4) -> 0
A13: ZCPAIL.CM | B13: cmdty Illinois Corn Price Idx | C13: Corn | D13: Cash | E13: Illinois | F13: State | G13: Illinois | H13: =+IF(LEN(home!$E$7)>0,instruments!C13=home!$E$7,TRUE) -> TRUE | I13: TRUE | J13: =+IF(LEN(home!$E$8)>0,instruments!E13=home!$E$8,TRUE) -> TRUE | K13: =+IF(LEN(home!$E$9)>0,instruments!F13=home!$E$9,TRUE) -> TRUE | L13: 4 | M13: =+COUNTIF($L$1:L13,"="&4) -> 1
A14: ZSBAIL.CM | B14: cmdty Illinois Soybean Basis Idx | C14: Soybean | D14: Basis | E14: Illinois | F14: State | G14: Illinois | H14: =+IF(LEN(home!$E$7)>0,instruments!C14=home!$E$7,TRUE) -> FALSE | I14: FALSE | J14: =+IF(LEN(home!$E$8)>0,instruments!E14=home!$E$8,TRUE) -> TRUE | K14: =+IF(LEN(home!$E$9)>0,instruments!F14=home!$E$9,TRUE) -> TRUE | L14: 2 | M14: =+COUNTIF($L$1:L14,"="&4) -> 1
A15: ZSPAIL.CM | B15: cmdty Illinois Soybean Price Idx | C15: Soybean | D15: Cash | E15: Illinois | F15: State | G15: Illinois | H15: =+IF(LEN(home!$E$7)>0,instruments!C15=home!$E$7,TRUE) -> FALSE | I15: TRUE | J15: =+IF(LEN(home!$E$8)>0,instruments!E15=home!$E$8,TRUE) -> TRUE | K15: =+IF(LEN(home!$E$9)>0,instruments!F15=home!$E$9,TRUE) -> TRUE | L15: 3 | M15: =+COUNTIF($L$1:L15,"="&4) -> 1
A16: ZWBAIL.CM | B16: cmdty Illinois Soft Red Winter Wheat Basis Idx | C16: SRW | D16: Basis | E16: Illinois | F16: State | G16: Illinois | H16: =+IF(LEN(home!$E$7)>0,instruments!C16=home!$E$7,TRUE) -> FALSE | I16: FALSE | J16: =+IF(LEN(home!$E$8)>0,instruments!E16=home!$E$8,TRUE) -> TRUE | K16: =+IF(LEN(home!$E$9)>0,instruments!F16=home!$E$9,TRUE) -> TRUE | L16: 2 | M16: =+COUNTIF($L$1:L16,"="&4) -> 1
A17: ZWPAIL.CM | B17: cmdty Illinois Soft Red Winter Wheat Price Idx | C17: SRW | D17: Cash | E17: Illinois | F17: State | G17: Illinois | H17: =+IF(LEN(home!$E$7)>0,instruments!C17=home!$E$7,TRUE) -> FALSE | I17: TRUE | J17: =+IF(LEN(home!$E$8)>0,instruments!E17=home!$E$8,TRUE) -> TRUE | K17: =+IF(LEN(home!$E$9)>0,instruments!F17=home!$E$9,TRUE) -> TRUE | L17: 3 | M17: =+COUNTIF($L$1:L17,"="&4) -> 1
A18: ZCBAIN.CM | B18: cmdty Indiana Corn Basis Idx | C18: Corn | D18: Basis | E18: Indiana | F18: State | G18: Indiana | H18: =+IF(LEN(home!$E$7)>0,instruments!C18=home!$E$7,TRUE) -> TRUE | I18: FALSE | J18: =+IF(LEN(home!$E$8)>0,instruments!E18=home!$E$8,TRUE) -> TRUE | K18: =+IF(LEN(home!$E$9)>0,instruments!F18=home!$E$9,TRUE) -> TRUE | L18: 3 | M18: =+COUNTIF($L$1:L18,"="&4) -> 1
A19: ZCPAIN.CM | B19: cmdty Indiana Corn Price Idx | C19: Corn | D19: Cash | E19: Indiana | F19: State | G19: Indiana | H19: =+IF(LEN(home!$E$7)>0,instruments!C19=home!$E$7,TRUE) -> TRUE | I19: TRUE | J19: =+IF(LEN(home!$E$8)>0,instruments!E19=home!$E$8,TRUE) -> TRUE | K19: =+IF(LEN(home!$E$9)>0,instruments!F19=home!$E$9,TRUE) -> TRUE | L19: 4 | M19: =+COUNTIF($L$1:L19,"="&4) -> 2
A20: ZSBAIN.CM | B20: cmdty Indiana Soybean Basis Idx | C20: Soybean | D20: Basis | E20: Indiana | F20: State | G20: Indiana | H20: =+IF(LEN(home!$E$7)>0,instruments!C20=home!$E$7,TRUE) -> FALSE | I20: FALSE | J20: =+IF(LEN(home!$E$8)>0,instruments!E20=home!$E$8,TRUE) -> TRUE | K20: =+IF(LEN(home!$E$9)>0,instruments!F20=home!$E$9,TRUE) -> TRUE | L20: 2 | M20: =+COUNTIF($L$1:L20,"="&4) -> 2
A21: ZSPAIN.CM | B21: cmdty Indiana Soybean Price Idx | C21: Soybean | D21: Cash | E21: Indiana | F21: State | G21: Indiana | H21: =+IF(LEN(home!$E$7)>0,instruments!C21=home!$E$7,TRUE) -> FALSE | I21: TRUE | J21: =+IF(LEN(home!$E$8)>0,instruments!E21=home!$E$8,TRUE) -> TRUE | K21: =+IF(LEN(home!$E$9)>0,instruments!F21=home!$E$9,TRUE) -> TRUE | L21: 3 | M21: =+COUNTIF($L$1:L21,"="&4) -> 2
A22: ZWBAIN.CM | B22: cmdty Indiana Soft Red Winter Wheat Basis Idx | C22: SRW | D22: Basis | E22: Indiana | F22: State | G22: Indiana | H22: =+IF(LEN(home!$E$7)>0,instruments!C22=home!$E$7,TRUE) -> FALSE | I22: FALSE | J22: =+IF(LEN(home!$E$8)>0,instruments!E22=home!$E$8,TRUE) -> TRUE | K22: =+IF(LEN(home!$E$9)>0,instruments!F22=home!$E$9,TRUE) -> TRUE | L22: 2 | M22: =+COUNTIF($L$1:L22,"="&4) -> 2
A23: ZWPAIN.CM | B23: cmdty Indiana Soft Red Winter Wheat Price Idx | C23: SRW | D23: Cash | E23: Indiana | F23: State | G23: Indiana | H23: =+IF(LEN(home!$E$7)>0,instruments!C23=home!$E$7,TRUE) -> FALSE | I23: TRUE | J23: =+IF(LEN(home!$E$8)>0,instruments!E23=home!$E$8,TRUE) -> TRUE | K23: =+IF(LEN(home!$E$9)>0,instruments!F23=home!$E$9,TRUE) -> TRUE | L23: 3 | M23: =+COUNTIF($L$1:L23,"="&4) -> 2
A24: ZCBAIA.CM | B24: cmdty Iowa Corn Basis Idx | C24: Corn | D24: Basis | E24: Iowa | F24: State | G24: Iowa | H24: =+IF(LEN(home!$E$7)>0,instruments!C24=home!$E$7,TRUE) -> TRUE | I24: FALSE | J24: =+IF(LEN(home!$E$8)>0,instruments!E24=home!$E$8,TRUE) -> TRUE | K24: =+IF(LEN(home!$E$9)>0,instruments!F24=home!$E$9,TRUE) -> TRUE | L24: 3 | M24: =+COUNTIF($L$1:L24,"="&4) -> 2
A25: ZCPAIA.CM | B25: cmdty Iowa Corn Price Idx | C25: Corn | D25: Cash | E25: Iowa | F25: State | G25: Iowa | H25: =+IF(LEN(home!$E$7)>0,instruments!C25=home!$E$7,TRUE) -> TRUE | I25: TRUE | J25: =+IF(LEN(home!$E$8)>0,instruments!E25=home!$E$8,TRUE) -> TRUE | K25: =+IF(LEN(home!$E$9)>0,instruments!F25=home!$E$9,TRUE) -> TRUE | L25: 4 | M25: =+COUNTIF($L$1:L25,"="&4) -> 3
A26: ZSBAIA.CM | B26: cmdty Iowa Soybean Basis Idx | C26: Soybean | D26: Basis | E26: Iowa | F26: State | G26: Iowa | H26: =+IF(LEN(home!$E$7)>0,instruments!C26=home!$E$7,TRUE) -> FALSE | I26: FALSE | J26: =+IF(LEN(home!$E$8)>0,instruments!E26=home!$E$8,TRUE) -> TRUE | K26: =+IF(LEN(home!$E$9)>0,instruments!F26=home!$E$9,TRUE) -> TRUE | L26: 2 | M26: =+COUNTIF($L$1:L26,"="&4) -> 3
A27: ZSPAIA.CM | B27: cmdty Iowa Soybean Price Idx | C27: Soybean | D27: Cash | E27: Iowa | F27: State | G27: Iowa | H27: =+IF(LEN(home!$E$7)>0,instruments!C27=home!$E$7,TRUE) -> FALSE | I27: TRUE | J27: =+IF(LEN(home!$E$8)>0,instruments!E27=home!$E$8,TRUE) -> TRUE | K27: =+IF(LEN(home!$E$9)>0,instruments!F27=home!$E$9,TRUE) -> TRUE | L27: 3 | M27: =+COUNTIF($L$1:L27,"="&4) -> 3
A28: KEBAKS.CM | B28: cmdty Kansas Hard Red Winter Wheat Basis Idx | C28: HRW | D28: Basis | E28: Kansas | F28: State | G28: Kansas | H28: =+IF(LEN(home!$E$7)>0,instruments!C28=home!$E$7,TRUE) -> FALSE | I28: FALSE | J28: =+IF(LEN(home!$E$8)>0,instruments!E28=home!$E$8,TRUE) -> TRUE | K28: =+IF(LEN(home!$E$9)>0,instruments!F28=home!$E$9,TRUE) -> TRUE | L28: 2 | M28: =+COUNTIF($L$1:L28,"="&4) -> 3
A29: KEPAKS.CM | B29: cmdty Kansas Hard Red Winter Wheat Price Idx | C29: HRW | D29: Cash | E29: Kansas | F29: State | G29: Kansas | H29: =+IF(LEN(home!$E$7)>0,instruments!C29=home!$E$7,TRUE) -> FALSE | I29: TRUE | J29: =+IF(LEN(home!$E$8)>0,instruments!E29=home!$E$8,TRUE) -> TRUE | K29: =+IF(LEN(home!$E$9)>0,instruments!F29=home!$E$9,TRUE) -> TRUE | L29: 3 | M29: =+COUNTIF($L$1:L29,"="&4) -> 3
A30: ZCBAKS.CM | B30: cmdty Kansas Corn Basis Idx | C30: Corn | D30: Basis | E30: Kansas | F30: State | G30: Kansas | H30: =+IF(LEN(home!$E$7)>0,instruments!C30=home!$E$7,TRUE) -> TRUE | I30: FALSE | J30: =+IF(LEN(home!$E$8)>0,instruments!E30=home!$E$8,TRUE) -> TRUE | K30: =+IF(LEN(home!$E$9)>0,instruments!F30=home!$E$9,TRUE) -> TRUE | L30: 3 | M30: =+COUNTIF($L$1:L30,"="&4) -> 3
A31: ZCPAKS.CM | B31: cmdty Kansas Corn Price Idx | C31: Corn | D31: Cash | E31: Kansas | F31: State | G31: Kansas | H31: =+IF(LEN(home!$E$7)>0,instruments!C31=home!$E$7,TRUE) -> TRUE | I31: TRUE | J31: =+IF(LEN(home!$E$8)>0,instruments!E31=home!$E$8,TRUE) -> TRUE | K31: =+IF(LEN(home!$E$9)>0,instruments!F31=home!$E$9,TRUE) -> TRUE | L31: 4 | M31: =+COUNTIF($L$1:L31,"="&4) -> 4
A32: ZSBAKS.CM | B32: cmdty Kansas Soybean Basis Idx | C32: Soybean | D32: Basis | E32: Kansas | F32: State | G32: Kansas | H32: =+IF(LEN(home!$E$7)>0,instruments!C32=home!$E$7,TRUE) -> FALSE | I32: FALSE | J32: =+IF(LEN(home!$E$8)>0,instruments!E32=home!$E$8,TRUE) -> TRUE | K32: =+IF(LEN(home!$E$9)>0,instruments!F32=home!$E$9,TRUE) -> TRUE | L32: 2 | M32: =+COUNTIF($L$1:L32,"="&4) -> 4
A33: ZSPAKS.CM | B33: cmdty Kansas Soybean Price Idx | C33: Soybean | D33: Cash | E33: Kansas | F33: State | G33: Kansas | H33: =+IF(LEN(home!$E$7)>0,instruments!C33=home!$E$7,TRUE) -> FALSE | I33: TRUE | J33: =+IF(LEN(home!$E$8)>0,instruments!E33=home!$E$8,TRUE) -> TRUE | K33: =+IF(LEN(home!$E$9)>0,instruments!F33=home!$E$9,TRUE) -> TRUE | L33: 3 | M33: =+COUNTIF($L$1:L33,"="&4) -> 4
A34: ZCBAMI.CM | B34: cmdty Michigan Corn Basis Idx | C34: Corn | D34: Basis | E34: Michigan | F34: State | G34: Michigan | H34: =+IF(LEN(home!$E$7)>0,instruments!C34=home!$E$7,TRUE) -> TRUE | I34: FALSE | J34: =+IF(LEN(home!$E$8)>0,instruments!E34=home!$E$8,TRUE) -> TRUE | K34: =+IF(LEN(home!$E$9)>0,instruments!F34=home!$E$9,TRUE) -> TRUE | L34: 3 | M34: =+COUNTIF($L$1:L34,"="&4) -> 4
A35: ZCPAMI.CM | B35: cmdty Michigan Corn Price Idx | C35: Corn | D35: Cash | E35: Michigan | F35: State | G35: Michigan | H35: =+IF(LEN(home!$E$7)>0,instruments!C35=home!$E$7,TRUE) -> TRUE | I35: TRUE | J35: =+IF(LEN(home!$E$8)>0,instruments!E35=home!$E$8,TRUE) -> TRUE | K35: =+IF(LEN(home!$E$9)>0,instruments!F35=home!$E$9,TRUE) -> TRUE | L35: 4 | M35: =+COUNTIF($L$1:L35,"="&4) -> 5
A36: ZSBAMI.CM | B36: cmdty Michigan Soybean Basis Idx | C36: Soybean | D36: Basis | E36: Michigan | F36: State | G36: Michigan | H36: =+IF(LEN(home!$E$7)>0,instruments!C36=home!$E$7,TRUE) -> FALSE | I36: FALSE | J36: =+IF(LEN(home!$E$8)>0,instruments!E36=home!$E$8,TRUE) -> TRUE | K36: =+IF(LEN(home!$E$9)>0,instruments!F36=home!$E$9,TRUE) -> TRUE | L36: 2 | M36: =+COUNTIF($L$1:L36,"="&4) -> 5
A37: ZSPAMI.CM | B37: cmdty Michigan Soybean Price Idx | C37: Soybean | D37: Cash | E37: Michigan | F37: State | G37: Michigan | H37: =+IF(LEN(home!$E$7)>0,instruments!C37=home!$E$7,TRUE) -> FALSE | I37: TRUE | J37: =+IF(LEN(home!$E$8)>0,instruments!E37=home!$E$8,TRUE) -> TRUE | K37: =+IF(LEN(home!$E$9)>0,instruments!F37=home!$E$9,TRUE) -> TRUE | L37: 3 | M37: =+COUNTIF($L$1:L37,"="&4) -> 5
A38: ZWBAMI.CM | B38: cmdty Michigan Soft Red Winter Wheat Basis Idx | C38: SRW | D38: Basis | E38: Michigan | F38: State | G38: Michigan | H38: =+IF(LEN(home!$E$7)>0,instruments!C38=home!$E$7,TRUE) -> FALSE | I38: FALSE | J38: =+IF(LEN(home!$E$8)>0,instruments!E38=home!$E$8,TRUE) -> TRUE | K38: =+IF(LEN(home!$E$9)>0,instruments!F38=home!$E$9,TRUE) -> TRUE | L38: 2 | M38: =+COUNTIF($L$1:L38,"="&4) -> 5
A39: ZWPAMI.CM | B39: cmdty Michigan Soft Red Winter Wheat Price Idx | C39: SRW | D39: Cash | E39: Michigan | F39: State | G39: Michigan | H39: =+IF(LEN(home!$E$7)>0,instruments!C39=home!$E$7,TRUE) -> FALSE | I39: TRUE | J39: =+IF(LEN(home!$E$8)>0,instruments!E39=home!$E$8,TRUE) -> TRUE | K39: =+IF(LEN(home!$E$9)>0,instruments!F39=home!$E$9,TRUE) -> TRUE | L39: 3 | M39: =+COUNTIF($L$1:L39,"="&4) -> 5
A40: MWBAMN.CM | B40: cmdty Minnesota Spring Wheat Basis Idx | C40: Spring Wheat | D40: Basis | E40: Minnesota | F40: State | G40: Minnesota | H40: =+IF(LEN(home!$E$7)>0,instruments!C40=home!$E$7,TRUE) -> FALSE | I40: FALSE | J40: =+IF(LEN(home!$E$8)>0,instruments!E40=home!$E$8,TRUE) -> TRUE | K40: =+IF(LEN(home!$E$9)>0,instruments!F40=home!$E$9,TRUE) -> TRUE | L40: 2 | M40: =+COUNTIF($L$1:L40,"="&4) -> 5
A41: MWPAMN.CM | B41: cmdty Minnesota Spring Wheat Price Idx | C41: Spring Wheat | D41: Cash | E41: Minnesota | F41: State | G41: Minnesota | H41: =+IF(LEN(home!$E$7)>0,instruments!C41=home!$E$7,TRUE) -> FALSE | I41: TRUE | J41: =+IF(LEN(home!$E$8)>0,instruments!E41=home!$E$8,TRUE) -> TRUE | K41: =+IF(LEN(home!$E$9)>0,instruments!F41=home!$E$9,TRUE) -> TRUE | L41: 3 | M41: =+COUNTIF($L$1:L41,"="&4) -> 5
A42: ZCBAMN.CM | B42: cmdty Minnesota Corn Basis Idx | C42: Corn | D42: Basis | E42: Minnesota | F42: State | G42: Minnesota | H42: =+IF(LEN(home!$E$7)>0,instruments!C42=home!$E$7,TRUE) -> TRUE | I42: FALSE | J42: =+IF(LEN(home!$E$8)>0,instruments!E42=home!$E$8,TRUE) -> TRUE | K42: =+IF(LEN(home!$E$9)>0,instruments!F42=home!$E$9,TRUE) -> TRUE | L42: 3 | M42: =+COUNTIF($L$1:L42,"="&4) -> 5
A43: ZCPAMN.CM | B43: cmdty Minnesota Corn Price Idx | C43: Corn | D43: Cash | E43: Minnesota | F43: State | G43: Minnesota | H43: =+IF(LEN(home!$E$7)>0,instruments!C43=home!$E$7,TRUE) -> TRUE | I43: TRUE | J43: =+IF(LEN(home!$E$8)>0,instruments!E43=home!$E$8,TRUE) -> TRUE | K43: =+IF(LEN(home!$E$9)>0,instruments!F43=home!$E$9,TRUE) -> TRUE | L43: 4 | M43: =+COUNTIF($L$1:L43,"="&4) -> 6
A44: ZSBAMN.CM | B44: cmdty Minnesota Soybean Basis Idx | C44: Soybean | D44: Basis | E44: Minnesota | F44: State | G44: Minnesota | H44: =+IF(LEN(home!$E$7)>0,instruments!C44=home!$E$7,TRUE) -> FALSE | I44: FALSE | J44: =+IF(LEN(home!$E$8)>0,instruments!E44=home!$E$8,TRUE) -> TRUE | K44: =+IF(LEN(home!$E$9)>0,instruments!F44=home!$E$9,TRUE) -> TRUE | L44: 2 | M44: =+COUNTIF($L$1:L44,"="&4) -> 6
A45: ZSPAMN.CM | B45: cmdty Minnesota Soybean Price Idx | C45: Soybean | D45: Cash | E45: Minnesota | F45: State | G45: Minnesota | H45: =+IF(LEN(home!$E$7)>0,instruments!C45=home!$E$7,TRUE) -> FALSE | I45: TRUE | J45: =+IF(LEN(home!$E$8)>0,instruments!E45=home!$E$8,TRUE) -> TRUE | K45: =+IF(LEN(home!$E$9)>0,instruments!F45=home!$E$9,TRUE) -> TRUE | L45: 3 | M45: =+COUNTIF($L$1:L45,"="&4) -> 6
A46: ZCBAMO.CM | B46: cmdty Missouri Corn Basis Idx | C46: Corn | D46: Basis | E46: Missouri | F46: State | G46: Missouri | H46: =+IF(LEN(home!$E$7)>0,instruments!C46=home!$E$7,TRUE) -> TRUE | I46: FALSE | J46: =+IF(LEN(home!$E$8)>0,instruments!E46=home!$E$8,TRUE) -> TRUE | K46: =+IF(LEN(home!$E$9)>0,instruments!F46=home!$E$9,TRUE) -> TRUE | L46: 3 | M46: =+COUNTIF($L$1:L46,"="&4) -> 6
A47: ZCPAMO.CM | B47: cmdty Missouri Corn Price Idx | C47: Corn | D47: Cash | E47: Missouri | F47: State | G47: Missouri | H47: =+IF(LEN(home!$E$7)>0,instruments!C47=home!$E$7,TRUE) -> TRUE | I47: TRUE | J47: =+IF(LEN(home!$E$8)>0,instruments!E47=home!$E$8,TRUE) -> TRUE | K47: =+IF(LEN(home!$E$9)>0,instruments!F47=home!$E$9,TRUE) -> TRUE | L47: 4 | M47: =+COUNTIF($L$1:L47,"="&4) -> 7
A48: ZSBAMO.CM | B48: cmdty Missouri Soybean Basis Idx | C48: Soybean | D48: Basis | E48: Missouri | F48: State | G48: Missouri | H48: =+IF(LEN(home!$E$7)>0,instruments!C48=home!$E$7,TRUE) -> FALSE | I48: FALSE | J48: =+IF(LEN(home!$E$8)>0,instruments!E48=home!$E$8,TRUE) -> TRUE | K48: =+IF(LEN(home!$E$9)>0,instruments!F48=home!$E$9,TRUE) -> TRUE | L48: 2 | M48: =+COUNTIF($L$1:L48,"="&4) -> 7
A49: ZSPAMO.CM | B49: cmdty Missouri Soybean Price Idx | C49: Soybean | D49: Cash | E49: Missouri | F49: State | G49: Missouri | H49: =+IF(LEN(home!$E$7)>0,instruments!C49=home!$E$7,TRUE) -> FALSE | I49: TRUE | J49: =+IF(LEN(home!$E$8)>0,instruments!E49=home!$E$8,TRUE) -> TRUE | K49: =+IF(LEN(home!$E$9)>0,instruments!F49=home!$E$9,TRUE) -> TRUE | L49: 3 | M49: =+COUNTIF($L$1:L49,"="&4) -> 7
A50: ZWBAMO.CM | B50: cmdty Missouri Soft Red Winter Wheat Basis Idx | C50: SRW | D50: Basis | E50: Missouri | F50: State | G50: Missouri | H50: =+IF(LEN(home!$E$7)>0,instruments!C50=home!$E$7,TRUE) -> FALSE | I50: FALSE | J50: =+IF(LEN(home!$E$8)>0,instruments!E50=home!$E$8,TRUE) -> TRUE | K50: =+IF(LEN(home!$E$9)>0,instruments!F50=home!$E$9,TRUE) -> TRUE | L50: 2 | M50: =+COUNTIF($L$1:L50,"="&4) -> 7
A51: ZWPAMO.CM | B51: cmdty Missouri Soft Red Winter Wheat Price Idx | C51: SRW | D51: Cash | E51: Missouri | F51: State | G51: Missouri | H51: =+IF(LEN(home!$E$7)>0,instruments!C51=home!$E$7,TRUE) -> FALSE | I51: TRUE | J51: =+IF(LEN(home!$E$8)>0,instruments!E51=home!$E$8,TRUE) -> TRUE | K51: =+IF(LEN(home!$E$9)>0,instruments!F51=home!$E$9,TRUE) -> TRUE | L51: 3 | M51: =+COUNTIF($L$1:L51,"="&4) -> 7
A52: KEBANE.CM | B52: cmdty Nebraska Hard Red Winter Wheat Basis Idx | C52: HRW | D52: Basis | E52: Nebraska | F52: State | G52: Nebraska | H52: =+IF(LEN(home!$E$7)>0,instruments!C52=home!$E$7,TRUE) -> FALSE | I52: FALSE | J52: =+IF(LEN(home!$E$8)>0,instruments!E52=home!$E$8,TRUE) -> TRUE | K52: =+IF(LEN(home!$E$9)>0,instruments!F52=home!$E$9,TRUE) -> TRUE | L52: 2 | M52: =+COUNTIF($L$1:L52,"="&4) -> 7
A53: KEPANE.CM | B53: cmdty Nebraska Hard Red Winter Wheat Price Idx | C53: HRW | D53: Cash | E53: Nebraska | F53: State | G53: Nebraska | H53: =+IF(LEN(home!$E$7)>0,instruments!C53=home!$E$7,TRUE) -> FALSE | I53: TRUE | J53: =+IF(LEN(home!$E$8)>0,instruments!E53=home!$E$8,TRUE) -> TRUE | K53: =+IF(LEN(home!$E$9)>0,instruments!F53=home!$E$9,TRUE) -> TRUE | L53: 3 | M53: =+COUNTIF($L$1:L53,"="&4) -> 7
A54: ZCBANE.CM | B54: cmdty Nebraska Corn Basis Idx | C54: Corn | D54: Basis | E54: Nebraska | F54: State | G54: Nebraska | H54: =+IF(LEN(home!$E$7)>0,instruments!C54=home!$E$7,TRUE) -> TRUE | I54: FALSE | J54: =+IF(LEN(home!$E$8)>0,instruments!E54=home!$E$8,TRUE) -> TRUE | K54: =+IF(LEN(home!$E$9)>0,instruments!F54=home!$E$9,TRUE) -> TRUE | L54: 3 | M54: =+COUNTIF($L$1:L54,"="&4) -> 7
A55: ZCPANE.CM | B55: cmdty Nebraska Corn Price Idx | C55: Corn | D55: Cash | E55: Nebraska | F55: State | G55: Nebraska | H55: =+IF(LEN(home!$E$7)>0,instruments!C55=home!$E$7,TRUE) -> TRUE | I55: TRUE | J55: =+IF(LEN(home!$E$8)>0,instruments!E55=home!$E$8,TRUE) -> TRUE | K55: =+IF(LEN(home!$E$9)>0,instruments!F55=home!$E$9,TRUE) -> TRUE | L55: 4 | M55: =+COUNTIF($L$1:L55,"="&4) -> 8
A56: ZSBANE.CM | B56: cmdty Nebraska Soybean Basis Idx | C56: Soybean | D56: Basis | E56: Nebraska | F56: State | G56: Nebraska | H56: =+IF(LEN(home!$E$7)>0,instruments!C56=home!$E$7,TRUE) -> FALSE | I56: FALSE | J56: =+IF(LEN(home!$E$8)>0,instruments!E56=home!$E$8,TRUE) -> TRUE | K56: =+IF(LEN(home!$E$9)>0,instruments!F56=home!$E$9,TRUE) -> TRUE | L56: 2 | M56: =+COUNTIF($L$1:L56,"="&4) -> 8
A57: ZSPANE.CM | B57: cmdty Nebraska Soybean Price Idx | C57: Soybean | D57: Cash | E57: Nebraska | F57: State | G57: Nebraska | H57: =+IF(LEN(home!$E$7)>0,instruments!C57=home!$E$7,TRUE) -> FALSE | I57: TRUE | J57: =+IF(LEN(home!$E$8)>0,instruments!E57=home!$E$8,TRUE) -> TRUE | K57: =+IF(LEN(home!$E$9)>0,instruments!F57=home!$E$9,TRUE) -> TRUE | L57: 3 | M57: =+COUNTIF($L$1:L57,"="&4) -> 8
A58: ZCBANC.CM | B58: cmdty North Carolina Corn Basis Idx | C58: Corn | D58: Basis | E58: North Carolina | F58: State | G58: North Carolina | H58: =+IF(LEN(home!$E$7)>0,instruments!C58=home!$E$7,TRUE) -> TRUE | I58: FALSE | J58: =+IF(LEN(home!$E$8)>0,instruments!E58=home!$E$8,TRUE) -> TRUE | K58: =+IF(LEN(home!$E$9)>0,instruments!F58=home!$E$9,TRUE) -> TRUE | L58: 3 | M58: =+COUNTIF($L$1:L58,"="&4) -> 8
A59: ZCPANC.CM | B59: cmdty North Carolina Corn Price Idx | C59: Corn | D59: Cash | E59: North Carolina | F59: State | G59: North Carolina | H59: =+IF(LEN(home!$E$7)>0,instruments!C59=home!$E$7,TRUE) -> TRUE | I59: TRUE | J59: =+IF(LEN(home!$E$8)>0,instruments!E59=home!$E$8,TRUE) -> TRUE | K59: =+IF(LEN(home!$E$9)>0,instruments!F59=home!$E$9,TRUE) -> TRUE | L59: 4 | M59: =+COUNTIF($L$1:L59,"="&4) -> 9
A60: MWBAND.CM | B60: cmdty North Dakota Spring Wheat Basis Idx | C60: Spring Wheat | D60: Basis | E60: North Dakota | F60: State | G60: North Dakota | H60: =+IF(LEN(home!$E$7)>0,instruments!C60=home!$E$7,TRUE) -> FALSE | I60: FALSE | J60: =+IF(LEN(home!$E$8)>0,instruments!E60=home!$E$8,TRUE) -> TRUE | K60: =+IF(LEN(home!$E$9)>0,instruments!F60=home!$E$9,TRUE) -> TRUE | L60: 2 | M60: =+COUNTIF($L$1:L60,"="&4) -> 9
A61: MWPAND.CM | B61: cmdty North Dakota Spring Wheat Price Idx | C61: Spring Wheat | D61: Cash | E61: North Dakota | F61: State | G61: North Dakota | H61: =+IF(LEN(home!$E$7)>0,instruments!C61=home!$E$7,TRUE) -> FALSE | I61: TRUE | J61: =+IF(LEN(home!$E$8)>0,instruments!E61=home!$E$8,TRUE) -> TRUE | K61: =+IF(LEN(home!$E$9)>0,instruments!F61=home!$E$9,TRUE) -> TRUE | L61: 3 | M61: =+COUNTIF($L$1:L61,"="&4) -> 9
A62: ZCBAND.CM | B62: cmdty North Dakota Corn Basis Idx | C62: Corn | D62: Basis | E62: North Dakota | F62: State | G62: North Dakota | H62: =+IF(LEN(home!$E$7)>0,instruments!C62=home!$E$7,TRUE) -> TRUE | I62: FALSE | J62: =+IF(LEN(home!$E$8)>0,instruments!E62=home!$E$8,TRUE) -> TRUE | K62: =+IF(LEN(home!$E$9)>0,instruments!F62=home!$E$9,TRUE) -> TRUE | L62: 3 | M62: =+COUNTIF($L$1:L62,"="&4) -> 9
A63: ZCPAND.CM | B63: cmdty North Dakota Corn Price Idx | C63: Corn | D63: Cash | E63: North Dakota | F63: State | G63: North Dakota | H63: =+IF(LEN(home!$E$7)>0,instruments!C63=home!$E$7,TRUE) -> TRUE | I63: TRUE | J63: =+IF(LEN(home!$E$8)>0,instruments!E63=home!$E$8,TRUE) -> TRUE | K63: =+IF(LEN(home!$E$9)>0,instruments!F63=home!$E$9,TRUE) -> TRUE | L63: 4 | M63: =+COUNTIF($L$1:L63,"="&4) -> 10
A64: ZSBAND.CM | B64: cmdty North Dakota Soybean Basis Idx | C64: Soybean | D64: Basis | E64: North Dakota | F64: State | G64: North Dakota | H64: =+IF(LEN(home!$E$7)>0,instruments!C64=home!$E$7,TRUE) -> FALSE | I64: FALSE | J64: =+IF(LEN(home!$E$8)>0,instruments!E64=home!$E$8,TRUE) -> TRUE | K64: =+IF(LEN(home!$E$9)>0,instruments!F64=home!$E$9,TRUE) -> TRUE | L64: 2 | M64: =+COUNTIF($L$1:L64,"="&4) -> 10
A65: ZSPAND.CM | B65: cmdty North Dakota Soybean Price Idx | C65: Soybean | D65: Cash | E65: North Dakota | F65: State | G65: North Dakota | H65: =+IF(LEN(home!$E$7)>0,instruments!C65=home!$E$7,TRUE) -> FALSE | I65: TRUE | J65: =+IF(LEN(home!$E$8)>0,instruments!E65=home!$E$8,TRUE) -> TRUE | K65: =+IF(LEN(home!$E$9)>0,instruments!F65=home!$E$9,TRUE) -> TRUE | L65: 3 | M65: =+COUNTIF($L$1:L65,"="&4) -> 10
A66: ZCBAOH.CM | B66: cmdty Ohio Corn Basis Idx | C66: Corn | D66: Basis | E66: Ohio | F66: State | G66: Ohio | H66: =+IF(LEN(home!$E$7)>0,instruments!C66=home!$E$7,TRUE) -> TRUE | I66: FALSE | J66: =+IF(LEN(home!$E$8)>0,instruments!E66=home!$E$8,TRUE) -> TRUE | K66: =+IF(LEN(home!$E$9)>0,instruments!F66=home!$E$9,TRUE) -> TRUE | L66: =+COUNTIF(H66:K66,TRUE) -> 3 | M66: =+COUNTIF($L$1:L66,"="&4) -> 10
A67: ZCPAOH.CM | B67: cmdty Ohio Corn Price Idx | C67: Corn | D67: Cash | E67: Ohio | F67: State | G67: Ohio | H67: =+IF(LEN(home!$E$7)>0,instruments!C67=home!$E$7,TRUE) -> TRUE | I67: =+D67="Cash" -> TRUE | J67: =+IF(LEN(home!$E$8)>0,instruments!E67=home!$E$8,TRUE) -> TRUE | K67: =+IF(LEN(home!$E$9)>0,instruments!F67=home!$E$9,TRUE) -> TRUE | L67: 4 | M67: =+COUNTIF($L$1:L67,"="&4) -> 11
A68: ZSBAOH.CM | B68: cmdty Ohio Soybean Basis Idx | C68: Soybean | D68: Basis | E68: Ohio | F68: State | G68: Ohio | H68: =+IF(LEN(home!$E$7)>0,instruments!C68=home!$E$7,TRUE) -> FALSE | I68: FALSE | J68: =+IF(LEN(home!$E$8)>0,instruments!E68=home!$E$8,TRUE) -> TRUE | K68: =+IF(LEN(home!$E$9)>0,instruments!F68=home!$E$9,TRUE) -> TRUE | L68: 2 | M68: =+COUNTIF($L$1:L68,"="&4) -> 11
A69: ZSPAOH.CM | B69: cmdty Ohio Soybean Price Idx | C69: Soybean | D69: Cash | E69: Ohio | F69: State | G69: Ohio | H69: =+IF(LEN(home!$E$7)>0,instruments!C69=home!$E$7,TRUE) -> FALSE | I69: TRUE | J69: =+IF(LEN(home!$E$8)>0,instruments!E69=home!$E$8,TRUE) -> TRUE | K69: =+IF(LEN(home!$E$9)>0,instruments!F69=home!$E$9,TRUE) -> TRUE | L69: 3 | M69: =+COUNTIF($L$1:L69,"="&4) -> 11
A70: ZWBAOH.CM | B70: cmdty Ohio Soft Red Winter Wheat Basis Idx | C70: SRW | D70: Basis | E70: Ohio | F70: State | G70: Ohio | H70: =+IF(LEN(home!$E$7)>0,instruments!C70=home!$E$7,TRUE) -> FALSE | I70: FALSE | J70: =+IF(LEN(home!$E$8)>0,instruments!E70=home!$E$8,TRUE) -> TRUE | K70: =+IF(LEN(home!$E$9)>0,instruments!F70=home!$E$9,TRUE) -> TRUE | L70: 2 | M70: =+COUNTIF($L$1:L70,"="&4) -> 11
A71: ZWPAOH.CM | B71: cmdty Ohio Soft Red Winter Wheat Price Idx | C71: SRW | D71: Cash | E71: Ohio | F71: State | G71: Ohio | H71: =+IF(LEN(home!$E$7)>0,instruments!C71=home!$E$7,TRUE) -> FALSE | I71: TRUE | J71: =+IF(LEN(home!$E$8)>0,instruments!E71=home!$E$8,TRUE) -> TRUE | K71: =+IF(LEN(home!$E$9)>0,instruments!F71=home!$E$9,TRUE) -> TRUE | L71: 3 | M71: =+COUNTIF($L$1:L71,"="&4) -> 11
A72: KEBAOK.CM | B72: cmdty Oklahoma Hard Red Winter Wheat Basis Idx | C72: HRW | D72: Basis | E72: Oklahoma | F72: State | G72: Oklahoma | H72: =+IF(LEN(home!$E$7)>0,instruments!C72=home!$E$7,TRUE) -> FALSE | I72: FALSE | J72: =+IF(LEN(home!$E$8)>0,instruments!E72=home!$E$8,TRUE) -> TRUE | K72: =+IF(LEN(home!$E$9)>0,instruments!F72=home!$E$9,TRUE) -> TRUE | L72: 2 | M72: =+COUNTIF($L$1:L72,"="&4) -> 11
A73: KEPAOK.CM | B73: cmdty Oklahoma Hard Red Winter Wheat Price Idx | C73: HRW | D73: Cash | E73: Oklahoma | F73: State | G73: Oklahoma | H73: =+IF(LEN(home!$E$7)>0,instruments!C73=home!$E$7,TRUE) -> FALSE | I73: TRUE | J73: =+IF(LEN(home!$E$8)>0,instruments!E73=home!$E$8,TRUE) -> TRUE | K73: =+IF(LEN(home!$E$9)>0,instruments!F73=home!$E$9,TRUE) -> TRUE | L73: 3 | M73: =+COUNTIF($L$1:L73,"="&4) -> 11
A74: ZCBAOK.CM | B74: cmdty Oklahoma Corn Basis Idx | C74: Corn | D74: Basis | E74: Oklahoma | F74: State | G74: Oklahoma | H74: =+IF(LEN(home!$E$7)>0,instruments!C74=home!$E$7,TRUE) -> TRUE | I74: FALSE | J74: =+IF(LEN(home!$E$8)>0,instruments!E74=home!$E$8,TRUE) -> TRUE | K74: =+IF(LEN(home!$E$9)>0,instruments!F74=home!$E$9,TRUE) -> TRUE | L74: 3 | M74: =+COUNTIF($L$1:L74,"="&4) -> 11
A75: ZCPAOK.CM | B75: cmdty Oklahoma Corn Price Idx | C75: Corn | D75: Cash | E75: Oklahoma | F75: State | G75: Oklahoma | H75: =+IF(LEN(home!$E$7)>0,instruments!C75=home!$E$7,TRUE) -> TRUE | I75: TRUE | J75: =+IF(LEN(home!$E$8)>0,instruments!E75=home!$E$8,TRUE) -> TRUE | K75: =+IF(LEN(home!$E$9)>0,instruments!F75=home!$E$9,TRUE) -> TRUE | L75: 4 | M75: =+COUNTIF($L$1:L75,"="&4) -> 12
A76: ZSBAOK.CM | B76: cmdty Oklahoma Soybean Basis Idx | C76: Soybean | D76: Basis | E76: Oklahoma | F76: State | G76: Oklahoma | H76: =+IF(LEN(home!$E$7)>0,instruments!C76=home!$E$7,TRUE) -> FALSE | I76: FALSE | J76: =+IF(LEN(home!$E$8)>0,instruments!E76=home!$E$8,TRUE) -> TRUE | K76: =+IF(LEN(home!$E$9)>0,instruments!F76=home!$E$9,TRUE) -> TRUE | L76: 2 | M76: =+COUNTIF($L$1:L76,"="&4) -> 12
A77: ZSPAOK.CM | B77: cmdty Oklahoma Soybean Price Idx | C77: Soybean | D77: Cash | E77: Oklahoma | F77: State | G77: Oklahoma | H77: =+IF(LEN(home!$E$7)>0,instruments!C77=home!$E$7,TRUE) -> FALSE | I77: TRUE | J77: =+IF(LEN(home!$E$8)>0,instruments!E77=home!$E$8,TRUE) -> TRUE | K77: =+IF(LEN(home!$E$9)>0,instruments!F77=home!$E$9,TRUE) -> TRUE | L77: 3 | M77: =+COUNTIF($L$1:L77,"="&4) -> 12
A78: KEBASD.CM | B78: cmdty South Dakota Hard Red Winter Wheat Basis Idx | C78: HRW | D78: Basis | E78: South Dakota | F78: State | G78: South Dakota | H78: =+IF(LEN(home!$E$7)>0,instruments!C78=home!$E$7,TRUE) -> FALSE | I78: FALSE | J78: =+IF(LEN(home!$E$8)>0,instruments!E78=home!$E$8,TRUE) -> TRUE | K78: =+IF(LEN(home!$E$9)>0,instruments!F78=home!$E$9,TRUE) -> TRUE | L78: 2 | M78: =+COUNTIF($L$1:L78,"="&4) -> 12
A79: KEPASD.CM | B79: cmdty South Dakota Hard Red Winter Wheat Price Idx | C79: HRW | D79: Cash | E79: South Dakota | F79: State | G79: South Dakota | H79: =+IF(LEN(home!$E$7)>0,instruments!C79=home!$E$7,TRUE) -> FALSE | I79: TRUE | J79: =+IF(LEN(home!$E$8)>0,instruments!E79=home!$E$8,TRUE) -> TRUE | K79: =+IF(LEN(home!$E$9)>0,instruments!F79=home!$E$9,TRUE) -> TRUE | L79: 3 | M79: =+COUNTIF($L$1:L79,"="&4) -> 12
A80: MWBASD.CM | B80: cmdty South Dakota Spring Wheat Basis Idx | C80: Spring Wheat | D80: Basis | E80: South Dakota | F80: State | G80: South Dakota | H80: =+IF(LEN(home!$E$7)>0,instruments!C80=home!$E$7,TRUE) -> FALSE | I80: FALSE | J80: =+IF(LEN(home!$E$8)>0,instruments!E80=home!$E$8,TRUE) -> TRUE | K80: =+IF(LEN(home!$E$9)>0,instruments!F80=home!$E$9,TRUE) -> TRUE | L80: 2 | M80: =+COUNTIF($L$1:L80,"="&4) -> 12
A81: MWPASD.CM | B81: cmdty South Dakota Spring Wheat Price Idx | C81: Spring Wheat | D81: Cash | E81: South Dakota | F81: State | G81: South Dakota | H81: =+IF(LEN(home!$E$7)>0,instruments!C81=home!$E$7,TRUE) -> FALSE | I81: TRUE | J81: =+IF(LEN(home!$E$8)>0,instruments!E81=home!$E$8,TRUE) -> TRUE | K81: =+IF(LEN(home!$E$9)>0,instruments!F81=home!$E$9,TRUE) -> TRUE | L81: 3 | M81: =+COUNTIF($L$1:L81,"="&4) -> 12
A82: ZCBASD.CM | B82: cmdty South Dakota Corn Basis Idx | C82: Corn | D82: Basis | E82: South Dakota | F82: State | G82: South Dakota | H82: =+IF(LEN(home!$E$7)>0,instruments!C82=home!$E$7,TRUE) -> TRUE | I82: FALSE | J82: =+IF(LEN(home!$E$8)>0,instruments!E82=home!$E$8,TRUE) -> TRUE | K82: =+IF(LEN(home!$E$9)>0,instruments!F82=home!$E$9,TRUE) -> TRUE | L82: 3 | M82: =+COUNTIF($L$1:L82,"="&4) -> 12
A83: ZCPASD.CM | B83: cmdty South Dakota Corn Price Idx | C83: Corn | D83: Cash | E83: South Dakota | F83: State | G83: South Dakota | H83: =+IF(LEN(home!$E$7)>0,instruments!C83=home!$E$7,TRUE) -> TRUE | I83: TRUE | J83: =+IF(LEN(home!$E$8)>0,instruments!E83=home!$E$8,TRUE) -> TRUE | K83: =+IF(LEN(home!$E$9)>0,instruments!F83=home!$E$9,TRUE) -> TRUE | L83: 4 | M83: =+COUNTIF($L$1:L83,"="&4) -> 13
A84: ZSBASD.CM | B84: cmdty South Dakota Soybean Basis Idx | C84: Soybean | D84: Basis | E84: South Dakota | F84: State | G84: South Dakota | H84: =+IF(LEN(home!$E$7)>0,instruments!C84=home!$E$7,TRUE) -> FALSE | I84: FALSE | J84: =+IF(LEN(home!$E$8)>0,instruments!E84=home!$E$8,TRUE) -> TRUE | K84: =+IF(LEN(home!$E$9)>0,instruments!F84=home!$E$9,TRUE) -> TRUE | L84: 2 | M84: =+COUNTIF($L$1:L84,"="&4) -> 13
A85: ZSPASD.CM | B85: cmdty South Dakota Soybean Price Idx | C85: Soybean | D85: Cash | E85: South Dakota | F85: State | G85: South Dakota | H85: =+IF(LEN(home!$E$7)>0,instruments!C85=home!$E$7,TRUE) -> FALSE | I85: TRUE | J85: =+IF(LEN(home!$E$8)>0,instruments!E85=home!$E$8,TRUE) -> TRUE | K85: =+IF(LEN(home!$E$9)>0,instruments!F85=home!$E$9,TRUE) -> TRUE | L85: 3 | M85: =+COUNTIF($L$1:L85,"="&4) -> 13
A86: KEBATX.CM | B86: cmdty Texas Hard Red Winter Wheat Basis Idx | C86: HRW | D86: Basis | E86: Texas | F86: State | G86: Texas | H86: =+IF(LEN(home!$E$7)>0,instruments!C86=home!$E$7,TRUE) -> FALSE | I86: FALSE | J86: =+IF(LEN(home!$E$8)>0,instruments!E86=home!$E$8,TRUE) -> TRUE | K86: =+IF(LEN(home!$E$9)>0,instruments!F86=home!$E$9,TRUE) -> TRUE | L86: 2 | M86: =+COUNTIF($L$1:L86,"="&4) -> 13
A87: KEPATX.CM | B87: cmdty Texas Hard Red Winter Wheat Price Idx | C87: HRW | D87: Cash | E87: Texas | F87: State | G87: Texas | H87: =+IF(LEN(home!$E$7)>0,instruments!C87=home!$E$7,TRUE) -> FALSE | I87: TRUE | J87: =+IF(LEN(home!$E$8)>0,instruments!E87=home!$E$8,TRUE) -> TRUE | K87: =+IF(LEN(home!$E$9)>0,instruments!F87=home!$E$9,TRUE) -> TRUE | L87: 3 | M87: =+COUNTIF($L$1:L87,"="&4) -> 13
A88: ZCBATX.CM | B88: cmdty Texas Corn Basis Idx | C88: Corn | D88: Basis | E88: Texas | F88: State | G88: Texas | H88: =+IF(LEN(home!$E$7)>0,instruments!C88=home!$E$7,TRUE) -> TRUE | I88: FALSE | J88: =+IF(LEN(home!$E$8)>0,instruments!E88=home!$E$8,TRUE) -> TRUE | K88: =+IF(LEN(home!$E$9)>0,instruments!F88=home!$E$9,TRUE) -> TRUE | L88: 3 | M88: =+COUNTIF($L$1:L88,"="&4) -> 13
A89: ZCPATX.CM | B89: cmdty Texas Corn Price Idx | C89: Corn | D89: Cash | E89: Texas | F89: State | G89: Texas | H89: =+IF(LEN(home!$E$7)>0,instruments!C89=home!$E$7,TRUE) -> TRUE | I89: TRUE | J89: =+IF(LEN(home!$E$8)>0,instruments!E89=home!$E$8,TRUE) -> TRUE | K89: =+IF(LEN(home!$E$9)>0,instruments!F89=home!$E$9,TRUE) -> TRUE | L89: 4 | M89: =+COUNTIF($L$1:L89,"="&4) -> 14
A90: ZCBAWI.CM | B90: cmdty Wisconsin Corn Basis Idx | C90: Corn | D90: Basis | E90: Wisconsin | F90: State | G90: Wisconsin | H90: =+IF(LEN(home!$E$7)>0,instruments!C90=home!$E$7,TRUE) -> TRUE | I90: FALSE | J90: =+IF(LEN(home!$E$8)>0,instruments!E90=home!$E$8,TRUE) -> TRUE | K90: =+IF(LEN(home!$E$9)>0,instruments!F90=home!$E$9,TRUE) -> TRUE | L90: 3 | M90: =+COUNTIF($L$1:L90,"="&4) -> 14
A91: ZCPAWI.CM | B91: cmdty Wisconsin Corn Price Idx | C91: Corn | D91: Cash | E91: Wisconsin | F91: State | G91: Wisconsin | H91: =+IF(LEN(home!$E$7)>0,instruments!C91=home!$E$7,TRUE) -> TRUE | I91: TRUE | J91: =+IF(LEN(home!$E$8)>0,instruments!E91=home!$E$8,TRUE) -> TRUE | K91: =+IF(LEN(home!$E$9)>0,instruments!F91=home!$E$9,TRUE) -> TRUE | L91: 4 | M91: =+COUNTIF($L$1:L91,"="&4) -> 15
A92: ZSBAWI.CM | B92: cmdty Wisconsin Soybean Basis Idx | C92: Soybean | D92: Basis | E92: Wisconsin | F92: State | G92: Wisconsin | H92: =+IF(LEN(home!$E$7)>0,instruments!C92=home!$E$7,TRUE) -> FALSE | I92: FALSE | J92: =+IF(LEN(home!$E$8)>0,instruments!E92=home!$E$8,TRUE) -> TRUE | K92: =+IF(LEN(home!$E$9)>0,instruments!F92=home!$E$9,TRUE) -> TRUE | L92: 2 | M92: =+COUNTIF($L$1:L92,"="&4) -> 15
A93: ZSPAWI.CM | B93: cmdty Wisconsin Soybean Price Idx | C93: Soybean | D93: Cash | E93: Wisconsin | F93: State | G93: Wisconsin | H93: =+IF(LEN(home!$E$7)>0,instruments!C93=home!$E$7,TRUE) -> FALSE | I93: TRUE | J93: =+IF(LEN(home!$E$8)>0,instruments!E93=home!$E$8,TRUE) -> TRUE | K93: =+IF(LEN(home!$E$9)>0,instruments!F93=home!$E$9,TRUE) -> TRUE | L93: 3 | M93: =+COUNTIF($L$1:L93,"="&4) -> 15
A94: ZWBAWI.CM | B94: cmdty Wisconsin Soft Red Winter Wheat Basis Idx | C94: SRW | D94: Basis | E94: Wisconsin | F94: State | G94: Wisconsin | H94: =+IF(LEN(home!$E$7)>0,instruments!C94=home!$E$7,TRUE) -> FALSE | I94: FALSE | J94: =+IF(LEN(home!$E$8)>0,instruments!E94=home!$E$8,TRUE) -> TRUE | K94: =+IF(LEN(home!$E$9)>0,instruments!F94=home!$E$9,TRUE) -> TRUE | L94: 2 | M94: =+COUNTIF($L$1:L94,"="&4) -> 15
A95: ZWPAWI.CM | B95: cmdty Wisconsin Soft Red Winter Wheat Price Idx | C95: SRW | D95: Cash | E95: Wisconsin | F95: State | G95: Wisconsin | H95: =+IF(LEN(home!$E$7)>0,instruments!C95=home!$E$7,TRUE) -> FALSE | I95: TRUE | J95: =+IF(LEN(home!$E$8)>0,instruments!E95=home!$E$8,TRUE) -> TRUE | K95: =+IF(LEN(home!$E$9)>0,instruments!F95=home!$E$9,TRUE) -> TRUE | L95: 3 | M95: =+COUNTIF($L$1:L95,"="&4) -> 15
A96: ZCBAIA10.CM | B96: cmdty IA CRD 10 Corn Basis Idx | C96: Corn | D96: Basis | E96: Iowa | F96: District | G96: IA CRD 10 | H96: =+IF(LEN(home!$E$7)>0,instruments!C96=home!$E$7,TRUE) -> TRUE | I96: FALSE | J96: =+IF(LEN(home!$E$8)>0,instruments!E96=home!$E$8,TRUE) -> TRUE | K96: =+IF(LEN(home!$E$9)>0,instruments!F96=home!$E$9,TRUE) -> FALSE | L96: 2 | M96: =+COUNTIF($L$1:L96,"="&4) -> 15
A97: ZCPAIA10.CM | B97: cmdty IA CRD 10 Corn Price Idx | C97: Corn | D97: Cash | E97: Iowa | F97: District | G97: IA CRD 10 | H97: =+IF(LEN(home!$E$7)>0,instruments!C97=home!$E$7,TRUE) -> TRUE | I97: TRUE | J97: =+IF(LEN(home!$E$8)>0,instruments!E97=home!$E$8,TRUE) -> TRUE | K97: =+IF(LEN(home!$E$9)>0,instruments!F97=home!$E$9,TRUE) -> FALSE | L97: 3 | M97: =+COUNTIF($L$1:L97,"="&4) -> 15
A98: ZSBAIA10.CM | B98: cmdty IA CRD 10 Soybean Basis Idx | C98: Soybean | D98: Basis | E98: Iowa | F98: District | G98: IA CRD 10 | H98: =+IF(LEN(home!$E$7)>0,instruments!C98=home!$E$7,TRUE) -> FALSE | I98: FALSE | J98: =+IF(LEN(home!$E$8)>0,instruments!E98=home!$E$8,TRUE) -> TRUE | K98: =+IF(LEN(home!$E$9)>0,instruments!F98=home!$E$9,TRUE) -> FALSE | L98: 1 | M98: =+COUNTIF($L$1:L98,"="&4) -> 15
A99: ZSPAIA10.CM | B99: cmdty IA CRD 10 Soybean Price Idx | C99: Soybean | D99: Cash | E99: Iowa | F99: District | G99: IA CRD 10 | H99: =+IF(LEN(home!$E$7)>0,instruments!C99=home!$E$7,TRUE) -> FALSE | I99: TRUE | J99: =+IF(LEN(home!$E$8)>0,instruments!E99=home!$E$8,TRUE) -> TRUE | K99: =+IF(LEN(home!$E$9)>0,instruments!F99=home!$E$9,TRUE) -> FALSE | L99: 2 | M99: =+COUNTIF($L$1:L99,"="&4) -> 15
A100: ZCBAIA20.CM | B100: cmdty IA CRD 20 Corn Basis Idx | C100: Corn | D100: Basis | E100: Iowa | F100: District | G100: IA CRD 20 | H100: =+IF(LEN(home!$E$7)>0,instruments!C100=home!$E$7,TRUE) -> TRUE | I100: FALSE | J100: =+IF(LEN(home!$E$8)>0,instruments!E100=home!$E$8,TRUE) -> TRUE | K100: =+IF(LEN(home!$E$9)>0,instruments!F100=home!$E$9,TRUE) -> FALSE | L100: 2 | M100: =+COUNTIF($L$1:L100,"="&4) -> 15
A101: ZCPAIA20.CM | B101: cmdty IA CRD 20 Corn Price Idx | C101: Corn | D101: Cash | E101: Iowa | F101: District | G101: IA CRD 20 | H101: =+IF(LEN(home!$E$7)>0,instruments!C101=home!$E$7,TRUE) -> TRUE | I101: TRUE | J101: =+IF(LEN(home!$E$8)>0,instruments!E101=home!$E$8,TRUE) -> TRUE | K101: =+IF(LEN(home!$E$9)>0,instruments!F101=home!$E$9,TRUE) -> FALSE | L101: 3 | M101: =+COUNTIF($L$1:L101,"="&4) -> 15
A102: ZSBAIA20.CM | B102: cmdty IA CRD 20 Soybean Basis Idx | C102: Soybean | D102: Basis | E102: Iowa | F102: District | G102: IA CRD 20 | H102: =+IF(LEN(home!$E$7)>0,instruments!C102=home!$E$7,TRUE) -> FALSE | I102: FALSE | J102: =+IF(LEN(home!$E$8)>0,instruments!E102=home!$E$8,TRUE) -> TRUE | K102: =+IF(LEN(home!$E$9)>0,instruments!F102=home!$E$9,TRUE) -> FALSE | L102: 1 | M102: =+COUNTIF($L$1:L102,"="&4) -> 15
A103: ZSPAIA20.CM | B103: cmdty IA CRD 20 Soybean Price Idx | C103: Soybean | D103: Cash | E103: Iowa | F103: District | G103: IA CRD 20 | H103: =+IF(LEN(home!$E$7)>0,instruments!C103=home!$E$7,TRUE) -> FALSE | I103: TRUE | J103: =+IF(LEN(home!$E$8)>0,instruments!E103=home!$E$8,TRUE) -> TRUE | K103: =+IF(LEN(home!$E$9)>0,instruments!F103=home!$E$9,TRUE) -> FALSE | L103: 2 | M103: =+COUNTIF($L$1:L103,"="&4) -> 15
A104: ZCBAIA30.CM | B104: cmdty IA CRD 30 Corn Basis Idx | C104: Corn | D104: Basis | E104: Iowa | F104: District | G104: IA CRD 30 | H104: =+IF(LEN(home!$E$7)>0,instruments!C104=home!$E$7,TRUE) -> TRUE | I104: FALSE | J104: =+IF(LEN(home!$E$8)>0,instruments!E104=home!$E$8,TRUE) -> TRUE | K104: =+IF(LEN(home!$E$9)>0,instruments!F104=home!$E$9,TRUE) -> FALSE | L104: 2 | M104: =+COUNTIF($L$1:L104,"="&4) -> 15
A105: ZCPAIA30.CM | B105: cmdty IA CRD 30 Corn Price Idx | C105: Corn | D105: Cash | E105: Iowa | F105: District | G105: IA CRD 30 | H105: =+IF(LEN(home!$E$7)>0,instruments!C105=home!$E$7,TRUE) -> TRUE | I105: TRUE | J105: =+IF(LEN(home!$E$8)>0,instruments!E105=home!$E$8,TRUE) -> TRUE | K105: =+IF(LEN(home!$E$9)>0,instruments!F105=home!$E$9,TRUE) -> FALSE | L105: 3 | M105: =+COUNTIF($L$1:L105,"="&4) -> 15
A106: ZSBAIA30.CM | B106: cmdty IA CRD 30 Soybean Basis Idx | C106: Soybean | D106: Basis | E106: Iowa | F106: District | G106: IA CRD 30 | H106: =+IF(LEN(home!$E$7)>0,instruments!C106=home!$E$7,TRUE) -> FALSE | I106: FALSE | J106: =+IF(LEN(home!$E$8)>0,instruments!E106=home!$E$8,TRUE) -> TRUE | K106: =+IF(LEN(home!$E$9)>0,instruments!F106=home!$E$9,TRUE) -> FALSE | L106: 1 | M106: =+COUNTIF($L$1:L106,"="&4) -> 15
A107: ZSPAIA30.CM | B107: cmdty IA CRD 30 Soybean Price Idx | C107: Soybean | D107: Cash | E107: Iowa | F107: District | G107: IA CRD 30 | H107: =+IF(LEN(home!$E$7)>0,instruments!C107=home!$E$7,TRUE) -> FALSE | I107: TRUE | J107: =+IF(LEN(home!$E$8)>0,instruments!E107=home!$E$8,TRUE) -> TRUE | K107: =+IF(LEN(home!$E$9)>0,instruments!F107=home!$E$9,TRUE) -> FALSE | L107: 2 | M107: =+COUNTIF($L$1:L107,"="&4) -> 15
A108: ZCBAIA40.CM | B108: cmdty IA CRD 40 Corn Basis Idx | C108: Corn | D108: Basis | E108: Iowa | F108: District | G108: IA CRD 40 | H108: =+IF(LEN(home!$E$7)>0,instruments!C108=home!$E$7,TRUE) -> TRUE | I108: FALSE | J108: =+IF(LEN(home!$E$8)>0,instruments!E108=home!$E$8,TRUE) -> TRUE | K108: =+IF(LEN(home!$E$9)>0,instruments!F108=home!$E$9,TRUE) -> FALSE | L108: 2 | M108: =+COUNTIF($L$1:L108,"="&4) -> 15
A109: ZCPAIA40.CM | B109: cmdty IA CRD 40 Corn Price Idx | C109: Corn | D109: Cash | E109: Iowa | F109: District | G109: IA CRD 40 | H109: =+IF(LEN(home!$E$7)>0,instruments!C109=home!$E$7,TRUE) -> TRUE | I109: TRUE | J109: =+IF(LEN(home!$E$8)>0,instruments!E109=home!$E$8,TRUE) -> TRUE | K109: =+IF(LEN(home!$E$9)>0,instruments!F109=home!$E$9,TRUE) -> FALSE | L109: 3 | M109: =+COUNTIF($L$1:L109,"="&4) -> 15
A110: ZSBAIA40.CM | B110: cmdty IA CRD 40 Soybean Basis Idx | C110: Soybean | D110: Basis | E110: Iowa | F110: District | G110: IA CRD 40 | H110: =+IF(LEN(home!$E$7)>0,instruments!C110=home!$E$7,TRUE) -> FALSE | I110: FALSE | J110: =+IF(LEN(home!$E$8)>0,instruments!E110=home!$E$8,TRUE) -> TRUE | K110: =+IF(LEN(home!$E$9)>0,instruments!F110=home!$E$9,TRUE) -> FALSE | L110: 1 | M110: =+COUNTIF($L$1:L110,"="&4) -> 15
A111: ZSPAIA40.CM | B111: cmdty IA CRD 40 Soybean Price Idx | C111: Soybean | D111: Cash | E111: Iowa | F111: District | G111: IA CRD 40 | H111: =+IF(LEN(home!$E$7)>0,instruments!C111=home!$E$7,TRUE) -> FALSE | I111: TRUE | J111: =+IF(LEN(home!$E$8)>0,instruments!E111=home!$E$8,TRUE) -> TRUE | K111: =+IF(LEN(home!$E$9)>0,instruments!F111=home!$E$9,TRUE) -> FALSE | L111: 2 | M111: =+COUNTIF($L$1:L111,"="&4) -> 15
A112: ZCBAIA50.CM | B112: cmdty IA CRD 50 Corn Basis Idx | C112: Corn | D112: Basis | E112: Iowa | F112: District | G112: IA CRD 50 | H112: =+IF(LEN(home!$E$7)>0,instruments!C112=home!$E$7,TRUE) -> TRUE | I112: FALSE | J112: =+IF(LEN(home!$E$8)>0,instruments!E112=home!$E$8,TRUE) -> TRUE | K112: =+IF(LEN(home!$E$9)>0,instruments!F112=home!$E$9,TRUE) -> FALSE | L112: 2 | M112: =+COUNTIF($L$1:L112,"="&4) -> 15
A113: ZCPAIA50.CM | B113: cmdty IA CRD 50 Corn Price Idx | C113: Corn | D113: Cash | E113: Iowa | F113: District | G113: IA CRD 50 | H113: =+IF(LEN(home!$E$7)>0,instruments!C113=home!$E$7,TRUE) -> TRUE | I113: TRUE | J113: =+IF(LEN(home!$E$8)>0,instruments!E113=home!$E$8,TRUE) -> TRUE | K113: =+IF(LEN(home!$E$9)>0,instruments!F113=home!$E$9,TRUE) -> FALSE | L113: 3 | M113: =+COUNTIF($L$1:L113,"="&4) -> 15
A114: ZSBAIA50.CM | B114: cmdty IA CRD 50 Soybean Basis Idx | C114: Soybean | D114: Basis | E114: Iowa | F114: District | G114: IA CRD 50 | H114: =+IF(LEN(home!$E$7)>0,instruments!C114=home!$E$7,TRUE) -> FALSE | I114: FALSE | J114: =+IF(LEN(home!$E$8)>0,instruments!E114=home!$E$8,TRUE) -> TRUE | K114: =+IF(LEN(home!$E$9)>0,instruments!F114=home!$E$9,TRUE) -> FALSE | L114: 1 | M114: =+COUNTIF($L$1:L114,"="&4) -> 15
A115: ZSPAIA50.CM | B115: cmdty IA CRD 50 Soybean Price Idx | C115: Soybean | D115: Cash | E115: Iowa | F115: District | G115: IA CRD 50 | H115: =+IF(LEN(home!$E$7)>0,instruments!C115=home!$E$7,TRUE) -> FALSE | I115: TRUE | J115: =+IF(LEN(home!$E$8)>0,instruments!E115=home!$E$8,TRUE) -> TRUE | K115: =+IF(LEN(home!$E$9)>0,instruments!F115=home!$E$9,TRUE) -> FALSE | L115: 2 | M115: =+COUNTIF($L$1:L115,"="&4) -> 15
A116: ZCBAIA60.CM | B116: cmdty IA CRD 60 Corn Basis Idx | C116: Corn | D116: Basis | E116: Iowa | F116: District | G116: IA CRD 60 | H116: =+IF(LEN(home!$E$7)>0,instruments!C116=home!$E$7,TRUE) -> TRUE | I116: FALSE | J116: =+IF(LEN(home!$E$8)>0,instruments!E116=home!$E$8,TRUE) -> TRUE | K116: =+IF(LEN(home!$E$9)>0,instruments!F116=home!$E$9,TRUE) -> FALSE | L116: 2 | M116: =+COUNTIF($L$1:L116,"="&4) -> 15
A117: ZCPAIA60.CM | B117: cmdty IA CRD 60 Corn Price Idx | C117: Corn | D117: Cash | E117: Iowa | F117: District | G117: IA CRD 60 | H117: =+IF(LEN(home!$E$7)>0,instruments!C117=home!$E$7,TRUE) -> TRUE | I117: TRUE | J117: =+IF(LEN(home!$E$8)>0,instruments!E117=home!$E$8,TRUE) -> TRUE | K117: =+IF(LEN(home!$E$9)>0,instruments!F117=home!$E$9,TRUE) -> FALSE | L117: 3 | M117: =+COUNTIF($L$1:L117,"="&4) -> 15
A118: ZSBAIA60.CM | B118: cmdty IA CRD 60 Soybean Basis Idx | C118: Soybean | D118: Basis | E118: Iowa | F118: District | G118: IA CRD 60 | H118: =+IF(LEN(home!$E$7)>0,instruments!C118=home!$E$7,TRUE) -> FALSE | I118: FALSE | J118: =+IF(LEN(home!$E$8)>0,instruments!E118=home!$E$8,TRUE) -> TRUE | K118: =+IF(LEN(home!$E$9)>0,instruments!F118=home!$E$9,TRUE) -> FALSE | L118: 1 | M118: =+COUNTIF($L$1:L118,"="&4) -> 15
A119: ZSPAIA60.CM | B119: cmdty IA CRD 60 Soybean Price Idx | C119: Soybean | D119: Cash | E119: Iowa | F119: District | G119: IA CRD 60 | H119: =+IF(LEN(home!$E$7)>0,instruments!C119=home!$E$7,TRUE) -> FALSE | I119: TRUE | J119: =+IF(LEN(home!$E$8)>0,instruments!E119=home!$E$8,TRUE) -> TRUE | K119: =+IF(LEN(home!$E$9)>0,instruments!F119=home!$E$9,TRUE) -> FALSE | L119: 2 | M119: =+COUNTIF($L$1:L119,"="&4) -> 15
A120: ZCBAIA70.CM | B120: cmdty IA CRD 70 Corn Basis Idx | C120: Corn | D120: Basis | E120: Iowa | F120: District | G120: IA CRD 70 | H120: =+IF(LEN(home!$E$7)>0,instruments!C120=home!$E$7,TRUE) -> TRUE | I120: FALSE | J120: =+IF(LEN(home!$E$8)>0,instruments!E120=home!$E$8,TRUE) -> TRUE | K120: =+IF(LEN(home!$E$9)>0,instruments!F120=home!$E$9,TRUE) -> FALSE | L120: 2 | M120: =+COUNTIF($L$1:L120,"="&4) -> 15
A121: ZCPAIA70.CM | B121: cmdty IA CRD 70 Corn Price Idx | C121: Corn | D121: Cash | E121: Iowa | F121: District | G121: IA CRD 70 | H121: =+IF(LEN(home!$E$7)>0,instruments!C121=home!$E$7,TRUE) -> TRUE | I121: TRUE | J121: =+IF(LEN(home!$E$8)>0,instruments!E121=home!$E$8,TRUE) -> TRUE | K121: =+IF(LEN(home!$E$9)>0,instruments!F121=home!$E$9,TRUE) -> FALSE | L121: 3 | M121: =+COUNTIF($L$1:L121,"="&4) -> 15
A122: ZSBAIA70.CM | B122: cmdty IA CRD 70 Soybean Basis Idx | C122: Soybean | D122: Basis | E122: Iowa | F122: District | G122: IA CRD 70 | H122: =+IF(LEN(home!$E$7)>0,instruments!C122=home!$E$7,TRUE) -> FALSE | I122: FALSE | J122: =+IF(LEN(home!$E$8)>0,instruments!E122=home!$E$8,TRUE) -> TRUE | K122: =+IF(LEN(home!$E$9)>0,instruments!F122=home!$E$9,TRUE) -> FALSE | L122: 1 | M122: =+COUNTIF($L$1:L122,"="&4) -> 15
A123: ZSPAIA70.CM | B123: cmdty IA CRD 70 Soybean Price Idx | C123: Soybean | D123: Cash | E123: Iowa | F123: District | G123: IA CRD 70 | H123: =+IF(LEN(home!$E$7)>0,instruments!C123=home!$E$7,TRUE) -> FALSE | I123: TRUE | J123: =+IF(LEN(home!$E$8)>0,instruments!E123=home!$E$8,TRUE) -> TRUE | K123: =+IF(LEN(home!$E$9)>0,instruments!F123=home!$E$9,TRUE) -> FALSE | L123: 2 | M123: =+COUNTIF($L$1:L123,"="&4) -> 15
A124: ZCBAIA80.CM | B124: cmdty IA CRD 80 Corn Basis Idx | C124: Corn | D124: Basis | E124: Iowa | F124: District | G124: IA CRD 80 | H124: =+IF(LEN(home!$E$7)>0,instruments!C124=home!$E$7,TRUE) -> TRUE | I124: FALSE | J124: =+IF(LEN(home!$E$8)>0,instruments!E124=home!$E$8,TRUE) -> TRUE | K124: =+IF(LEN(home!$E$9)>0,instruments!F124=home!$E$9,TRUE) -> FALSE | L124: 2 | M124: =+COUNTIF($L$1:L124,"="&4) -> 15
A125: ZCPAIA80.CM | B125: cmdty IA CRD 80 Corn Price Idx | C125: Corn | D125: Cash | E125: Iowa | F125: District | G125: IA CRD 80 | H125: =+IF(LEN(home!$E$7)>0,instruments!C125=home!$E$7,TRUE) -> TRUE | I125: TRUE | J125: =+IF(LEN(home!$E$8)>0,instruments!E125=home!$E$8,TRUE) -> TRUE | K125: =+IF(LEN(home!$E$9)>0,instruments!F125=home!$E$9,TRUE) -> FALSE | L125: 3 | M125: =+COUNTIF($L$1:L125,"="&4) -> 15
A126: ZSBAIA80.CM | B126: cmdty IA CRD 80 Soybean Basis Idx | C126: Soybean | D126: Basis | E126: Iowa | F126: District | G126: IA CRD 80 | H126: =+IF(LEN(home!$E$7)>0,instruments!C126=home!$E$7,TRUE) -> FALSE | I126: FALSE | J126: =+IF(LEN(home!$E$8)>0,instruments!E126=home!$E$8,TRUE) -> TRUE | K126: =+IF(LEN(home!$E$9)>0,instruments!F126=home!$E$9,TRUE) -> FALSE | L126: 1 | M126: =+COUNTIF($L$1:L126,"="&4) -> 15
A127: ZSPAIA80.CM | B127: cmdty IA CRD 80 Soybean Price Idx | C127: Soybean | D127: Cash | E127: Iowa | F127: District | G127: IA CRD 80 | H127: =+IF(LEN(home!$E$7)>0,instruments!C127=home!$E$7,TRUE) -> FALSE | I127: TRUE | J127: =+IF(LEN(home!$E$8)>0,instruments!E127=home!$E$8,TRUE) -> TRUE | K127: =+IF(LEN(home!$E$9)>0,instruments!F127=home!$E$9,TRUE) -> FALSE | L127: 2 | M127: =+COUNTIF($L$1:L127,"="&4) -> 15
A128: ZCBAIA90.CM | B128: cmdty IA CRD 90 Corn Basis Idx | C128: Corn | D128: Basis | E128: Iowa | F128: District | G128: IA CRD 90 | H128: =+IF(LEN(home!$E$7)>0,instruments!C128=home!$E$7,TRUE) -> TRUE | I128: FALSE | J128: =+IF(LEN(home!$E$8)>0,instruments!E128=home!$E$8,TRUE) -> TRUE | K128: =+IF(LEN(home!$E$9)>0,instruments!F128=home!$E$9,TRUE) -> FALSE | L128: 2 | M128: =+COUNTIF($L$1:L128,"="&4) -> 15
A129: ZCPAIA90.CM | B129: cmdty IA CRD 90 Corn Price Idx | C129: Corn | D129: Cash | E129: Iowa | F129: District | G129: IA CRD 90 | H129: =+IF(LEN(home!$E$7)>0,instruments!C129=home!$E$7,TRUE) -> TRUE | I129: TRUE | J129: =+IF(LEN(home!$E$8)>0,instruments!E129=home!$E$8,TRUE) -> TRUE | K129: =+IF(LEN(home!$E$9)>0,instruments!F129=home!$E$9,TRUE) -> FALSE | L129: 3 | M129: =+COUNTIF($L$1:L129,"="&4) -> 15
A130: ZSBAIA90.CM | B130: cmdty IA CRD 90 Soybean Basis Idx | C130: Soybean | D130: Basis | E130: Iowa | F130: District | G130: IA CRD 90 | H130: =+IF(LEN(home!$E$7)>0,instruments!C130=home!$E$7,TRUE) -> FALSE | I130: FALSE | J130: =+IF(LEN(home!$E$8)>0,instruments!E130=home!$E$8,TRUE) -> TRUE | K130: =+IF(LEN(home!$E$9)>0,instruments!F130=home!$E$9,TRUE) -> FALSE | L130: =+COUNTIF(H130:K130,TRUE) -> 1 | M130: =+COUNTIF($L$1:L130,"="&4) -> 15
A131: ZSPAIA90.CM | B131: cmdty IA CRD 90 Soybean Price Idx | C131: Soybean | D131: Cash | E131: Iowa | F131: District | G131: IA CRD 90 | H131: =+IF(LEN(home!$E$7)>0,instruments!C131=home!$E$7,TRUE) -> FALSE | I131: =+D131="Cash" -> TRUE | J131: =+IF(LEN(home!$E$8)>0,instruments!E131=home!$E$8,TRUE) -> TRUE | K131: =+IF(LEN(home!$E$9)>0,instruments!F131=home!$E$9,TRUE) -> FALSE | L131: 2 | M131: =+COUNTIF($L$1:L131,"="&4) -> 15
A132: ZCBAIL10.CM | B132: cmdty IL CRD 10 Corn Basis Idx | C132: Corn | D132: Basis | E132: Illinois | F132: District | G132: IL CRD 10 | H132: =+IF(LEN(home!$E$7)>0,instruments!C132=home!$E$7,TRUE) -> TRUE | I132: FALSE | J132: =+IF(LEN(home!$E$8)>0,instruments!E132=home!$E$8,TRUE) -> TRUE | K132: =+IF(LEN(home!$E$9)>0,instruments!F132=home!$E$9,TRUE) -> FALSE | L132: 2 | M132: =+COUNTIF($L$1:L132,"="&4) -> 15
A133: ZCPAIL10.CM | B133: cmdty IL CRD 10 Corn Price Idx | C133: Corn | D133: Cash | E133: Illinois | F133: District | G133: IL CRD 10 | H133: =+IF(LEN(home!$E$7)>0,instruments!C133=home!$E$7,TRUE) -> TRUE | I133: TRUE | J133: =+IF(LEN(home!$E$8)>0,instruments!E133=home!$E$8,TRUE) -> TRUE | K133: =+IF(LEN(home!$E$9)>0,instruments!F133=home!$E$9,TRUE) -> FALSE | L133: 3 | M133: =+COUNTIF($L$1:L133,"="&4) -> 15
A134: ZSBAIL10.CM | B134: cmdty IL CRD 10 Soybean Basis Idx | C134: Soybean | D134: Basis | E134: Illinois | F134: District | G134: IL CRD 10 | H134: =+IF(LEN(home!$E$7)>0,instruments!C134=home!$E$7,TRUE) -> FALSE | I134: FALSE | J134: =+IF(LEN(home!$E$8)>0,instruments!E134=home!$E$8,TRUE) -> TRUE | K134: =+IF(LEN(home!$E$9)>0,instruments!F134=home!$E$9,TRUE) -> FALSE | L134: 1 | M134: =+COUNTIF($L$1:L134,"="&4) -> 15
A135: ZSPAIL10.CM | B135: cmdty IL CRD 10 Soybean Price Idx | C135: Soybean | D135: Cash | E135: Illinois | F135: District | G135: IL CRD 10 | H135: =+IF(LEN(home!$E$7)>0,instruments!C135=home!$E$7,TRUE) -> FALSE | I135: TRUE | J135: =+IF(LEN(home!$E$8)>0,instruments!E135=home!$E$8,TRUE) -> TRUE | K135: =+IF(LEN(home!$E$9)>0,instruments!F135=home!$E$9,TRUE) -> FALSE | L135: 2 | M135: =+COUNTIF($L$1:L135,"="&4) -> 15
A136: ZWBAIL10.CM | B136: cmdty IL CRD 10 Soft Red Winter Wheat Basis Idx | C136: SRW | D136: Basis | E136: Illinois | F136: District | G136: IL CRD 10 | H136: =+IF(LEN(home!$E$7)>0,instruments!C136=home!$E$7,TRUE) -> FALSE | I136: FALSE | J136: =+IF(LEN(home!$E$8)>0,instruments!E136=home!$E$8,TRUE) -> TRUE | K136: =+IF(LEN(home!$E$9)>0,instruments!F136=home!$E$9,TRUE) -> FALSE | L136: 1 | M136: =+COUNTIF($L$1:L136,"="&4) -> 15
A137: ZWPAIL10.CM | B137: cmdty IL CRD 10 Soft Red Winter Wheat Price Idx | C137: SRW | D137: Cash | E137: Illinois | F137: District | G137: IL CRD 10 | H137: =+IF(LEN(home!$E$7)>0,instruments!C137=home!$E$7,TRUE) -> FALSE | I137: TRUE | J137: =+IF(LEN(home!$E$8)>0,instruments!E137=home!$E$8,TRUE) -> TRUE | K137: =+IF(LEN(home!$E$9)>0,instruments!F137=home!$E$9,TRUE) -> FALSE | L137: 2 | M137: =+COUNTIF($L$1:L137,"="&4) -> 15
A138: ZCBAIL20.CM | B138: cmdty IL CRD 20 Corn Basis Idx | C138: Corn | D138: Basis | E138: Illinois | F138: District | G138: IL CRD 20 | H138: =+IF(LEN(home!$E$7)>0,instruments!C138=home!$E$7,TRUE) -> TRUE | I138: FALSE | J138: =+IF(LEN(home!$E$8)>0,instruments!E138=home!$E$8,TRUE) -> TRUE | K138: =+IF(LEN(home!$E$9)>0,instruments!F138=home!$E$9,TRUE) -> FALSE | L138: 2 | M138: =+COUNTIF($L$1:L138,"="&4) -> 15
A139: ZCPAIL20.CM | B139: cmdty IL CRD 20 Corn Price Idx | C139: Corn | D139: Cash | E139: Illinois | F139: District | G139: IL CRD 20 | H139: =+IF(LEN(home!$E$7)>0,instruments!C139=home!$E$7,TRUE) -> TRUE | I139: TRUE | J139: =+IF(LEN(home!$E$8)>0,instruments!E139=home!$E$8,TRUE) -> TRUE | K139: =+IF(LEN(home!$E$9)>0,instruments!F139=home!$E$9,TRUE) -> FALSE | L139: 3 | M139: =+COUNTIF($L$1:L139,"="&4) -> 15
A140: ZSBAIL20.CM | B140: cmdty IL CRD 20 Soybean Basis Idx | C140: Soybean | D140: Basis | E140: Illinois | F140: District | G140: IL CRD 20 | H140: =+IF(LEN(home!$E$7)>0,instruments!C140=home!$E$7,TRUE) -> FALSE | I140: FALSE | J140: =+IF(LEN(home!$E$8)>0,instruments!E140=home!$E$8,TRUE) -> TRUE | K140: =+IF(LEN(home!$E$9)>0,instruments!F140=home!$E$9,TRUE) -> FALSE | L140: 1 | M140: =+COUNTIF($L$1:L140,"="&4) -> 15
A141: ZSPAIL20.CM | B141: cmdty IL CRD 20 Soybean Price Idx | C141: Soybean | D141: Cash | E141: Illinois | F141: District | G141: IL CRD 20 | H141: =+IF(LEN(home!$E$7)>0,instruments!C141=home!$E$7,TRUE) -> FALSE | I141: TRUE | J141: =+IF(LEN(home!$E$8)>0,instruments!E141=home!$E$8,TRUE) -> TRUE | K141: =+IF(LEN(home!$E$9)>0,instruments!F141=home!$E$9,TRUE) -> FALSE | L141: 2 | M141: =+COUNTIF($L$1:L141,"="&4) -> 15
A142: ZWBAIL20.CM | B142: cmdty IL CRD 20 Soft Red Winter Wheat Basis Idx | C142: SRW | D142: Basis | E142: Illinois | F142: District | G142: IL CRD 20 | H142: =+IF(LEN(home!$E$7)>0,instruments!C142=home!$E$7,TRUE) -> FALSE | I142: FALSE | J142: =+IF(LEN(home!$E$8)>0,instruments!E142=home!$E$8,TRUE) -> TRUE | K142: =+IF(LEN(home!$E$9)>0,instruments!F142=home!$E$9,TRUE) -> FALSE | L142: 1 | M142: =+COUNTIF($L$1:L142,"="&4) -> 15
A143: ZWPAIL20.CM | B143: cmdty IL CRD 20 Soft Red Winter Wheat Price Idx | C143: SRW | D143: Cash | E143: Illinois | F143: District | G143: IL CRD 20 | H143: =+IF(LEN(home!$E$7)>0,instruments!C143=home!$E$7,TRUE) -> FALSE | I143: TRUE | J143: =+IF(LEN(home!$E$8)>0,instruments!E143=home!$E$8,TRUE) -> TRUE | K143: =+IF(LEN(home!$E$9)>0,instruments!F143=home!$E$9,TRUE) -> FALSE | L143: 2 | M143: =+COUNTIF($L$1:L143,"="&4) -> 15
A144: ZCBAIL30.CM | B144: cmdty IL CRD 30 Corn Basis Idx | C144: Corn | D144: Basis | E144: Illinois | F144: District | G144: IL CRD 30 | H144: =+IF(LEN(home!$E$7)>0,instruments!C144=home!$E$7,TRUE) -> TRUE | I144: FALSE | J144: =+IF(LEN(home!$E$8)>0,instruments!E144=home!$E$8,TRUE) -> TRUE | K144: =+IF(LEN(home!$E$9)>0,instruments!F144=home!$E$9,TRUE) -> FALSE | L144: 2 | M144: =+COUNTIF($L$1:L144,"="&4) -> 15
A145: ZCPAIL30.CM | B145: cmdty IL CRD 30 Corn Price Idx | C145: Corn | D145: Cash | E145: Illinois | F145: District | G145: IL CRD 30 | H145: =+IF(LEN(home!$E$7)>0,instruments!C145=home!$E$7,TRUE) -> TRUE | I145: TRUE | J145: =+IF(LEN(home!$E$8)>0,instruments!E145=home!$E$8,TRUE) -> TRUE | K145: =+IF(LEN(home!$E$9)>0,instruments!F145=home!$E$9,TRUE) -> FALSE | L145: 3 | M145: =+COUNTIF($L$1:L145,"="&4) -> 15
A146: ZSBAIL30.CM | B146: cmdty IL CRD 30 Soybean Basis Idx | C146: Soybean | D146: Basis | E146: Illinois | F146: District | G146: IL CRD 30 | H146: =+IF(LEN(home!$E$7)>0,instruments!C146=home!$E$7,TRUE) -> FALSE | I146: FALSE | J146: =+IF(LEN(home!$E$8)>0,instruments!E146=home!$E$8,TRUE) -> TRUE | K146: =+IF(LEN(home!$E$9)>0,instruments!F146=home!$E$9,TRUE) -> FALSE | L146: 1 | M146: =+COUNTIF($L$1:L146,"="&4) -> 15
A147: ZSPAIL30.CM | B147: cmdty IL CRD 30 Soybean Price Idx | C147: Soybean | D147: Cash | E147: Illinois | F147: District | G147: IL CRD 30 | H147: =+IF(LEN(home!$E$7)>0,instruments!C147=home!$E$7,TRUE) -> FALSE | I147: TRUE | J147: =+IF(LEN(home!$E$8)>0,instruments!E147=home!$E$8,TRUE) -> TRUE | K147: =+IF(LEN(home!$E$9)>0,instruments!F147=home!$E$9,TRUE) -> FALSE | L147: 2 | M147: =+COUNTIF($L$1:L147,"="&4) -> 15
A148: ZWBAIL30.CM | B148: cmdty IL CRD 30 Soft Red Winter Wheat Basis Idx | C148: SRW | D148: Basis | E148: Illinois | F148: District | G148: IL CRD 30 | H148: =+IF(LEN(home!$E$7)>0,instruments!C148=home!$E$7,TRUE) -> FALSE | I148: FALSE | J148: =+IF(LEN(home!$E$8)>0,instruments!E148=home!$E$8,TRUE) -> TRUE | K148: =+IF(LEN(home!$E$9)>0,instruments!F148=home!$E$9,TRUE) -> FALSE | L148: 1 | M148: =+COUNTIF($L$1:L148,"="&4) -> 15
A149: ZWPAIL30.CM | B149: cmdty IL CRD 30 Soft Red Winter Wheat Price Idx | C149: SRW | D149: Cash | E149: Illinois | F149: District | G149: IL CRD 30 | H149: =+IF(LEN(home!$E$7)>0,instruments!C149=home!$E$7,TRUE) -> FALSE | I149: TRUE | J149: =+IF(LEN(home!$E$8)>0,instruments!E149=home!$E$8,TRUE) -> TRUE | K149: =+IF(LEN(home!$E$9)>0,instruments!F149=home!$E$9,TRUE) -> FALSE | L149: 2 | M149: =+COUNTIF($L$1:L149,"="&4) -> 15
A150: ZCBAIL40.CM | B150: cmdty IL CRD 40 Corn Basis Idx | C150: Corn | D150: Basis | E150: Illinois | F150: District | G150: IL CRD 40 | H150: =+IF(LEN(home!$E$7)>0,instruments!C150=home!$E$7,TRUE) -> TRUE | I150: FALSE | J150: =+IF(LEN(home!$E$8)>0,instruments!E150=home!$E$8,TRUE) -> TRUE | K150: =+IF(LEN(home!$E$9)>0,instruments!F150=home!$E$9,TRUE) -> FALSE | L150: 2 | M150: =+COUNTIF($L$1:L150,"="&4) -> 15
A151: ZCPAIL40.CM | B151: cmdty IL CRD 40 Corn Price Idx | C151: Corn | D151: Cash | E151: Illinois | F151: District | G151: IL CRD 40 | H151: =+IF(LEN(home!$E$7)>0,instruments!C151=home!$E$7,TRUE) -> TRUE | I151: TRUE | J151: =+IF(LEN(home!$E$8)>0,instruments!E151=home!$E$8,TRUE) -> TRUE | K151: =+IF(LEN(home!$E$9)>0,instruments!F151=home!$E$9,TRUE) -> FALSE | L151: 3 | M151: =+COUNTIF($L$1:L151,"="&4) -> 15
A152: ZSBAIL40.CM | B152: cmdty IL CRD 40 Soybean Basis Idx | C152: Soybean | D152: Basis | E152: Illinois | F152: District | G152: IL CRD 40 | H152: =+IF(LEN(home!$E$7)>0,instruments!C152=home!$E$7,TRUE) -> FALSE | I152: FALSE | J152: =+IF(LEN(home!$E$8)>0,instruments!E152=home!$E$8,TRUE) -> TRUE | K152: =+IF(LEN(home!$E$9)>0,instruments!F152=home!$E$9,TRUE) -> FALSE | L152: 1 | M152: =+COUNTIF($L$1:L152,"="&4) -> 15
A153: ZSPAIL40.CM | B153: cmdty IL CRD 40 Soybean Price Idx | C153: Soybean | D153: Cash | E153: Illinois | F153: District | G153: IL CRD 40 | H153: =+IF(LEN(home!$E$7)>0,instruments!C153=home!$E$7,TRUE) -> FALSE | I153: TRUE | J153: =+IF(LEN(home!$E$8)>0,instruments!E153=home!$E$8,TRUE) -> TRUE | K153: =+IF(LEN(home!$E$9)>0,instruments!F153=home!$E$9,TRUE) -> FALSE | L153: 2 | M153: =+COUNTIF($L$1:L153,"="&4) -> 15
A154: ZWBAIL40.CM | B154: cmdty IL CRD 40 Soft Red Winter Wheat Basis Idx | C154: SRW | D154: Basis | E154: Illinois | F154: District | G154: IL CRD 40 | H154: =+IF(LEN(home!$E$7)>0,instruments!C154=home!$E$7,TRUE) -> FALSE | I154: FALSE | J154: =+IF(LEN(home!$E$8)>0,instruments!E154=home!$E$8,TRUE) -> TRUE | K154: =+IF(LEN(home!$E$9)>0,instruments!F154=home!$E$9,TRUE) -> FALSE | L154: 1 | M154: =+COUNTIF($L$1:L154,"="&4) -> 15
A155: ZWPAIL40.CM | B155: cmdty IL CRD 40 Soft Red Winter Wheat Price Idx | C155: SRW | D155: Cash | E155: Illinois | F155: District | G155: IL CRD 40 | H155: =+IF(LEN(home!$E$7)>0,instruments!C155=home!$E$7,TRUE) -> FALSE | I155: TRUE | J155: =+IF(LEN(home!$E$8)>0,instruments!E155=home!$E$8,TRUE) -> TRUE | K155: =+IF(LEN(home!$E$9)>0,instruments!F155=home!$E$9,TRUE) -> FALSE | L155: 2 | M155: =+COUNTIF($L$1:L155,"="&4) -> 15
A156: ZCBAIL50.CM | B156: cmdty IL CRD 50 Corn Basis Idx | C156: Corn | D156: Basis | E156: Illinois | F156: District | G156: IL CRD 50 | H156: =+IF(LEN(home!$E$7)>0,instruments!C156=home!$E$7,TRUE) -> TRUE | I156: FALSE | J156: =+IF(LEN(home!$E$8)>0,instruments!E156=home!$E$8,TRUE) -> TRUE | K156: =+IF(LEN(home!$E$9)>0,instruments!F156=home!$E$9,TRUE) -> FALSE | L156: 2 | M156: =+COUNTIF($L$1:L156,"="&4) -> 15
A157: ZCPAIL50.CM | B157: cmdty IL CRD 50 Corn Price Idx | C157: Corn | D157: Cash | E157: Illinois | F157: District | G157: IL CRD 50 | H157: =+IF(LEN(home!$E$7)>0,instruments!C157=home!$E$7,TRUE) -> TRUE | I157: TRUE | J157: =+IF(LEN(home!$E$8)>0,instruments!E157=home!$E$8,TRUE) -> TRUE | K157: =+IF(LEN(home!$E$9)>0,instruments!F157=home!$E$9,TRUE) -> FALSE | L157: 3 | M157: =+COUNTIF($L$1:L157,"="&4) -> 15
A158: ZSBAIL50.CM | B158: cmdty IL CRD 50 Soybean Basis Idx | C158: Soybean | D158: Basis | E158: Illinois | F158: District | G158: IL CRD 50 | H158: =+IF(LEN(home!$E$7)>0,instruments!C158=home!$E$7,TRUE) -> FALSE | I158: FALSE | J158: =+IF(LEN(home!$E$8)>0,instruments!E158=home!$E$8,TRUE) -> TRUE | K158: =+IF(LEN(home!$E$9)>0,instruments!F158=home!$E$9,TRUE) -> FALSE | L158: 1 | M158: =+COUNTIF($L$1:L158,"="&4) -> 15
A159: ZSPAIL50.CM | B159: cmdty IL CRD 50 Soybean Price Idx | C159: Soybean | D159: Cash | E159: Illinois | F159: District | G159: IL CRD 50 | H159: =+IF(LEN(home!$E$7)>0,instruments!C159=home!$E$7,TRUE) -> FALSE | I159: TRUE | J159: =+IF(LEN(home!$E$8)>0,instruments!E159=home!$E$8,TRUE) -> TRUE | K159: =+IF(LEN(home!$E$9)>0,instruments!F159=home!$E$9,TRUE) -> FALSE | L159: 2 | M159: =+COUNTIF($L$1:L159,"="&4) -> 15
A160: ZWBAIL50.CM | B160: cmdty IL CRD 50 Soft Red Winter Wheat Basis Idx | C160: SRW | D160: Basis | E160: Illinois | F160: District | G160: IL CRD 50 | H160: =+IF(LEN(home!$E$7)>0,instruments!C160=home!$E$7,TRUE) -> FALSE | I160: FALSE | J160: =+IF(LEN(home!$E$8)>0,instruments!E160=home!$E$8,TRUE) -> TRUE | K160: =+IF(LEN(home!$E$9)>0,instruments!F160=home!$E$9,TRUE) -> FALSE | L160: 1 | M160: =+COUNTIF($L$1:L160,"="&4) -> 15
A161: ZWPAIL50.CM | B161: cmdty IL CRD 50 Soft Red Winter Wheat Price Idx | C161: SRW | D161: Cash | E161: Illinois | F161: District | G161: IL CRD 50 | H161: =+IF(LEN(home!$E$7)>0,instruments!C161=home!$E$7,TRUE) -> FALSE | I161: TRUE | J161: =+IF(LEN(home!$E$8)>0,instruments!E161=home!$E$8,TRUE) -> TRUE | K161: =+IF(LEN(home!$E$9)>0,instruments!F161=home!$E$9,TRUE) -> FALSE | L161: 2 | M161: =+COUNTIF($L$1:L161,"="&4) -> 15
A162: ZCBAIL60.CM | B162: cmdty IL CRD 60 Corn Basis Idx | C162: Corn | D162: Basis | E162: Illinois | F162: District | G162: IL CRD 60 | H162: =+IF(LEN(home!$E$7)>0,instruments!C162=home!$E$7,TRUE) -> TRUE | I162: FALSE | J162: =+IF(LEN(home!$E$8)>0,instruments!E162=home!$E$8,TRUE) -> TRUE | K162: =+IF(LEN(home!$E$9)>0,instruments!F162=home!$E$9,TRUE) -> FALSE | L162: 2 | M162: =+COUNTIF($L$1:L162,"="&4) -> 15
A163: ZCPAIL60.CM | B163: cmdty IL CRD 60 Corn Price Idx | C163: Corn | D163: Cash | E163: Illinois | F163: District | G163: IL CRD 60 | H163: =+IF(LEN(home!$E$7)>0,instruments!C163=home!$E$7,TRUE) -> TRUE | I163: TRUE | J163: =+IF(LEN(home!$E$8)>0,instruments!E163=home!$E$8,TRUE) -> TRUE | K163: =+IF(LEN(home!$E$9)>0,instruments!F163=home!$E$9,TRUE) -> FALSE | L163: 3 | M163: =+COUNTIF($L$1:L163,"="&4) -> 15
A164: ZSBAIL60.CM | B164: cmdty IL CRD 60 Soybean Basis Idx | C164: Soybean | D164: Basis | E164: Illinois | F164: District | G164: IL CRD 60 | H164: =+IF(LEN(home!$E$7)>0,instruments!C164=home!$E$7,TRUE) -> FALSE | I164: FALSE | J164: =+IF(LEN(home!$E$8)>0,instruments!E164=home!$E$8,TRUE) -> TRUE | K164: =+IF(LEN(home!$E$9)>0,instruments!F164=home!$E$9,TRUE) -> FALSE | L164: 1 | M164: =+COUNTIF($L$1:L164,"="&4) -> 15
A165: ZSPAIL60.CM | B165: cmdty IL CRD 60 Soybean Price Idx | C165: Soybean | D165: Cash | E165: Illinois | F165: District | G165: IL CRD 60 | H165: =+IF(LEN(home!$E$7)>0,instruments!C165=home!$E$7,TRUE) -> FALSE | I165: TRUE | J165: =+IF(LEN(home!$E$8)>0,instruments!E165=home!$E$8,TRUE) -> TRUE | K165: =+IF(LEN(home!$E$9)>0,instruments!F165=home!$E$9,TRUE) -> FALSE | L165: 2 | M165: =+COUNTIF($L$1:L165,"="&4) -> 15
A166: ZWBAIL60.CM | B166: cmdty IL CRD 60 Soft Red Winter Wheat Basis Idx | C166: SRW | D166: Basis | E166: Illinois | F166: District | G166: IL CRD 60 | H166: =+IF(LEN(home!$E$7)>0,instruments!C166=home!$E$7,TRUE) -> FALSE | I166: FALSE | J166: =+IF(LEN(home!$E$8)>0,instruments!E166=home!$E$8,TRUE) -> TRUE | K166: =+IF(LEN(home!$E$9)>0,instruments!F166=home!$E$9,TRUE) -> FALSE | L166: 1 | M166: =+COUNTIF($L$1:L166,"="&4) -> 15
A167: ZWPAIL60.CM | B167: cmdty IL CRD 60 Soft Red Winter Wheat Price Idx | C167: SRW | D167: Cash | E167: Illinois | F167: District | G167: IL CRD 60 | H167: =+IF(LEN(home!$E$7)>0,instruments!C167=home!$E$7,TRUE) -> FALSE | I167: TRUE | J167: =+IF(LEN(home!$E$8)>0,instruments!E167=home!$E$8,TRUE) -> TRUE | K167: =+IF(LEN(home!$E$9)>0,instruments!F167=home!$E$9,TRUE) -> FALSE | L167: 2 | M167: =+COUNTIF($L$1:L167,"="&4) -> 15
A168: ZCBAIL70.CM | B168: cmdty IL CRD 70 Corn Basis Idx | C168: Corn | D168: Basis | E168: Illinois | F168: District | G168: IL CRD 70 | H168: =+IF(LEN(home!$E$7)>0,instruments!C168=home!$E$7,TRUE) -> TRUE | I168: FALSE | J168: =+IF(LEN(home!$E$8)>0,instruments!E168=home!$E$8,TRUE) -> TRUE | K168: =+IF(LEN(home!$E$9)>0,instruments!F168=home!$E$9,TRUE) -> FALSE | L168: 2 | M168: =+COUNTIF($L$1:L168,"="&4) -> 15
A169: ZCPAIL70.CM | B169: cmdty IL CRD 70 Corn Price Idx | C169: Corn | D169: Cash | E169: Illinois | F169: District | G169: IL CRD 70 | H169: =+IF(LEN(home!$E$7)>0,instruments!C169=home!$E$7,TRUE) -> TRUE | I169: TRUE | J169: =+IF(LEN(home!$E$8)>0,instruments!E169=home!$E$8,TRUE) -> TRUE | K169: =+IF(LEN(home!$E$9)>0,instruments!F169=home!$E$9,TRUE) -> FALSE | L169: 3 | M169: =+COUNTIF($L$1:L169,"="&4) -> 15
A170: ZSBAIL70.CM | B170: cmdty IL CRD 70 Soybean Basis Idx | C170: Soybean | D170: Basis | E170: Illinois | F170: District | G170: IL CRD 70 | H170: =+IF(LEN(home!$E$7)>0,instruments!C170=home!$E$7,TRUE) -> FALSE | I170: FALSE | J170: =+IF(LEN(home!$E$8)>0,instruments!E170=home!$E$8,TRUE) -> TRUE | K170: =+IF(LEN(home!$E$9)>0,instruments!F170=home!$E$9,TRUE) -> FALSE | L170: 1 | M170: =+COUNTIF($L$1:L170,"="&4) -> 15
A171: ZSPAIL70.CM | B171: cmdty IL CRD 70 Soybean Price Idx | C171: Soybean | D171: Cash | E171: Illinois | F171: District | G171: IL CRD 70 | H171: =+IF(LEN(home!$E$7)>0,instruments!C171=home!$E$7,TRUE) -> FALSE | I171: TRUE | J171: =+IF(LEN(home!$E$8)>0,instruments!E171=home!$E$8,TRUE) -> TRUE | K171: =+IF(LEN(home!$E$9)>0,instruments!F171=home!$E$9,TRUE) -> FALSE | L171: 2 | M171: =+COUNTIF($L$1:L171,"="&4) -> 15
A172: ZWBAIL70.CM | B172: cmdty IL CRD 70 Soft Red Winter Wheat Basis Idx | C172: SRW | D172: Basis | E172: Illinois | F172: District | G172: IL CRD 70 | H172: =+IF(LEN(home!$E$7)>0,instruments!C172=home!$E$7,TRUE) -> FALSE | I172: FALSE | J172: =+IF(LEN(home!$E$8)>0,instruments!E172=home!$E$8,TRUE) -> TRUE | K172: =+IF(LEN(home!$E$9)>0,instruments!F172=home!$E$9,TRUE) -> FALSE | L172: 1 | M172: =+COUNTIF($L$1:L172,"="&4) -> 15
A173: ZWPAIL70.CM | B173: cmdty IL CRD 70 Soft Red Winter Wheat Price Idx | C173: SRW | D173: Cash | E173: Illinois | F173: District | G173: IL CRD 70 | H173: =+IF(LEN(home!$E$7)>0,instruments!C173=home!$E$7,TRUE) -> FALSE | I173: TRUE | J173: =+IF(LEN(home!$E$8)>0,instruments!E173=home!$E$8,TRUE) -> TRUE | K173: =+IF(LEN(home!$E$9)>0,instruments!F173=home!$E$9,TRUE) -> FALSE | L173: 2 | M173: =+COUNTIF($L$1:L173,"="&4) -> 15
A174: ZCBAIL80.CM | B174: cmdty IL CRD 80 Corn Basis Idx | C174: Corn | D174: Basis | E174: Illinois | F174: District | G174: IL CRD 80 | H174: =+IF(LEN(home!$E$7)>0,instruments!C174=home!$E$7,TRUE) -> TRUE | I174: FALSE | J174: =+IF(LEN(home!$E$8)>0,instruments!E174=home!$E$8,TRUE) -> TRUE | K174: =+IF(LEN(home!$E$9)>0,instruments!F174=home!$E$9,TRUE) -> FALSE | L174: 2 | M174: =+COUNTIF($L$1:L174,"="&4) -> 15
A175: ZCPAIL80.CM | B175: cmdty IL CRD 80 Corn Price Idx | C175: Corn | D175: Cash | E175: Illinois | F175: District | G175: IL CRD 80 | H175: =+IF(LEN(home!$E$7)>0,instruments!C175=home!$E$7,TRUE) -> TRUE | I175: TRUE | J175: =+IF(LEN(home!$E$8)>0,instruments!E175=home!$E$8,TRUE) -> TRUE | K175: =+IF(LEN(home!$E$9)>0,instruments!F175=home!$E$9,TRUE) -> FALSE | L175: 3 | M175: =+COUNTIF($L$1:L175,"="&4) -> 15
A176: ZSBAIL80.CM | B176: cmdty IL CRD 80 Soybean Basis Idx | C176: Soybean | D176: Basis | E176: Illinois | F176: District | G176: IL CRD 80 | H176: =+IF(LEN(home!$E$7)>0,instruments!C176=home!$E$7,TRUE) -> FALSE | I176: FALSE | J176: =+IF(LEN(home!$E$8)>0,instruments!E176=home!$E$8,TRUE) -> TRUE | K176: =+IF(LEN(home!$E$9)>0,instruments!F176=home!$E$9,TRUE) -> FALSE | L176: 1 | M176: =+COUNTIF($L$1:L176,"="&4) -> 15
A177: ZSPAIL80.CM | B177: cmdty IL CRD 80 Soybean Price Idx | C177: Soybean | D177: Cash | E177: Illinois | F177: District | G177: IL CRD 80 | H177: =+IF(LEN(home!$E$7)>0,instruments!C177=home!$E$7,TRUE) -> FALSE | I177: TRUE | J177: =+IF(LEN(home!$E$8)>0,instruments!E177=home!$E$8,TRUE) -> TRUE | K177: =+IF(LEN(home!$E$9)>0,instruments!F177=home!$E$9,TRUE) -> FALSE | L177: 2 | M177: =+COUNTIF($L$1:L177,"="&4) -> 15
A178: ZWBAIL80.CM | B178: cmdty IL CRD 80 Soft Red Winter Wheat Basis Idx | C178: SRW | D178: Basis | E178: Illinois | F178: District | G178: IL CRD 80 | H178: =+IF(LEN(home!$E$7)>0,instruments!C178=home!$E$7,TRUE) -> FALSE | I178: FALSE | J178: =+IF(LEN(home!$E$8)>0,instruments!E178=home!$E$8,TRUE) -> TRUE | K178: =+IF(LEN(home!$E$9)>0,instruments!F178=home!$E$9,TRUE) -> FALSE | L178: 1 | M178: =+COUNTIF($L$1:L178,"="&4) -> 15
A179: ZWPAIL80.CM | B179: cmdty IL CRD 80 Soft Red Winter Wheat Price Idx | C179: SRW | D179: Cash | E179: Illinois | F179: District | G179: IL CRD 80 | H179: =+IF(LEN(home!$E$7)>0,instruments!C179=home!$E$7,TRUE) -> FALSE | I179: TRUE | J179: =+IF(LEN(home!$E$8)>0,instruments!E179=home!$E$8,TRUE) -> TRUE | K179: =+IF(LEN(home!$E$9)>0,instruments!F179=home!$E$9,TRUE) -> FALSE | L179: 2 | M179: =+COUNTIF($L$1:L179,"="&4) -> 15
A180: ZCBAIL90.CM | B180: cmdty IL CRD 90 Corn Basis Idx | C180: Corn | D180: Basis | E180: Illinois | F180: District | G180: IL CRD 90 | H180: =+IF(LEN(home!$E$7)>0,instruments!C180=home!$E$7,TRUE) -> TRUE | I180: FALSE | J180: =+IF(LEN(home!$E$8)>0,instruments!E180=home!$E$8,TRUE) -> TRUE | K180: =+IF(LEN(home!$E$9)>0,instruments!F180=home!$E$9,TRUE) -> FALSE | L180: 2 | M180: =+COUNTIF($L$1:L180,"="&4) -> 15
A181: ZCPAIL90.CM | B181: cmdty IL CRD 90 Corn Price Idx | C181: Corn | D181: Cash | E181: Illinois | F181: District | G181: IL CRD 90 | H181: =+IF(LEN(home!$E$7)>0,instruments!C181=home!$E$7,TRUE) -> TRUE | I181: TRUE | J181: =+IF(LEN(home!$E$8)>0,instruments!E181=home!$E$8,TRUE) -> TRUE | K181: =+IF(LEN(home!$E$9)>0,instruments!F181=home!$E$9,TRUE) -> FALSE | L181: 3 | M181: =+COUNTIF($L$1:L181,"="&4) -> 15
A182: ZSBAIL90.CM | B182: cmdty IL CRD 90 Soybean Basis Idx | C182: Soybean | D182: Basis | E182: Illinois | F182: District | G182: IL CRD 90 | H182: =+IF(LEN(home!$E$7)>0,instruments!C182=home!$E$7,TRUE) -> FALSE | I182: FALSE | J182: =+IF(LEN(home!$E$8)>0,instruments!E182=home!$E$8,TRUE) -> TRUE | K182: =+IF(LEN(home!$E$9)>0,instruments!F182=home!$E$9,TRUE) -> FALSE | L182: 1 | M182: =+COUNTIF($L$1:L182,"="&4) -> 15
A183: ZSPAIL90.CM | B183: cmdty IL CRD 90 Soybean Price Idx | C183: Soybean | D183: Cash | E183: Illinois | F183: District | G183: IL CRD 90 | H183: =+IF(LEN(home!$E$7)>0,instruments!C183=home!$E$7,TRUE) -> FALSE | I183: TRUE | J183: =+IF(LEN(home!$E$8)>0,instruments!E183=home!$E$8,TRUE) -> TRUE | K183: =+IF(LEN(home!$E$9)>0,instruments!F183=home!$E$9,TRUE) -> FALSE | L183: 2 | M183: =+COUNTIF($L$1:L183,"="&4) -> 15
A184: ZWBAIL90.CM | B184: cmdty IL CRD 90 Soft Red Winter Wheat Basis Idx | C184: SRW | D184: Basis | E184: Illinois | F184: District | G184: IL CRD 90 | H184: =+IF(LEN(home!$E$7)>0,instruments!C184=home!$E$7,TRUE) -> FALSE | I184: FALSE | J184: =+IF(LEN(home!$E$8)>0,instruments!E184=home!$E$8,TRUE) -> TRUE | K184: =+IF(LEN(home!$E$9)>0,instruments!F184=home!$E$9,TRUE) -> FALSE | L184: 1 | M184: =+COUNTIF($L$1:L184,"="&4) -> 15
A185: ZWPAIL90.CM | B185: cmdty IL CRD 90 Soft Red Winter Wheat Price Idx | C185: SRW | D185: Cash | E185: Illinois | F185: District | G185: IL CRD 90 | H185: =+IF(LEN(home!$E$7)>0,instruments!C185=home!$E$7,TRUE) -> FALSE | I185: TRUE | J185: =+IF(LEN(home!$E$8)>0,instruments!E185=home!$E$8,TRUE) -> TRUE | K185: =+IF(LEN(home!$E$9)>0,instruments!F185=home!$E$9,TRUE) -> FALSE | L185: 2 | M185: =+COUNTIF($L$1:L185,"="&4) -> 15
A186: ZCBAIN10.CM | B186: cmdty IN CRD 10 Corn Basis Idx | C186: Corn | D186: Basis | E186: Indiana | F186: District | G186: IN CRD 10 | H186: =+IF(LEN(home!$E$7)>0,instruments!C186=home!$E$7,TRUE) -> TRUE | I186: FALSE | J186: =+IF(LEN(home!$E$8)>0,instruments!E186=home!$E$8,TRUE) -> TRUE | K186: =+IF(LEN(home!$E$9)>0,instruments!F186=home!$E$9,TRUE) -> FALSE | L186: 2 | M186: =+COUNTIF($L$1:L186,"="&4) -> 15
A187: ZCPAIN10.CM | B187: cmdty IN CRD 10 Corn Price Idx | C187: Corn | D187: Cash | E187: Indiana | F187: District | G187: IN CRD 10 | H187: =+IF(LEN(home!$E$7)>0,instruments!C187=home!$E$7,TRUE) -> TRUE | I187: TRUE | J187: =+IF(LEN(home!$E$8)>0,instruments!E187=home!$E$8,TRUE) -> TRUE | K187: =+IF(LEN(home!$E$9)>0,instruments!F187=home!$E$9,TRUE) -> FALSE | L187: 3 | M187: =+COUNTIF($L$1:L187,"="&4) -> 15
A188: ZSBAIN10.CM | B188: cmdty IN CRD 10 Soybean Basis Idx | C188: Soybean | D188: Basis | E188: Indiana | F188: District | G188: IN CRD 10 | H188: =+IF(LEN(home!$E$7)>0,instruments!C188=home!$E$7,TRUE) -> FALSE | I188: FALSE | J188: =+IF(LEN(home!$E$8)>0,instruments!E188=home!$E$8,TRUE) -> TRUE | K188: =+IF(LEN(home!$E$9)>0,instruments!F188=home!$E$9,TRUE) -> FALSE | L188: 1 | M188: =+COUNTIF($L$1:L188,"="&4) -> 15
A189: ZSPAIN10.CM | B189: cmdty IN CRD 10 Soybean Price Idx | C189: Soybean | D189: Cash | E189: Indiana | F189: District | G189: IN CRD 10 | H189: =+IF(LEN(home!$E$7)>0,instruments!C189=home!$E$7,TRUE) -> FALSE | I189: TRUE | J189: =+IF(LEN(home!$E$8)>0,instruments!E189=home!$E$8,TRUE) -> TRUE | K189: =+IF(LEN(home!$E$9)>0,instruments!F189=home!$E$9,TRUE) -> FALSE | L189: 2 | M189: =+COUNTIF($L$1:L189,"="&4) -> 15
A190: ZWBAIN10.CM | B190: cmdty IN CRD 10 Soft Red Winter Wheat Basis Idx | C190: SRW | D190: Basis | E190: Indiana | F190: District | G190: IN CRD 10 | H190: =+IF(LEN(home!$E$7)>0,instruments!C190=home!$E$7,TRUE) -> FALSE | I190: FALSE | J190: =+IF(LEN(home!$E$8)>0,instruments!E190=home!$E$8,TRUE) -> TRUE | K190: =+IF(LEN(home!$E$9)>0,instruments!F190=home!$E$9,TRUE) -> FALSE | L190: 1 | M190: =+COUNTIF($L$1:L190,"="&4) -> 15
A191: ZWPAIN10.CM | B191: cmdty IN CRD 10 Soft Red Winter Wheat Price Idx | C191: SRW | D191: Cash | E191: Indiana | F191: District | G191: IN CRD 10 | H191: =+IF(LEN(home!$E$7)>0,instruments!C191=home!$E$7,TRUE) -> FALSE | I191: TRUE | J191: =+IF(LEN(home!$E$8)>0,instruments!E191=home!$E$8,TRUE) -> TRUE | K191: =+IF(LEN(home!$E$9)>0,instruments!F191=home!$E$9,TRUE) -> FALSE | L191: 2 | M191: =+COUNTIF($L$1:L191,"="&4) -> 15
A192: ZCBAIN20.CM | B192: cmdty IN CRD 20 Corn Basis Idx | C192: Corn | D192: Basis | E192: Indiana | F192: District | G192: IN CRD 20 | H192: =+IF(LEN(home!$E$7)>0,instruments!C192=home!$E$7,TRUE) -> TRUE | I192: FALSE | J192: =+IF(LEN(home!$E$8)>0,instruments!E192=home!$E$8,TRUE) -> TRUE | K192: =+IF(LEN(home!$E$9)>0,instruments!F192=home!$E$9,TRUE) -> FALSE | L192: 2 | M192: =+COUNTIF($L$1:L192,"="&4) -> 15
A193: ZCPAIN20.CM | B193: cmdty IN CRD 20 Corn Price Idx | C193: Corn | D193: Cash | E193: Indiana | F193: District | G193: IN CRD 20 | H193: =+IF(LEN(home!$E$7)>0,instruments!C193=home!$E$7,TRUE) -> TRUE | I193: TRUE | J193: =+IF(LEN(home!$E$8)>0,instruments!E193=home!$E$8,TRUE) -> TRUE | K193: =+IF(LEN(home!$E$9)>0,instruments!F193=home!$E$9,TRUE) -> FALSE | L193: 3 | M193: =+COUNTIF($L$1:L193,"="&4) -> 15
A194: ZSBAIN20.CM | B194: cmdty IN CRD 20 Soybean Basis Idx | C194: Soybean | D194: Basis | E194: Indiana | F194: District | G194: IN CRD 20 | H194: =+IF(LEN(home!$E$7)>0,instruments!C194=home!$E$7,TRUE) -> FALSE | I194: FALSE | J194: =+IF(LEN(home!$E$8)>0,instruments!E194=home!$E$8,TRUE) -> TRUE | K194: =+IF(LEN(home!$E$9)>0,instruments!F194=home!$E$9,TRUE) -> FALSE | L194: =+COUNTIF(H194:K194,TRUE) -> 1 | M194: =+COUNTIF($L$1:L194,"="&4) -> 15
A195: ZSPAIN20.CM | B195: cmdty IN CRD 20 Soybean Price Idx | C195: Soybean | D195: Cash | E195: Indiana | F195: District | G195: IN CRD 20 | H195: =+IF(LEN(home!$E$7)>0,instruments!C195=home!$E$7,TRUE) -> FALSE | I195: =+D195="Cash" -> TRUE | J195: =+IF(LEN(home!$E$8)>0,instruments!E195=home!$E$8,TRUE) -> TRUE | K195: =+IF(LEN(home!$E$9)>0,instruments!F195=home!$E$9,TRUE) -> FALSE | L195: 2 | M195: =+COUNTIF($L$1:L195,"="&4) -> 15
A196: ZWBAIN20.CM | B196: cmdty IN CRD 20 Soft Red Winter Wheat Basis Idx | C196: SRW | D196: Basis | E196: Indiana | F196: District | G196: IN CRD 20 | H196: =+IF(LEN(home!$E$7)>0,instruments!C196=home!$E$7,TRUE) -> FALSE | I196: FALSE | J196: =+IF(LEN(home!$E$8)>0,instruments!E196=home!$E$8,TRUE) -> TRUE | K196: =+IF(LEN(home!$E$9)>0,instruments!F196=home!$E$9,TRUE) -> FALSE | L196: 1 | M196: =+COUNTIF($L$1:L196,"="&4) -> 15
A197: ZWPAIN20.CM | B197: cmdty IN CRD 20 Soft Red Winter Wheat Price Idx | C197: SRW | D197: Cash | E197: Indiana | F197: District | G197: IN CRD 20 | H197: =+IF(LEN(home!$E$7)>0,instruments!C197=home!$E$7,TRUE) -> FALSE | I197: TRUE | J197: =+IF(LEN(home!$E$8)>0,instruments!E197=home!$E$8,TRUE) -> TRUE | K197: =+IF(LEN(home!$E$9)>0,instruments!F197=home!$E$9,TRUE) -> FALSE | L197: 2 | M197: =+COUNTIF($L$1:L197,"="&4) -> 15
A198: ZCBAIN30.CM | B198: cmdty IN CRD 30 Corn Basis Idx | C198: Corn | D198: Basis | E198: Indiana | F198: District | G198: IN CRD 30 | H198: =+IF(LEN(home!$E$7)>0,instruments!C198=home!$E$7,TRUE) -> TRUE | I198: FALSE | J198: =+IF(LEN(home!$E$8)>0,instruments!E198=home!$E$8,TRUE) -> TRUE | K198: =+IF(LEN(home!$E$9)>0,instruments!F198=home!$E$9,TRUE) -> FALSE | L198: 2 | M198: =+COUNTIF($L$1:L198,"="&4) -> 15
A199: ZCPAIN30.CM | B199: cmdty IN CRD 30 Corn Price Idx | C199: Corn | D199: Cash | E199: Indiana | F199: District | G199: IN CRD 30 | H199: =+IF(LEN(home!$E$7)>0,instruments!C199=home!$E$7,TRUE) -> TRUE | I199: TRUE | J199: =+IF(LEN(home!$E$8)>0,instruments!E199=home!$E$8,TRUE) -> TRUE | K199: =+IF(LEN(home!$E$9)>0,instruments!F199=home!$E$9,TRUE) -> FALSE | L199: 3 | M199: =+COUNTIF($L$1:L199,"="&4) -> 15
A200: ZSBAIN30.CM | B200: cmdty IN CRD 30 Soybean Basis Idx | C200: Soybean | D200: Basis | E200: Indiana | F200: District | G200: IN CRD 30 | H200: =+IF(LEN(home!$E$7)>0,instruments!C200=home!$E$7,TRUE) -> FALSE | I200: FALSE | J200: =+IF(LEN(home!$E$8)>0,instruments!E200=home!$E$8,TRUE) -> TRUE | K200: =+IF(LEN(home!$E$9)>0,instruments!F200=home!$E$9,TRUE) -> FALSE | L200: 1 | M200: =+COUNTIF($L$1:L200,"="&4) -> 15
... 4837 more rows

Sheet futures
B1: Corn | C1: HRW | D1: Soybean | E1: Spring Wheat | F1: SRW
A2: 1 | B2: H | C2: H | D2: F | E2: H | F2: H
A3: =+A2+1 -> 2 | B3: H | C3: H | D3: H | E3: H | F3: H
A4: =+A3+1 -> 3 | B4: H | C4: H | D4: H | E4: H | F4: H
A5: 4 | B5: K | C5: K | D5: K | E5: K | F5: K
A6: 5 | B6: K | C6: K | D6: K | E6: K | F6: K
A7: 6 | B7: N | C7: N | D7: N | E7: N | F7: N
A8: 7 | B8: N | C8: N | D8: N | E8: N | F8: N
A9: 8 | B9: U | C9: U | D9: Q | E9: U | F9: U
A10: 9 | B10: U | C10: U | D10: U | E10: U | F10: U
A11: 10 | B11: Z | C11: Z | D11: X | E11: Z | F11: Z
A12: 11 | B12: Z | C12: Z | D12: X | E12: Z | F12: Z
A13: 12 | B13: Z | C13: Z | D13: F | E13: Z | F13: Z
